Workbook

Sheet Main
B10: 2018-02-22
B12: Sheet No. | C12: Template Name | D12: Summary
B13: 1 | C13: Future Intra | D13: For Intraday trading in F&O segment
B14: 2 | C14: Cash Intra | D14: For Intraday trading in cash market segment
B15: 3 | C15: Mid-cap Intra | D15: For Intraday trading in Mid-cap stocks
B16: 4 | C16: Bulk Deals | D16: Reveals Bulk Deals carried on NSE & BSE
B17: 5 | C17: Call Tracker

Sheet Future Intra
M5: Back to Main Page
A6: FOR INTRA DAY TRADING | L6: =Main!B10 -> 2018-02-22
A9: Sr.no | B9: Sector | C9: Scrip | D9: CLOSE RATE | E9: Pivot Point | F9: Supports | I9: Resistances
B10: Sector | D10: Point | E10: Point | F10: S1 | G10: S2 | H10: S3 | I10: R1 | J10: R2 | K10: R3 | L10: HIGH | M10: LOW | N10: OI | O10: % Change in OI
A11: 1 | B11: Index | C11: BANKNIFTY | D11: 24928.80 | E11: 24905.13 | F11: 24799.77 | G11: 24670.73 | H11: 24565.37 | I11: 25034.17 | J11: 25139.53 | K11: 25268.57 | L11: 25010.5 | M11: 24776.1 | N11: 2638480 | O11: -2.23%
A12: 2 | B12: Index | C12: NIFTY | D12: 10392.90 | E12: 10381.38 | F12: 10352.92 | G12: 10312.93 | H12: 10284.47 | I12: 10421.37 | J12: 10449.83 | K12: 10489.82 | L12: 10409.85 | M12: 10341.4 | N12: 28101150 | O12: -3.64%
A13: 3 | B13: Index | C13: NIFTYCPSE | D13: 2661.05 | E13: 887.02 | F13: 1774.03 | G13: 887.02 | H13: 1774.03 | I13: 1774.03 | J13: 887.02 | K13: 1774.03 | L13: 0 | M13: 0 | N13: 0 | O13: 0.00%
A14: 4 | B14: Index | C14: NIFTYINFRA | D14: 3569.30 | E14: 1189.77 | F14: 2379.53 | G14: 1189.77 | H14: 2379.53 | I14: 2379.53 | J14: 1189.77 | K14: 2379.53 | L14: 0 | M14: 0 | N14: 0 | O14: 0.00%
A15: 5 | B15: Index | C15: NIFTYIT | D15: 12656.00 | E15: 12592.00 | F15: 12489.00 | G15: 12322.00 | H15: 12219.00 | I15: 12759.00 | J15: 12862.00 | K15: 13029.00 | L15: 12695 | M15: 12425 | N15: 40150 | O15: -3.14%
A16: 6 | B16: Index | C16: NIFTYMID50 | D16: 5040.00 | E16: 5036.67 | F16: 5033.33 | G16: 5026.67 | H16: 5023.33 | I16: 5043.33 | J16: 5046.67 | K16: 5053.33 | L16: 5040 | M16: 5030 | N16: 514600 | O16: 0.00%
A17: 7 | B17: Index | C17: NIFTYPSE | D17: 4297.00 | E17: 1432.33 | F17: 2864.67 | G17: 1432.33 | H17: 2864.67 | I17: 2864.67 | J17: 1432.33 | K17: 2864.67 | L17: 0 | M17: 0 | N17: 0 | O17: 0.00%
A18: 8 | B18: Cement | C18: ACC | D18: 1647.65 | E18: 1651.68 | F18: 1638.37 | G18: 1629.08 | H18: 1615.77 | I18: 1660.97 | J18: 1674.28 | K18: 1683.57 | L18: 1665 | M18: 1642.4 | N18: 1821600 | O18: -9.16%
A19: 9 | B19: Others | C19: ADANIENT | D19: 197.50 | E19: 197.87 | F19: 194.73 | G19: 191.97 | H19: 188.83 | I19: 200.63 | J19: 203.77 | K19: 206.53 | L19: 201 | M19: 195.1 | N19: 19592000 | O19: 13.67%
A20: 10 | B20: Others | C20: ADANIPORTS | D20: 395.90 | E20: 394.70 | F20: 391.25 | G20: 386.60 | H20: 383.15 | I20: 399.35 | J20: 402.80 | K20: 407.45 | L20: 398.15 | M20: 390.05 | N20: 12207500 | O20: -2.22%
A21: 11 | B21: Power | C21: ADANIPOWER | D21: 31.40 | E21: 31.28 | F21: 30.97 | G21: 30.53 | H21: 30.22 | I21: 31.72 | J21: 32.03 | K21: 32.47 | L21: 31.6 | M21: 30.85 | N21: 138100000 | O21: 24.10%
A22: 12 | B22: Pharma | C22: AJANTPHARM | D22: 1355.90 | E22: 1342.67 | F22: 1325.23 | G22: 1294.57 | H22: 1277.13 | I22: 1373.33 | J22: 1390.77 | K22: 1421.43 | L22: 1360.1 | M22: 1312 | N22: 886000 | O22: -4.06%
A23: 13 | B23: Banking | C23: ALBK | D23: 52.35 | E23: 51.95 | F23: 51.30 | G23: 50.25 | H23: 49.60 | I23: 53.00 | J23: 53.65 | K23: 54.70 | L23: 52.6 | M23: 50.9 | N23: 21330000 | O23: -11.01%
A24: 14 | B24: Automobile | C24: AMARAJABAT | D24: 795.45 | E24: 800.27 | F24: 787.13 | G24: 778.82 | H24: 765.68 | I24: 808.58 | J24: 821.72 | K24: 830.03 | L24: 813.4 | M24: 791.95 | N24: 1608600 | O24: -3.00%
A25: 15 | B25: Cement | C25: AMBUJACEM | D25: 261.45 | E25: 263.02 | F25: 258.78 | G25: 256.12 | H25: 251.88 | I25: 265.68 | J25: 269.92 | K25: 272.58 | L25: 267.25 | M25: 260.35 | N25: 13390000 | O25: -12.11%
A26: 16 | B26: Banking | C26: ANDHRABANK | D26: 45.85 | E26: 46.10 | F26: 45.00 | G26: 44.15 | H26: 43.05 | I26: 46.95 | J26: 48.05 | K26: 48.90 | L26: 47.2 | M26: 45.25 | N26: 27260000 | O26: 2.17%
A27: 17 | B27: Others | C27: APOLLOHOSP | D27: 1211.70 | E27: 1202.90 | F27: 1185.80 | G27: 1159.90 | H27: 1142.80 | I27: 1228.80 | J27: 1245.90 | K27: 1271.80 | L27: 1220 | M27: 1177 | N27: 782500 | O27: -7.12%
A28: 18 | B28: Automobile | C28: APOLLOTYRE | D28: 262.20 | E28: 262.47 | F28: 258.98 | G28: 255.77 | H28: 252.28 | I28: 265.68 | J28: 269.17 | K28: 272.38 | L28: 265.95 | M28: 259.25 | N28: 11706000 | O28: 2.15%
A29: 19 | B29: Textile | C29: ARVIND | D29: 398.90 | E29: 396.93 | F29: 392.22 | G29: 385.53 | H29: 380.82 | I29: 403.62 | J29: 408.33 | K29: 415.02 | L29: 401.65 | M29: 390.25 | N29: 6614000 | O29: -1.61%
A30: 20 | B30: Automobile | C30: ASHOKLEY | D30: 132.60 | E30: 133.30 | F30: 131.55 | G30: 130.50 | H30: 128.75 | I30: 134.35 | J30: 136.10 | K30: 137.15 | L30: 135.05 | M30: 132.25 | N30: 54019000 | O30: -3.54%
A31: 21 | B31: FMCG | C31: ASIANPAINT | D31: 1126.95 | E31: 1124.40 | F31: 1118.10 | G31: 1109.25 | H31: 1102.95 | I31: 1133.25 | J31: 1139.55 | K31: 1148.40 | L31: 1130.7 | M31: 1115.55 | N31: 4218000 | O31: -1.01%
A32: 22 | B32: Pharma | C32: AUROPHARMA | D32: 570.65 | E32: 570.22 | F32: 560.43 | G32: 550.22 | H32: 540.43 | I32: 580.43 | J32: 590.22 | K32: 600.43 | L32: 580 | M32: 560 | N32: 25540000 | O32: -1.03%
A33: 23 | B33: Banking | C33: AXISBANK | D33: 535.85 | E33: 532.85 | F33: 527.70 | G33: 519.55 | H33: 514.40 | I33: 541.00 | J33: 546.15 | K33: 554.30 | L33: 538 | M33: 524.7 | N33: 51620400 | O33: -1.57%
A34: 24 | B34: Automobile | C34: BAJAJ-AUTO | D34: 3016.20 | E34: 3030.30 | F34: 2993.45 | G34: 2970.70 | H34: 2933.85 | I34: 3053.05 | J34: 3089.90 | K34: 3112.65 | L34: 3067.15 | M34: 3007.55 | N34: 2048250 | O34: 1.54%
A35: 25 | B35: Others | C35: BAJAJFINSV | D35: 4976.35 | E35: 4996.55 | F35: 4944.10 | G35: 4911.85 | H35: 4859.40 | I35: 5028.80 | J35: 5081.25 | K35: 5113.50 | L35: 5049 | M35: 4964.3 | N35: 753375 | O35: -1.39%
A36: 26 | B36: Finance | C36: BAJFINANCE | D36: 1597.80 | E36: 1610.83 | F36: 1576.52 | G36: 1555.23 | H36: 1520.92 | I36: 1632.12 | J36: 1666.43 | K36: 1687.72 | L36: 1645.15 | M36: 1589.55 | N36: 6403500 | O36: 3.29%
A37: 27 | B37: Others | C37: BALKRISIND | D37: 1103.20 | E37: 1104.43 | F37: 1091.47 | G37: 1079.73 | H37: 1066.77 | I37: 1116.17 | J37: 1129.13 | K37: 1140.87 | L37: 1117.4 | M37: 1092.7 | N37: 1167200 | O37: 2.60%
A38: 28 | B38: Others | C38: BALRAMCHIN | D38: 114.10 | E38: 116.30 | F38: 110.60 | G38: 107.10 | H38: 101.40 | I38: 119.80 | J38: 125.50 | K38: 129.00 | L38: 122 | M38: 112.8 | N38: 18816000 | O38: -3.83%
A39: 29 | B39: Banking | C39: BANKBARODA | D39: 145.75 | E39: 145.05 | F39: 142.95 | G39: 140.15 | H39: 138.05 | I39: 147.85 | J39: 149.95 | K39: 152.75 | L39: 147.15 | M39: 142.25 | N39: 64836000 | O39: -3.56%
A40: 30 | B40: Banking | C40: BANKINDIA | D40: 129.05 | E40: 129.12 | F40: 126.23 | G40: 123.42 | H40: 120.53 | I40: 131.93 | J40: 134.82 | K40: 137.63 | L40: 132 | M40: 126.3 | N40: 20772000 | O40: -3.51%
A41: 31 | B41: FMCG | C41: BATAINDIA | D41: 705.40 | E41: 708.73 | F41: 699.17 | G41: 692.93 | H41: 683.37 | I41: 714.97 | J41: 724.53 | K41: 730.77 | L41: 718.3 | M41: 702.5 | N41: 2262700 | O41: -1.20%
A42: 32 | B42: Capital_Goods | C42: BEL | D42: 151.10 | E42: 152.15 | F42: 149.30 | G42: 147.50 | H42: 144.65 | I42: 153.95 | J42: 156.80 | K42: 158.60 | L42: 155 | M42: 150.35 | N42: 23284800 | O42: -1.05%
A43: 33 | B43: Infrastructure | C43: BEML | D43: 1205.90 | E43: 1211.82 | F43: 1188.93 | G43: 1171.97 | H43: 1149.08 | I43: 1228.78 | J43: 1251.67 | K43: 1268.63 | L43: 1234.7 | M43: 1194.85 | N43: 2073000 | O43: 0.98%
A44: 34 | B44: Others | C44: BERGEPAINT | D44: 246.50 | E44: 245.07 | F44: 242.33 | G44: 238.17 | H44: 235.43 | I44: 249.23 | J44: 251.97 | K44: 256.13 | L44: 247.8 | M44: 240.9 | N44: 1366200 | O44: -10.13%
A45: 35 | B45: Finance | C45: BHARATFIN | D45: 969.40 | E45: 976.10 | F45: 959.40 | G45: 949.40 | H45: 932.70 | I45: 986.10 | J45: 1002.80 | K45: 1012.80 | L45: 992.8 | M45: 966.1 | N45: 6110000 | O45: -4.20%
A46: 36 | B46: Automobile | C46: BHARATFORG | D46: 756.00 | E46: 750.30 | F46: 740.85 | G46: 725.70 | H46: 716.25 | I46: 765.45 | J46: 774.90 | K46: 790.05 | L46: 759.75 | M46: 735.15 | N46: 6846000 | O46: -8.47%
A47: 37 | B47: Telecom | C47: BHARTIARTL | D47: 420.00 | E47: 419.63 | F47: 417.27 | G47: 414.53 | H47: 412.17 | I47: 422.37 | J47: 424.73 | K47: 427.47 | L47: 422 | M47: 416.9 | N47: 57658900 | O47: -0.09%
A48: 38 | B48: Capital_Goods | C48: BHEL | D48: 91.75 | E48: 92.15 | F48: 90.50 | G48: 89.25 | H48: 87.60 | I48: 93.40 | J48: 95.05 | K48: 96.30 | L48: 93.8 | M48: 90.9 | N48: 44325000 | O48: -1.22%
A49: 39 | B49: Pharma | C49: BIOCON | D49: 579.70 | E49: 572.42 | F49: 559.83 | G49: 539.97 | H49: 527.38 | I49: 592.28 | J49: 604.87 | K49: 624.73 | L49: 585 | M49: 552.55 | N49: 7587000 | O49: 3.21%
A50: 40 | B50: Automobile | C50: BOSCHLTD | D50: 19190.90 | E50: 19249.42 | F50: 19063.83 | G50: 18936.77 | H50: 18751.18 | I50: 19376.48 | J50: 19562.07 | K50: 19689.13 | L50: 19435 | M50: 19122.35 | N50: 144400 | O50: -1.48%
A51: 41 | B51: Oil_Gas | C51: BPCL | D51: 434.95 | E51: 435.18 | F51: 426.72 | G51: 418.48 | H51: 410.02 | I51: 443.42 | J51: 451.88 | K51: 460.12 | L51: 443.65 | M51: 426.95 | N51: 11124000 | O51: 2.45%
A52: 42 | B52: FMCG | C52: BRITANNIA | D52: 4776.65 | E52: 4769.88 | F52: 4746.77 | G52: 4716.88 | H52: 4693.77 | I52: 4799.77 | J52: 4822.88 | K52: 4852.77 | L52: 4793 | M52: 4740 | N52: 866000 | O52: 2.05%
A53: 43 | B53: Pharma | C53: CADILAHC | D53: 410.60 | E53: 408.78 | F53: 405.52 | G53: 400.43 | H53: 397.17 | I53: 413.87 | J53: 417.13 | K53: 422.22 | L53: 412.05 | M53: 403.7 | N53: 7220800 | O53: 1.39%
A54: 44 | B54: Banking | C54: CANBK | D54: 312.40 | E54: 310.57 | F54: 305.83 | G54: 299.27 | H54: 294.53 | I54: 317.13 | J54: 321.87 | K54: 328.43 | L54: 315.3 | M54: 304 | N54: 12344000 | O54: -6.92%
A55: 45 | B55: Others | C55: CANFINHOME | D55: 519.60 | E55: 518.22 | F55: 513.63 | G55: 507.67 | H55: 503.08 | I55: 524.18 | J55: 528.77 | K55: 534.73 | L55: 522.8 | M55: 512.25 | N55: 4586250 | O55: -0.76%
A56: 46 | B56: Finance | C56: CAPF | D56: 678.40 | E56: 678.40 | F56: 673.00 | G56: 667.60 | H56: 662.20 | I56: 683.80 | J56: 689.20 | K56: 694.60 | L56: 683.8 | M56: 673 | N56: 7183200 | O56: 2.03%
A57: 47 | B57: Oil_Gas | C57: CASTROLIND | D57: 193.50 | E57: 192.45 | F57: 190.95 | G57: 188.40 | H57: 186.90 | I57: 195.00 | J57: 196.50 | K57: 199.05 | L57: 193.95 | M57: 189.9 | N57: 15996400 | O57: 0.33%
A58: 48 | B58: Automobile | C58: CEATLTD | D58: 1585.30 | E58: 1592.82 | F58: 1568.48 | G58: 1551.67 | H58: 1527.33 | I58: 1609.63 | J58: 1633.97 | K58: 1650.78 | L58: 1617.15 | M58: 1576 | N58: 1060850 | O58: -2.19%
A59: 49 | B59: Textile | C59: CENTURYTEX | D59: 1170.75 | E59: 1180.12 | F59: 1151.73 | G59: 1132.72 | H59: 1104.33 | I59: 1199.13 | J59: 1227.52 | K59: 1246.53 | L59: 1208.5 | M59: 1161.1 | N59: 6514750 | O59: -1.37%
A60: 50 | B60: Power | C60: CESC | D60: 986.95 | E60: 985.97 | F60: 980.03 | G60: 973.12 | H60: 967.18 | I60: 992.88 | J60: 998.82 | K60: 1005.73 | L60: 991.9 | M60: 979.05 | N60: 6874450 | O60: 0.86%
A61: 51 | B61: Power | C61: CGPOWER | D61: 82.05 | E61: 82.07 | F61: 81.28 | G61: 80.52 | H61: 79.73 | I61: 82.83 | J61: 83.62 | K61: 84.38 | L61: 82.85 | M61: 81.3 | N61: 25704000 | O61: -1.38%
A62: 52 | B62: Others | C62: CHENNPETRO | D62: 357.60 | E62: 360.18 | F62: 353.72 | G62: 349.83 | H62: 343.37 | I62: 364.07 | J62: 370.53 | K62: 374.42 | L62: 366.65 | M62: 356.3 | N62: 2911500 | O62: 4.52%
A63: 53 | B63: Others | C63: CHOLAFIN | D63: 1379.85 | E63: 1365.12 | F63: 1345.38 | G63: 1310.92 | H63: 1291.18 | I63: 1399.58 | J63: 1419.32 | K63: 1453.78 | L63: 1384.85 | M63: 1330.65 | N63: 554500 | O63: -2.63%
A64: 54 | B64: Pharma | C64: CIPLA | D64: 597.00 | E64: 597.93 | F64: 588.62 | G64: 580.23 | H64: 570.92 | I64: 606.32 | J64: 615.63 | K64: 624.02 | L64: 607.25 | M64: 589.55 | N64: 9753000 | O64: 4.44%
A65: 55 | B65: Others | C65: COALINDIA | D65: 309.55 | E65: 308.58 | F65: 305.37 | G65: 301.18 | H65: 297.97 | I65: 312.77 | J65: 315.98 | K65: 320.17 | L65: 311.8 | M65: 304.4 | N65: 21326800 | O65: -1.71%
A66: 56 | B66: FMCG | C66: COLPAL | D66: 1077.25 | E66: 1075.37 | F66: 1066.73 | G66: 1056.22 | H66: 1047.58 | I66: 1085.88 | J66: 1094.52 | K66: 1105.03 | L66: 1084 | M66: 1064.85 | N66: 1291500 | O66: 10.08%
A67: 57 | B67: Others | C67: CONCOR | D67: 1310.40 | E67: 1301.30 | F67: 1288.55 | G67: 1266.70 | H67: 1253.95 | I67: 1323.15 | J67: 1335.90 | K67: 1357.75 | L67: 1314.05 | M67: 1279.45 | N67: 1005000 | O67: -3.77%
A68: 58 | B68: Capital_Goods | C68: CUMMINSIND | D68: 841.75 | E68: 847.35 | F68: 830.75 | G68: 819.75 | H68: 803.15 | I68: 858.35 | J68: 874.95 | K68: 885.95 | L68: 863.95 | M68: 836.35 | N68: 505200 | O68: -2.77%
A69: 59 | B69: FMCG | C69: DABUR | D69: 335.20 | E69: 336.75 | F69: 332.25 | G69: 329.30 | H69: 324.80 | I69: 339.70 | J69: 344.20 | K69: 347.15 | L69: 341.25 | M69: 333.8 | N69: 10460000 | O69: 2.07%
A70: 60 | B70: Cement | C70: DALMIABHA | D70: 2831.20 | E70: 2832.50 | F70: 2812.95 | G70: 2794.70 | H70: 2775.15 | I70: 2850.75 | J70: 2870.30 | K70: 2888.55 | L70: 2852.05 | M70: 2814.25 | N70: 799800 | O70: 9.49%
A71: 61 | B71: Banking | C71: DCBBANK | D71: 166.35 | E71: 165.82 | F71: 164.33 | G71: 162.32 | H71: 160.83 | I71: 167.83 | J71: 169.32 | K71: 171.33 | L71: 167.3 | M71: 163.8 | N71: 5877000 | O71: -2.83%
A72: 62 | B72: Finance | C72: DHFL | D72: 556.45 | E72: 551.55 | F72: 544.35 | G72: 532.25 | H72: 525.05 | I72: 563.65 | J72: 570.85 | K72: 582.95 | L72: 558.75 | M72: 539.45 | N72: 28480500 | O72: -1.73%
A73: 63 | B73: Media | C73: DISHTV | D73: 72.90 | E73: 72.55 | F73: 71.85 | G73: 70.80 | H73: 70.10 | I73: 73.60 | J73: 74.30 | K73: 75.35 | L73: 73.25 | M73: 71.5 | N73: 51905000 | O73: -3.00%
A74: 64 | B74: Pharma | C74: DIVISLAB | D74: 1007.80 | E74: 1009.13 | F74: 994.07 | G74: 980.33 | H74: 965.27 | I74: 1022.87 | J74: 1037.93 | K74: 1051.67 | L74: 1024.2 | M74: 995.4 | N74: 2062400 | O74: -3.77%
A75: 65 | B75: Realty | C75: DLF | D75: 221.15 | E75: 222.18 | F75: 217.47 | G75: 213.78 | H75: 209.07 | I75: 225.87 | J75: 230.58 | K75: 234.27 | L75: 226.9 | M75: 218.5 | N75: 45970000 | O75: -1.86%
A76: 66 | B76: Pharma | C76: DRREDDY | D76: 2167.55 | E76: 2176.28 | F76: 2147.57 | G76: 2127.58 | H76: 2098.87 | I76: 2196.27 | J76: 2224.98 | K76: 2244.97 | L76: 2205 | M76: 2156.3 | N76: 5093750 | O76: -7.65%
A77: 67 | B77: Automobile | C77: EICHERMOT | D77: 27352.55 | E77: 27272.03 | F77: 27109.07 | G77: 26865.58 | H77: 26702.62 | I77: 27515.52 | J77: 27678.48 | K77: 27921.97 | L77: 27435 | M77: 27028.55 | N77: 262375 | O77: 0.36%
A78: 68 | B78: Infrastructure | C78: ENGINERSIN | D78: 163.45 | E78: 164.80 | F78: 161.15 | G78: 158.85 | H78: 155.20 | I78: 167.10 | J78: 170.75 | K78: 173.05 | L78: 168.45 | M78: 162.5 | N78: 10598000 | O78: 3.91%
A79: 69 | B79: Finance | C79: EQUITAS | D79: 139.90 | E79: 140.98 | F79: 137.57 | G79: 135.23 | H79: 131.82 | I79: 143.32 | J79: 146.73 | K79: 149.07 | L79: 144.4 | M79: 138.65 | N79: 20812800 | O79: 1.50%
A80: 70 | B80: Automobile | C80: ESCORTS | D80: 858.20 | E80: 857.97 | F80: 850.58 | G80: 842.97 | H80: 835.58 | I80: 865.58 | J80: 872.97 | K80: 880.58 | L80: 865.35 | M80: 850.35 | N80: 3093200 | O80: -8.25%
A81: 71 | B81: Automobile | C81: EXIDEIND | D81: 210.75 | E81: 211.62 | F81: 208.48 | G81: 206.22 | H81: 203.08 | I81: 213.88 | J81: 217.02 | K81: 219.28 | L81: 214.75 | M81: 209.35 | N81: 12304000 | O81: -1.00%
A82: 72 | B82: Banking | C82: FEDERALBNK | D82: 91.90 | E82: 91.98 | F82: 91.17 | G82: 90.43 | H82: 89.62 | I82: 92.72 | J82: 93.53 | K82: 94.27 | L82: 92.8 | M82: 91.25 | N82: 85316000 | O82: -0.58%
A83: 73 | B83: Others | C83: FORTIS | D83: 155.40 | E83: 154.22 | F83: 149.33 | G83: 143.27 | H83: 138.38 | I83: 160.28 | J83: 165.17 | K83: 171.23 | L83: 159.1 | M83: 148.15 | N83: 50599500 | O83: -5.38%
A84: 74 | B84: Oil_Gas | C84: GAIL | D84: 465.45 | E84: 465.58 | F84: 462.17 | G84: 458.88 | H84: 455.47 | I84: 468.87 | J84: 472.28 | K84: 475.57 | L84: 469 | M84: 462.3 | N84: 11842000 | O84: -0.64%
A85: 75 | B85: Pharma | C85: GLENMARK | D85: 524.70 | E85: 524.67 | F85: 521.58 | G85: 518.47 | H85: 515.38 | I85: 527.78 | J85: 530.87 | K85: 533.98 | L85: 527.75 | M85: 521.55 | N85: 7304400 | O85: -3.47%
A86: 76 | B86: Infrastructure | C86: GMRINFRA | D86: 17.30 | E86: 17.47 | F86: 17.03 | G86: 16.77 | H86: 16.33 | I86: 17.73 | J86: 18.17 | K86: 18.43 | L86: 17.9 | M86: 17.2 | N86: 304920000 | O86: -3.03%
A87: 77 | B87: Others | C87: GODFRYPHLP | D87: 859.20 | E87: 862.82 | F87: 848.53 | G87: 837.87 | H87: 823.58 | I87: 873.48 | J87: 887.77 | K87: 898.43 | L87: 877.1 | M87: 852.15 | N87: 807000 | O87: 0.06%
A88: 78 | B88: FMCG | C88: GODREJCP | D88: 1056.70 | E88: 1056.23 | F88: 1051.97 | G88: 1047.23 | H88: 1042.97 | I88: 1060.97 | J88: 1065.23 | K88: 1069.97 | L88: 1060.5 | M88: 1051.5 | N88: 1756000 | O88: 2.57%
A89: 79 | B89: FMCG | C89: GODREJIND | D89: 540.10 | E89: 540.97 | F89: 536.63 | G89: 533.17 | H89: 528.83 | I89: 544.43 | J89: 548.77 | K89: 552.23 | L89: 545.3 | M89: 537.5 | N89: 2344500 | O89: -2.07%
A90: 80 | B90: Pharma | C90: GRANULES | D90: 115.25 | E90: 115.57 | F90: 113.98 | G90: 112.72 | H90: 111.13 | I90: 116.83 | J90: 118.42 | K90: 119.68 | L90: 117.15 | M90: 114.3 | N90: 15250000 | O90: 1.50%
A91: 81 | B91: Cement | C91: GRASIM | D91: 1110.50 | E91: 1111.25 | F91: 1097.50 | G91: 1084.50 | H91: 1070.75 | I91: 1124.25 | J91: 1138.00 | K91: 1151.00 | L91: 1125 | M91: 1098.25 | N91: 3667500 | O91: -2.55%
A92: 82 | B92: Others | C92: GSFC | D92: 129.45 | E92: 129.88 | F92: 128.22 | G92: 126.98 | H92: 125.32 | I92: 131.12 | J92: 132.78 | K92: 134.02 | L92: 131.55 | M92: 128.65 | N92: 20421000 | O92: -2.68%
A93: 83 | B93: Others | C93: HAVELLS | D93: 506.40 | E93: 506.15 | F93: 501.45 | G93: 496.50 | H93: 491.80 | I93: 511.10 | J93: 515.80 | K93: 520.75 | L93: 510.85 | M93: 501.2 | N93: 4836000 | O93: -3.01%
A94: 84 | B94: Others | C94: HCC | D94: 33.70 | E94: 33.83 | F94: 33.37 | G94: 33.03 | H94: 32.57 | I94: 34.17 | J94: 34.63 | K94: 34.97 | L94: 34.3 | M94: 33.5 | N94: 57720000 | O94: 0.68%
A95: 85 | B95: Technology | C95: HCLTECH | D95: 941.05 | E95: 933.23 | F95: 920.82 | G95: 900.58 | H95: 888.17 | I95: 953.47 | J95: 965.88 | K95: 986.12 | L95: 945.65 | M95: 913 | N95: 12306700 | O95: -3.36%
A96: 86 | B96: Finance | C96: HDFC | D96: 1824.60 | E96: 1823.30 | F96: 1815.60 | G96: 1806.60 | H96: 1798.90 | I96: 1832.30 | J96: 1840.00 | K96: 1849.00 | L96: 1831 | M96: 1814.3 | N96: 20397500 | O96: 3.57%
A97: 87 | B97: Banking | C97: HDFCBANK | D97: 1855.10 | E97: 1856.78 | F97: 1847.97 | G97: 1840.83 | H97: 1832.02 | I97: 1863.92 | J97: 1872.73 | K97: 1879.87 | L97: 1865.6 | M97: 1849.65 | N97: 22361000 | O97: 0.09%
A98: 88 | B98: Realty | C98: HDIL | D98: 49.15 | E98: 50.12 | F98: 47.73 | G98: 46.32 | H98: 43.93 | I98: 51.53 | J98: 53.92 | K98: 55.33 | L98: 52.5 | M98: 48.7 | N98: 35235000 | O98: 7.11%
A99: 89 | B99: Automobile | C99: HEROMOTOCO | D99: 3489.20 | E99: 3484.35 | F99: 3464.80 | G99: 3440.40 | H99: 3420.85 | I99: 3508.75 | J99: 3528.30 | K99: 3552.70 | L99: 3503.9 | M99: 3459.95 | N99: 1661800 | O99: -1.11%
A100: 90 | B100: Technology | C100: HEXAWARE | D100: 345.90 | E100: 342.45 | F100: 337.65 | G100: 329.40 | H100: 324.60 | I100: 350.70 | J100: 355.50 | K100: 363.75 | L100: 347.25 | M100: 334.2 | N100: 4539000 | O100: -2.64%
A101: 91 | B101: Metals | C101: HINDALCO | D101: 240.95 | E101: 243.33 | F101: 236.32 | G101: 231.68 | H101: 224.67 | I101: 247.97 | J101: 254.98 | K101: 259.62 | L101: 250.35 | M101: 238.7 | N101: 44660000 | O101: 2.04%
A102: 92 | B102: Oil_Gas | C102: HINDPETRO | D102: 386.50 | E102: 383.42 | F102: 379.33 | G102: 372.17 | H102: 368.08 | I102: 390.58 | J102: 394.67 | K102: 401.83 | L102: 387.5 | M102: 376.25 | N102: 22095675 | O102: -3.33%
A103: 93 | B103: FMCG | C103: HINDUNILVR | D103: 1332.35 | E103: 1330.80 | F103: 1325.90 | G103: 1319.45 | H103: 1314.55 | I103: 1337.25 | J103: 1342.15 | K103: 1348.60 | L103: 1335.7 | M103: 1324.35 | N103: 9683400 | O103: -0.73%
A104: 94 | B104: Metals | C104: HINDZINC | D104: 315.70 | E104: 316.25 | F104: 313.60 | G104: 311.50 | H104: 308.85 | I104: 318.35 | J104: 321.00 | K104: 323.10 | L104: 318.9 | M104: 314.15 | N104: 16489600 | O104: 1.22%
A105: 95 | B105: Finance | C105: IBULHSGFIN | D105: 1245.15 | E105: 1241.78 | F105: 1231.67 | G105: 1218.18 | H105: 1208.07 | I105: 1255.27 | J105: 1265.38 | K105: 1278.87 | L105: 1251.9 | M105: 1228.3 | N105: 15515600 | O105: -0.18%
A106: 96 | B106: Banking | C106: ICICIBANK | D106: 320.00 | E106: 319.05 | F106: 317.15 | G106: 314.30 | H106: 312.40 | I106: 321.90 | J106: 323.80 | K106: 326.65 | L106: 320.95 | M106: 316.2 | N106: 98007250 | O106: 0.42%
A107: 97 | B107: Others | C107: ICICIPRULI | D107: 408.50 | E107: 406.60 | F107: 403.45 | G107: 398.40 | H107: 395.25 | I107: 411.65 | J107: 414.80 | K107: 419.85 | L107: 409.75 | M107: 401.55 | N107: 4989400 | O107: -4.43%
A108: 98 | B108: Banking | C108: IDBI | D108: 70.50 | E108: 69.13 | F108: 66.87 | G108: 63.23 | H108: 60.97 | I108: 72.77 | J108: 75.03 | K108: 78.67 | L108: 71.4 | M108: 65.5 | N108: 50010000 | O108: -0.69%
A109: 99 | B109: Telecom | C109: IDEA | D109: 83.30 | E109: 83.62 | F109: 82.63 | G109: 81.97 | H109: 80.98 | I109: 84.28 | J109: 85.27 | K109: 85.93 | L109: 84.6 | M109: 82.95 | N109: 79758000 | O109: -1.78%
A110: 100 | B110: Finance | C110: IDFC | D110: 52.45 | E110: 52.43 | F110: 52.02 | G110: 51.58 | H110: 51.17 | I110: 52.87 | J110: 53.28 | K110: 53.72 | L110: 52.85 | M110: 52 | N110: 190740000 | O110: -3.70%
A111: 101 | B111: Banking | C111: IDFCBANK | D111: 52.35 | E111: 52.33 | F111: 51.97 | G111: 51.58 | H111: 51.22 | I111: 52.72 | J111: 53.08 | K111: 53.47 | L111: 52.7 | M111: 51.95 | N111: 178938000 | O111: -4.78%
A112: 102 | B112: Finance | C112: IFCI | D112: 22.55 | E112: 22.70 | F112: 22.25 | G112: 21.95 | H112: 21.50 | I112: 23.00 | J112: 23.45 | K112: 23.75 | L112: 23.15 | M112: 22.4 | N112: 95898000 | O112: -5.36%
A113: 103 | B113: Oil_Gas | C113: IGL | D113: 294.35 | E113: 296.23 | F113: 290.72 | G113: 287.08 | H113: 281.57 | I113: 299.87 | J113: 305.38 | K113: 309.02 | L113: 301.75 | M113: 292.6 | N113: 6063750 | O113: 5.76%
A114: 104 | B114: Cement | C114: INDIACEM | D114: 157.95 | E114: 158.22 | F114: 156.33 | G114: 154.72 | H114: 152.83 | I114: 159.83 | J114: 161.72 | K114: 163.33 | L114: 160.1 | M114: 156.6 | N114: 24794000 | O114: -2.55%
A115: 105 | B115: Banking | C115: INDIANB | D115: 326.45 | E115: 325.20 | F115: 318.15 | G115: 309.85 | H115: 302.80 | I115: 333.50 | J115: 340.55 | K115: 348.85 | L115: 332.25 | M115: 316.9 | N115: 4078000 | O115: -6.17%
A116: 106 | B116: Others | C116: INDIGO | D116: 1272.70 | E116: 1271.80 | F116: 1261.00 | G116: 1249.30 | H116: 1238.50 | I116: 1283.50 | J116: 1294.30 | K116: 1306.00 | L116: 1282.6 | M116: 1260.1 | N116: 2293800 | O116: -2.57%
A117: 107 | B117: Banking | C117: INDUSINDBK | D117: 1595.35 | E117: 1606.20 | F117: 1579.15 | G117: 1562.95 | H117: 1535.90 | I117: 1622.40 | J117: 1649.45 | K117: 1665.65 | L117: 1633.25 | M117: 1590 | N117: 7199400 | O117: 0.81%
A118: 108 | B118: Technology | C118: INFIBEAM | D118: 159.85 | E118: 160.07 | F118: 158.73 | G118: 157.62 | H118: 156.28 | I118: 161.18 | J118: 162.52 | K118: 163.63 | L118: 161.4 | M118: 158.95 | N118: 37300000 | O118: 1.26%
A119: 109 | B119: Telecom | C119: INFRATEL | D119: 336.45 | E119: 335.00 | F119: 331.50 | G119: 326.55 | H119: 323.05 | I119: 339.95 | J119: 343.45 | K119: 348.40 | L119: 338.5 | M119: 330.05 | N119: 14001200 | O119: 5.77%
A120: 110 | B120: Technology | C120: INFY | D120: 1147.35 | E120: 1145.95 | F120: 1140.15 | G120: 1132.95 | H120: 1127.15 | I120: 1153.15 | J120: 1158.95 | K120: 1166.15 | L120: 1151.75 | M120: 1138.75 | N120: 43041600 | O120: 1.93%
A121: 111 | B121: Oil_Gas | C121: IOC | D121: 367.50 | E121: 366.62 | F121: 363.43 | G121: 359.37 | H121: 356.18 | I121: 370.68 | J121: 373.87 | K121: 377.93 | L121: 369.8 | M121: 362.55 | N121: 22147500 | O121: -4.50%
A122: 112 | B122: Infrastructure | C122: IRB | D122: 221.45 | E122: 221.02 | F122: 218.08 | G122: 214.72 | H122: 211.78 | I122: 224.38 | J122: 227.32 | K122: 230.68 | L122: 223.95 | M122: 217.65 | N122: 16425000 | O122: -0.06%
A123: 113 | B123: FMCG | C123: ITC | D123: 267.95 | E123: 266.55 | F123: 264.50 | G123: 261.05 | H123: 259.00 | I123: 270.00 | J123: 272.05 | K123: 275.50 | L123: 268.6 | M123: 263.1 | N123: 99376800 | O123: -1.17%
A124: 114 | B124: Others | C124: JETAIRWAYS | D124: 746.90 | E124: 747.97 | F124: 735.33 | G124: 723.77 | H124: 711.13 | I124: 759.53 | J124: 772.17 | K124: 783.73 | L124: 760.6 | M124: 736.4 | N124: 5692800 | O124: -2.93%
A125: 115 | B125: Metals | C125: JINDALSTEL | D125: 247.15 | E125: 248.22 | F125: 241.63 | G125: 236.12 | H125: 229.53 | I125: 253.73 | J125: 260.32 | K125: 265.83 | L125: 254.8 | M125: 242.7 | N125: 35086500 | O125: 1.23%
A126: 116 | B126: Others | C126: JISLJALEQS | D126: 116.45 | E126: 117.28 | F126: 114.97 | G126: 113.48 | H126: 111.17 | I126: 118.77 | J126: 121.08 | K126: 122.57 | L126: 119.6 | M126: 115.8 | N126: 35586000 | O126: -2.49%
A127: 117 | B127: Realty | C127: JPASSOCIAT | D127: 16.60 | E127: 16.73 | F127: 16.32 | G127: 16.03 | H127: 15.62 | I127: 17.02 | J127: 17.43 | K127: 17.72 | L127: 17.15 | M127: 16.45 | N127: 235926000 | O127: -3.03%
A128: 118 | B128: Metals | C128: JSWSTEEL | D128: 298.65 | E128: 300.63 | F128: 293.52 | G128: 288.38 | H128: 281.27 | I128: 305.77 | J128: 312.88 | K128: 318.02 | L128: 307.75 | M128: 295.5 | N128: 57687000 | O128: 3.41%
A129: 119 | B129: Others | C129: JUBLFOOD | D129: 1989.55 | E129: 1988.72 | F129: 1966.43 | G129: 1943.32 | H129: 1921.03 | I129: 2011.83 | J129: 2034.12 | K129: 2057.23 | L129: 2011 | M129: 1965.6 | N129: 2410500 | O129: -1.75%
A130: 120 | B130: Others | C130: JUSTDIAL | D130: 442.35 | E130: 441.50 | F130: 435.35 | G130: 428.35 | H130: 422.20 | I130: 448.50 | J130: 454.65 | K130: 461.65 | L130: 447.65 | M130: 434.5 | N130: 4082400 | O130: 10.08%
A131: 121 | B131: Others | C131: KAJARIACER | D131: 584.40 | E131: 584.47 | F131: 578.93 | G131: 573.47 | H131: 567.93 | I131: 589.93 | J131: 595.47 | K131: 600.93 | L131: 590 | M131: 579 | N131: 1448000 | O131: 3.13%
A132: 122 | B132: Banking | C132: KOTAKBANK | D132: 1053.65 | E132: 1052.37 | F132: 1043.83 | G132: 1034.02 | H132: 1025.48 | I132: 1062.18 | J132: 1070.72 | K132: 1080.53 | L132: 1060.9 | M132: 1042.55 | N132: 13352000 | O132: 8.63%
A133: 123 | B133: Technology | C133: KPIT | D133: 200.80 | E133: 201.25 | F133: 197.90 | G133: 195.00 | H133: 191.65 | I133: 204.15 | J133: 207.50 | K133: 210.40 | L133: 204.6 | M133: 198.35 | N133: 14301000 | O133: 2.65%
A134: 124 | B134: Others | C134: KSCL | D134: 468.30 | E134: 470.60 | F134: 463.90 | G134: 459.50 | H134: 452.80 | I134: 475.00 | J134: 481.70 | K134: 486.10 | L134: 477.3 | M134: 466.2 | N134: 3693000 | O134: -2.19%
A135: 125 | B135: Banking | C135: KTKBANK | D135: 132.25 | E135: 132.62 | F135: 130.73 | G135: 129.22 | H135: 127.33 | I135: 134.13 | J135: 136.02 | K135: 137.53 | L135: 134.5 | M135: 131.1 | N135: 23506800 | O135: 0.41%
A136: 126 | B136: Finance | C136: L&TFH | D136: 158.00 | E136: 157.65 | F136: 155.40 | G136: 152.80 | H136: 150.55 | I136: 160.25 | J136: 162.50 | K136: 165.10 | L136: 159.9 | M136: 155.05 | N136: 38529000 | O136: -0.40%
A137: 127 | B137: Finance | C137: LICHSGFIN | D137: 511.85 | E137: 511.40 | F137: 506.65 | G137: 501.45 | H137: 496.70 | I137: 516.60 | J137: 521.35 | K137: 526.55 | L137: 516.15 | M137: 506.2 | N137: 15464900 | O137: 0.08%
A138: 128 | B138: Capital_Goods | C138: LT | D138: 1284.05 | E138: 1286.77 | F138: 1275.53 | G138: 1267.02 | H138: 1255.78 | I138: 1295.28 | J138: 1306.52 | K138: 1315.03 | L138: 1298 | M138: 1278.25 | N138: 15043500 | O138: -2.04%
A139: 129 | B139: Pharma | C139: LUPIN | D139: 814.45 | E139: 818.58 | F139: 807.17 | G139: 799.88 | H139: 788.47 | I139: 825.87 | J139: 837.28 | K139: 844.57 | L139: 830 | M139: 811.3 | N139: 13594800 | O139: 0.53%
A140: 130 | B140: Automobile | C140: M&M | D140: 709.45 | E140: 708.53 | F140: 703.07 | G140: 696.68 | H140: 691.22 | I140: 714.92 | J140: 720.38 | K140: 726.77 | L140: 714 | M140: 702.15 | N140: 14919000 | O140: -0.06%
A141: 131 | B141: Finance | C141: M&MFIN | D141: 435.20 | E141: 437.07 | F141: 431.18 | G141: 427.17 | H141: 421.28 | I141: 441.08 | J141: 446.97 | K141: 450.98 | L141: 442.95 | M141: 433.05 | N141: 7025000 | O141: -1.77%
A142: 132 | B142: Others | C142: MANAPPURAM | D142: 105.80 | E142: 106.17 | F142: 104.43 | G142: 103.07 | H142: 101.33 | I142: 107.53 | J142: 109.27 | K142: 110.63 | L142: 107.9 | M142: 104.8 | N142: 27288000 | O142: -2.34%
A143: 133 | B143: FMCG | C143: MARICO | D143: 307.05 | E143: 306.85 | F143: 304.45 | G143: 301.85 | H143: 299.45 | I143: 309.45 | J143: 311.85 | K143: 314.45 | L143: 309.25 | M143: 304.25 | N143: 4495400 | O143: -5.88%
A144: 134 | B144: Automobile | C144: MARUTI | D144: 8778.45 | E144: 8761.22 | F144: 8729.48 | G144: 8680.52 | H144: 8648.78 | I144: 8810.18 | J144: 8841.92 | K144: 8890.88 | L144: 8792.95 | M144: 8712.25 | N144: 2487450 | O144: -1.83%
A145: 135 | B145: FMCG | C145: MCDOWELL-N | D145: 3181.40 | E145: 3197.13 | F145: 3147.27 | G145: 3113.13 | H145: 3063.27 | I145: 3231.27 | J145: 3281.13 | K145: 3315.27 | L145: 3247 | M145: 3163 | N145: 2200500 | O145: -1.48%
A146: 136 | B146: Others | C146: MCX | D146: 760.20 | E146: 758.13 | F146: 753.72 | G146: 747.23 | H146: 742.82 | I146: 764.62 | J146: 769.03 | K146: 775.52 | L146: 762.55 | M146: 751.65 | N146: 3618500 | O146: -2.20%
A147: 137 | B147: Finance | C147: MFSL | D147: 498.45 | E147: 498.43 | F147: 494.92 | G147: 491.38 | H147: 487.87 | I147: 501.97 | J147: 505.48 | K147: 509.02 | L147: 501.95 | M147: 494.9 | N147: 3857000 | O147: 0.13%
A148: 138 | B148: Others | C148: MGL | D148: 994.45 | E148: 995.00 | F148: 984.95 | G148: 975.45 | H148: 965.40 | I148: 1004.50 | J148: 1014.55 | K148: 1024.05 | L148: 1005.05 | M148: 985.5 | N148: 1139400 | O148: -5.90%
A149: 139 | B149: Technology | C149: MINDTREE | D149: 726.90 | E149: 719.05 | F149: 709.10 | G149: 691.30 | H149: 681.35 | I149: 736.85 | J149: 746.80 | K149: 764.60 | L149: 729 | M149: 701.25 | N149: 1756800 | O149: 12.70%
A150: 140 | B150: Automobile | C150: MOTHERSUMI | D150: 314.75 | E150: 318.58 | F150: 309.22 | G150: 303.68 | H150: 294.32 | I150: 324.12 | J150: 333.48 | K150: 339.02 | L150: 327.95 | M150: 313.05 | N150: 18712000 | O150: 1.92%
A151: 141 | B151: Automobile | C151: MRF | D151: 71628.30 | E151: 71371.42 | F151: 70906.88 | G151: 70185.47 | H151: 69720.93 | I151: 72092.83 | J151: 72557.37 | K151: 73278.78 | L151: 71835.95 | M151: 70650 | N151: 45405 | O151: -0.07%
A152: 142 | B152: Others | C152: MRPL | D152: 118.70 | E152: 118.32 | F152: 117.68 | G152: 116.67 | H152: 116.03 | I152: 119.33 | J152: 119.97 | K152: 120.98 | L152: 118.95 | M152: 117.3 | N152: 7074000 | O152: 0.19%
A153: 143 | B153: Finance | C153: MUTHOOTFIN | D153: 377.80 | E153: 378.63 | F153: 373.32 | G153: 368.83 | H153: 363.52 | I153: 383.12 | J153: 388.43 | K153: 392.92 | L153: 383.95 | M153: 374.15 | N153: 2736000 | O153: 0.72%
A154: 144 | B154: Others | C154: NATIONALUM | D154: 66.45 | E154: 66.72 | F154: 65.48 | G154: 64.52 | H154: 63.28 | I154: 67.68 | J154: 68.92 | K154: 69.88 | L154: 67.95 | M154: 65.75 | N154: 58024000 | O154: 2.36%
A155: 145 | B155: Others | C155: NBCC | D155: 197.35 | E155: 197.25 | F155: 196.50 | G155: 195.65 | H155: 194.90 | I155: 198.10 | J155: 198.85 | K155: 199.70 | L155: 198 | M155: 196.4 | N155: 13020000 | O155: -2.10%
A156: 146 | B156: Infrastructure | C156: NCC | D156: 123.65 | E156: 124.07 | F156: 122.43 | G156: 121.22 | H156: 119.58 | I156: 125.28 | J156: 126.92 | K156: 128.13 | L156: 125.7 | M156: 122.85 | N156: 31432000 | O156: -5.87%
A157: 147 | B157: Others | C157: NESTLEIND | D157: 7596.10 | E157: 7594.52 | F157: 7572.03 | G157: 7547.97 | H157: 7525.48 | I157: 7618.58 | J157: 7641.07 | K157: 7665.13 | L157: 7617 | M157: 7570.45 | N157: 214800 | O157: -0.37%
A158: 148 | B158: Power | C158: NHPC | D158: 27.25 | E158: 27.22 | F158: 27.03 | G158: 26.82 | H158: 26.63 | I158: 27.43 | J158: 27.62 | K158: 27.83 | L158: 27.4 | M158: 27 | N158: 69390000 | O158: 8.81%
A159: 149 | B159: Technology | C159: NIITTECH | D159: 794.75 | E159: 785.38 | F159: 772.37 | G159: 749.98 | H159: 736.97 | I159: 807.77 | J159: 820.78 | K159: 843.17 | L159: 798.4 | M159: 763 | N159: 1638000 | O159: -12.01%
A160: 150 | B160: Metals | C160: NMDC | D160: 129.10 | E160: 129.60 | F160: 127.30 | G160: 125.50 | H160: 123.20 | I160: 131.40 | J160: 133.70 | K160: 135.50 | L160: 131.9 | M160: 127.8 | N160: 42198000 | O160: 0.87%
A161: 151 | B161: Power | C161: NTPC | D161: 162.30 | E161: 162.67 | F161: 161.28 | G161: 160.27 | H161: 158.88 | I161: 163.68 | J161: 165.07 | K161: 166.08 | L161: 164.05 | M161: 161.65 | N161: 31392000 | O161: -0.43%
A162: 152 | B162: Technology | C162: OFSS | D162: 4068.25 | E162: 4073.83 | F162: 4023.82 | G162: 3979.38 | H162: 3929.37 | I162: 4118.27 | J162: 4168.28 | K162: 4212.72 | L162: 4123.85 | M162: 4029.4 | N162: 125700 | O162: 3.33%
A163: 153 | B163: Oil_Gas | C163: OIL | D163: 342.80 | E163: 344.30 | F163: 339.70 | G163: 336.60 | H163: 332.00 | I163: 347.40 | J163: 352.00 | K163: 355.10 | L163: 348.9 | M163: 341.2 | N163: 2648954 | O163: -3.15%
A164: 154 | B164: Oil_Gas | C164: ONGC | D164: 190.00 | E164: 188.48 | F164: 186.37 | G164: 182.73 | H164: 180.62 | I164: 192.12 | J164: 194.23 | K164: 197.87 | L164: 190.6 | M164: 184.85 | N164: 39105000 | O164: -6.76%
A165: 155 | B165: Banking | C165: ORIENTBANK | D165: 106.70 | E165: 106.82 | F165: 104.73 | G165: 102.77 | H165: 100.68 | I165: 108.78 | J165: 110.87 | K165: 112.83 | L165: 108.9 | M165: 104.85 | N165: 17580000 | O165: 2.92%
A166: 156 | B166: Textile | C166: PAGEIND | D166: 22744.15 | E166: 22739.88 | F166: 22529.77 | G166: 22315.38 | H166: 22105.27 | I166: 22954.27 | J166: 23164.38 | K166: 23378.77 | L166: 22950 | M166: 22525.5 | N166: 40750 | O166: -4.23%
A167: 157 | B167: Others | C167: PCJEWELLER | D167: 346.55 | E167: 354.52 | F167: 335.08 | G167: 323.62 | H167: 304.18 | I167: 365.98 | J167: 385.42 | K167: 396.88 | L167: 373.95 | M167: 343.05 | N167: 8901000 | O167: -2.21%
A168: 158 | B168: Pharma | C168: PEL | D168: 2635.55 | E168: 2629.62 | F168: 2607.58 | G168: 2579.62 | H168: 2557.58 | I168: 2657.58 | J168: 2679.62 | K168: 2707.58 | L168: 2651.65 | M168: 2601.65 | N168: 1663114 | O168: -0.95%
A169: 159 | B169: Oil_Gas | C169: PETRONET | D169: 245.10 | E169: 245.12 | F169: 242.28 | G169: 239.47 | H169: 236.63 | I169: 247.93 | J169: 250.77 | K169: 253.58 | L169: 247.95 | M169: 242.3 | N169: 15024000 | O169: 2.98%
A170: 160 | B170: Finance | C170: PFC | D170: 104.85 | E170: 104.88 | F170: 103.42 | G170: 101.98 | H170: 100.52 | I170: 106.32 | J170: 107.78 | K170: 109.22 | L170: 106.35 | M170: 103.45 | N170: 78066000 | O170: 13.51%
A171: 161 | B171: FMCG | C171: PIDILITIND | D171: 901.05 | E171: 898.22 | F171: 891.43 | G171: 881.82 | H171: 875.03 | I171: 907.83 | J171: 914.62 | K171: 924.23 | L171: 905 | M171: 888.6 | N171: 1074000 | O171: -9.21%
A172: 162 | B172: Banking | C172: PNB | D172: 117.40 | E172: 117.52 | F172: 115.53 | G172: 113.67 | H172: 111.68 | I172: 119.38 | J172: 121.37 | K172: 123.23 | L172: 119.5 | M172: 115.65 | N172: 73404000 | O172: -3.65%
A173: 163 | B173: Power | C173: POWERGRID | D173: 194.10 | E173: 194.47 | F173: 193.13 | G173: 192.17 | H173: 190.83 | I173: 195.43 | J173: 196.77 | K173: 197.73 | L173: 195.8 | M173: 193.5 | N173: 27200000 | O173: -4.49%
A174: 164 | B174: Power | C174: PTC | D174: 98.65 | E174: 99.05 | F174: 97.45 | G174: 96.25 | H174: 94.65 | I174: 100.25 | J174: 101.85 | K174: 103.05 | L174: 100.65 | M174: 97.85 | N174: 23624000 | O174: 3.22%
A175: 165 | B175: Others | C175: PVR | D175: 1396.20 | E175: 1406.70 | F175: 1381.50 | G175: 1366.80 | H175: 1341.60 | I175: 1421.40 | J175: 1446.60 | K175: 1461.30 | L175: 1431.9 | M175: 1392 | N175: 547200 | O175: 0.66%
A176: 166 | B176: Cement | C176: RAMCOCEM | D176: 728.75 | E176: 726.60 | F176: 718.20 | G176: 707.65 | H176: 699.25 | I176: 737.15 | J176: 745.55 | K176: 756.10 | L176: 735 | M176: 716.05 | N176: 780800 | O176: 5.40%
A177: 167 | B177: Others | C177: RAYMOND | D177: 944.95 | E177: 950.18 | F177: 933.42 | G177: 921.88 | H177: 905.12 | I177: 961.72 | J177: 978.48 | K177: 990.02 | L177: 966.95 | M177: 938.65 | N177: 5097600 | O177: -0.70%
A178: 168 | B178: Banking | C178: RBLBANK | D178: 469.65 | E178: 468.60 | F178: 462.55 | G178: 455.45 | H178: 449.40 | I178: 475.70 | J178: 481.75 | K178: 488.85 | L178: 474.65 | M178: 461.5 | N178: 5445000 | O178: -2.42%
A179: 169 | B179: Telecom | C179: RCOM | D179: 28.10 | E179: 27.97 | F179: 27.58 | G179: 27.07 | H179: 26.68 | I179: 28.48 | J179: 28.87 | K179: 29.38 | L179: 28.35 | M179: 27.45 | N179: 93548000 | O179: -4.46%
A180: 170 | B180: Capital_Goods | C180: RNAVAL | D180: 38.50 | E180: 38.35 | F180: 37.70 | G180: 36.90 | H180: 36.25 | I180: 39.15 | J180: 39.80 | K180: 40.60 | L180: 39 | M180: 37.55 | N180: 41751000 | O180: 6.24%
A181: 171 | B181: Power | C181: RECLTD | D181: 137.70 | E181: 138.00 | F181: 136.70 | G181: 135.70 | H181: 134.40 | I181: 139.00 | J181: 140.30 | K181: 141.30 | L181: 139.3 | M181: 137 | N181: 48126000 | O181: 16.24%
A182: 172 | B182: Finance | C182: RELCAPITAL | D182: 467.35 | E182: 467.72 | F182: 458.33 | G182: 449.32 | H182: 439.93 | I182: 476.73 | J182: 486.12 | K182: 495.13 | L182: 477.1 | M182: 458.7 | N182: 13074750 | O182: 0.84%
A183: 173 | B183: Oil_Gas | C183: RELIANCE | D183: 928.35 | E183: 926.58 | F183: 922.47 | G183: 916.58 | H183: 912.47 | I183: 932.47 | J183: 936.58 | K183: 942.47 | L183: 930.7 | M183: 920.7 | N183: 46715000 | O183: 0.79%
A184: 174 | B184: Power | C184: RELINFRA | D184: 444.25 | E184: 443.93 | F184: 437.17 | G184: 430.08 | H184: 423.32 | I184: 451.02 | J184: 457.78 | K184: 464.87 | L184: 450.7 | M184: 436.85 | N184: 11141000 | O184: -0.90%
A185: 175 | B185: Others | C185: REPCOHOME | D185: 523.45 | E185: 526.05 | F185: 516.40 | G185: 509.35 | H185: 499.70 | I185: 533.10 | J185: 542.75 | K185: 549.80 | L185: 535.7 | M185: 519 | N185: 1318500 | O185: -0.07%
A186: 176 | B186: Power | C186: RPOWER | D186: 43.90 | E186: 43.92 | F186: 42.63 | G186: 41.37 | H186: 40.08 | I186: 45.18 | J186: 46.47 | K186: 47.73 | L186: 45.2 | M186: 42.65 | N186: 66014000 | O186: -5.65%
A187: 177 | B187: Metals | C187: SAIL | D187: 84.20 | E187: 85.05 | F187: 82.60 | G187: 81.00 | H187: 78.55 | I187: 86.65 | J187: 89.10 | K187: 90.70 | L187: 87.5 | M187: 83.45 | N187: 92196000 | O187: 3.61%
A188: 178 | B188: Banking | C188: SBIN | D188: 272.95 | E188: 271.33 | F188: 269.02 | G188: 265.08 | H188: 262.77 | I188: 275.27 | J188: 277.58 | K188: 281.52 | L188: 273.65 | M188: 267.4 | N188: 81333000 | O188: -5.86%
A189: 179 | B189: Cement | C189: SHREECEM | D189: 17009.10 | E189: 16973.33 | F189: 16866.77 | G189: 16724.43 | H189: 16617.87 | I189: 17115.67 | J189: 17222.23 | K189: 17364.57 | L189: 17079.9 | M189: 16831 | N189: 61700 | O189: -4.64%
A190: 180 | B190: Capital_Goods | C190: SIEMENS | D190: 1245.45 | E190: 1245.37 | F190: 1233.08 | G190: 1220.72 | H190: 1208.43 | I190: 1257.73 | J190: 1270.02 | K190: 1282.38 | L190: 1257.65 | M190: 1233 | N190: 775000 | O190: -1.96%
A191: 181 | B191: Banking | C191: SOUTHBANK | D191: 26.90 | E191: 26.90 | F191: 26.60 | G191: 26.30 | H191: 26.00 | I191: 27.20 | J191: 27.50 | K191: 27.80 | L191: 27.2 | M191: 26.6 | N191: 174951339 | O191: 0.28%
A192: 182 | B192: Others | C192: SREINFRA | D192: 77.65 | E192: 78.40 | F192: 76.00 | G192: 74.35 | H192: 71.95 | I192: 80.05 | J192: 82.45 | K192: 84.10 | L192: 80.8 | M192: 76.75 | N192: 19280000 | O192: -2.63%
A193: 183 | B193: Textile | C193: SRF | D193: 1882.15 | E193: 1886.72 | F193: 1870.43 | G193: 1858.72 | H193: 1842.43 | I193: 1898.43 | J193: 1914.72 | K193: 1926.43 | L193: 1903 | M193: 1875 | N193: 652000 | O193: 1.40%
A194: 184 | B194: Finance | C194: SRTRANSFIN | D194: 1263.75 | E194: 1273.70 | F194: 1246.45 | G194: 1229.15 | H194: 1201.90 | I194: 1291.00 | J194: 1318.25 | K194: 1335.55 | L194: 1300.95 | M194: 1256.4 | N194: 2965200 | O194: 3.15%
A195: 185 | B195: Pharma | C195: STAR | D195: 699.40 | E195: 706.88 | F195: 686.52 | G195: 673.63 | H195: 653.27 | I195: 719.77 | J195: 740.13 | K195: 753.02 | L195: 727.25 | M195: 694 | N195: 4258200 | O195: 3.48%
A196: 186 | B196: Pharma | C196: SUNPHARMA | D196: 525.25 | E196: 533.80 | F196: 503.20 | G196: 481.15 | H196: 450.55 | I196: 555.85 | J196: 586.45 | K196: 608.50 | L196: 564.4 | M196: 511.75 | N196: 56030700 | O196: 2.34%
A197: 187 | B197: Media | C197: SUNTV | D197: 930.35 | E197: 924.80 | F197: 916.70 | G197: 903.05 | H197: 894.95 | I197: 938.45 | J197: 946.55 | K197: 960.20 | L197: 932.9 | M197: 911.15 | N197: 4239000 | O197: -8.37%
A198: 188 | B198: Power | C198: SUZLON | D198: 12.95 | E198: 13.00 | F198: 12.85 | G198: 12.75 | H198: 12.60 | I198: 13.10 | J198: 13.25 | K198: 13.35 | L198: 13.15 | M198: 12.9 | N198: 460005000 | O198: 1.60%
A199: 189 | B199: Banking | C199: SYNDIBANK | D199: 58.85 | E199: 58.67 | F199: 57.98 | G199: 57.12 | H199: 56.43 | I199: 59.53 | J199: 60.22 | K199: 61.08 | L199: 59.35 | M199: 57.8 | N199: 32265000 | O199: -10.55%
A200: 190 | B200: Fertilisers | C200: TATACHEM | D200: 700.65 | E200: 701.85 | F200: 694.40 | G200: 688.15 | H200: 680.70 | I200: 708.10 | J200: 715.55 | K200: 721.80 | L200: 709.3 | M200: 695.6 | N200: 6733500 | O200: -4.89%
A201: 191 | B201: Telecom | C201: TATACOMM | D201: 625.10 | E201: 625.62 | F201: 616.98 | G201: 608.87 | H201: 600.23 | I201: 633.73 | J201: 642.37 | K201: 650.48 | L201: 634.25 | M201: 617.5 | N201: 7614400 | O201: -3.78%
A202: 192 | B202: Technology | C202: TATAELXSI | D202: 992.75 | E202: 993.10 | F202: 983.35 | G202: 973.95 | H202: 964.20 | I202: 1002.50 | J202: 1012.25 | K202: 1021.65 | L202: 1002.85 | M202: 983.7 | N202: 1613600 | O202: -6.58%
A203: 193 | B203: FMCG | C203: TATAGLOBAL | D203: 266.65 | E203: 265.83 | F203: 262.97 | G203: 259.28 | H203: 256.42 | I203: 269.52 | J203: 272.38 | K203: 276.07 | L203: 268.7 | M203: 262.15 | N203: 29781000 | O203: -0.05%
A204: 194 | B204: Automobile | C204: TATAMOTORS | D204: 365.10 | E204: 366.82 | F204: 361.13 | G204: 357.17 | H204: 351.48 | I204: 370.78 | J204: 376.47 | K204: 380.43 | L204: 372.5 | M204: 362.85 | N204: 77580000 | O204: 7.51%
A205: 195 | B205: Automobile | C205: TATAMTRDVR | D205: 204.40 | E205: 204.50 | F205: 202.90 | G205: 201.40 | H205: 199.80 | I205: 206.00 | J205: 207.60 | K205: 209.10 | L205: 206.1 | M205: 203 | N205: 32355000 | O205: 0.94%
A206: 196 | B206: Power | C206: TATAPOWER | D206: 85.95 | E206: 85.73 | F206: 84.92 | G206: 83.88 | H206: 83.07 | I206: 86.77 | J206: 87.58 | K206: 88.62 | L206: 86.55 | M206: 84.7 | N206: 69615000 | O206: 5.92%
... 37 more rows

Sheet Cash Intra
M5: Back to Main Page
A6: FOR INTRA DAY TRADING | K6: =Main!B10 -> 2018-02-22
A8: Sr.no | B8: Scrip | C8: CLOSE RATE | D8: Pivot Point | E8: Supports | H8: Resistances
C9: Point | E9: S1 | F9: S2 | G9: S3 | H9: R1 | I9: R2 | J9: R3 | K9: HIGH | L9: LOW | M9: Total Trade Quanity in Lakhs
A10: 1 | B10: Nifty 50 | C10: 10397.45 | D10: 10391.05 | E10: 10356.00 | F10: 10314.55 | G10: 10279.50 | H10: 10432.50 | I10: 10467.55 | J10: 10509.00 | K10: 10426.1 | L10: 10349.6
A11: 2 | B11: Nifty Bank | C11: 24936.7 | D11: 24910.92 | E11: 24822.13 | F11: 24707.57 | G11: 24618.78 | H11: 25025.48 | I11: 25114.27 | J11: 25228.83 | K11: 24999.7 | L11: 24796.35
A12: 3 | B12: Nifty CPSE | C12: 2598.1 | D12: 2589.07 | E12: 2575.28 | F12: 2552.47 | G12: 2538.68 | H12: 2611.88 | I12: 2625.67 | J12: 2648.48 | K12: 2602.85 | L12: 2566.25
A13: 4 | B13: Nifty Infra | C13: 3386.7 | D13: 3391.00 | E13: 3371.40 | F13: 3356.10 | G13: 3336.50 | H13: 3406.30 | I13: 3425.90 | J13: 3441.20 | K13: 3410.6 | L13: 3375.7
A14: 5 | B14: Nifty IT | C14: 12660.05 | D14: 12605.42 | E14: 12506.98 | F14: 12353.92 | G14: 12255.48 | H14: 12758.48 | I14: 12856.92 | J14: 13009.98 | K14: 12703.85 | L14: 12452.35
A15: 6 | B15: Nifty PSE | C15: 4051.7 | D15: 4049.85 | E15: 4022.75 | F15: 3993.80 | G15: 3966.70 | H15: 4078.80 | I15: 4105.90 | J15: 4134.85 | K15: 4076.95 | L15: 4020.9
A16: 7 | B16: Nifty Midcap 50 | C16: 5077.6 | D16: 5068.80 | E16: 5042.10 | F16: 5006.60 | G16: 4979.90 | H16: 5104.30 | I16: 5131.00 | J16: 5166.50 | K16: 5095.5 | L16: 5033.3
A17: 8 | B17: ABB | C17: 1511.4 | D17: 1517.50 | E17: 1500.05 | F17: 1488.70 | G17: 1471.25 | H17: 1528.85 | I17: 1546.30 | J17: 1557.65 | K17: 1534.95 | L17: 1506.15 | M17: 0.35217
A18: 9 | B18: ACC | C18: 1645.25 | D18: 1648.75 | E18: 1635.50 | F18: 1625.75 | G18: 1612.50 | H18: 1658.50 | I18: 1671.75 | J18: 1681.50 | K18: 1662 | L18: 1639 | M18: 3.22498
A19: 10 | B19: AIAENG | C19: 1461.45 | D19: 1447.80 | E19: 1429.65 | F19: 1397.85 | G19: 1379.70 | H19: 1479.60 | I19: 1497.75 | J19: 1529.55 | K19: 1465.95 | L19: 1416 | M19: 0.18004
A20: 11 | B20: AUBANK | C20: 579.8 | D20: 580.25 | E20: 575.55 | F20: 571.30 | G20: 566.60 | H20: 584.50 | I20: 589.20 | J20: 593.45 | K20: 584.95 | L20: 576 | M20: 0.50778
A21: 12 | B21: ADANIENT | C21: 197.4 | D21: 197.73 | E21: 194.97 | F21: 192.53 | G21: 189.77 | H21: 200.17 | I21: 202.93 | J21: 205.37 | K21: 200.5 | L21: 195.3 | M21: 41.52954
A22: 13 | B22: ADANIPORTS | C22: 395.6 | D22: 394.70 | E22: 390.65 | F22: 385.70 | G22: 381.65 | H22: 399.65 | I22: 403.70 | J22: 408.65 | K22: 398.75 | L22: 389.75 | M22: 18.00533
A23: 14 | B23: ADANIPOWER | C23: 31.35 | D23: 31.30 | E23: 30.95 | F23: 30.55 | G23: 30.20 | H23: 31.70 | I23: 32.05 | J23: 32.45 | K23: 31.65 | L23: 30.9 | M23: 60.96399
A24: 15 | B24: ABFRL | C24: 149.75 | D24: 150.43 | E24: 148.37 | F24: 146.98 | G24: 144.92 | H24: 151.82 | I24: 153.88 | J24: 155.27 | K24: 152.5 | L24: 149.05 | M24: 1.23154
A25: 16 | B25: AJANTPHARM | C25: 1356.45 | D25: 1344.25 | E25: 1323.50 | F25: 1290.55 | G25: 1269.80 | H25: 1377.20 | I25: 1397.95 | J25: 1430.90 | K25: 1365 | L25: 1311.3 | M25: 2.37837
A26: 17 | B26: ALKEM | C26: 2152.95 | D26: 2153.97 | E26: 2138.98 | F26: 2125.02 | G26: 2110.03 | H26: 2167.93 | I26: 2182.92 | J26: 2196.88 | K26: 2168.95 | L26: 2140 | M26: 0.06108
A27: 18 | B27: AMARAJABAT | C27: 795.25 | D27: 801.17 | E27: 786.88 | F27: 778.52 | G27: 764.23 | H27: 809.53 | I27: 823.82 | J27: 832.18 | K27: 815.45 | L27: 792.8 | M27: 2.70748
A28: 19 | B28: AMBUJACEM | C28: 261.7 | D28: 263.55 | E28: 258.25 | F28: 254.80 | G28: 249.50 | H28: 267.00 | I28: 272.30 | J28: 275.75 | K28: 268.85 | L28: 260.1 | M28: 64.98774
A29: 20 | B29: APOLLOHOSP | C29: 1211.2 | D29: 1202.07 | E29: 1185.13 | F29: 1159.07 | G29: 1142.13 | H29: 1228.13 | I29: 1245.07 | J29: 1271.13 | K29: 1219 | L29: 1176 | M29: 6.40761
A30: 21 | B30: APOLLOTYRE | C30: 262.15 | D30: 263.08 | E30: 258.17 | F30: 254.18 | G30: 249.27 | H30: 267.07 | I30: 271.98 | J30: 275.97 | K30: 268 | L30: 259.1 | M30: 19.35835
A31: 22 | B31: ARVIND | C31: 398.35 | D31: 396.65 | E31: 391.35 | F31: 384.35 | G31: 379.05 | H31: 403.65 | I31: 408.95 | J31: 415.95 | K31: 401.95 | L31: 389.65 | M31: 13.95861
A32: 23 | B32: ASHOKLEY | C32: 132.35 | D32: 133.07 | E32: 131.23 | F32: 130.12 | G32: 128.28 | H32: 134.18 | I32: 136.02 | J32: 137.13 | K32: 134.9 | L32: 131.95 | M32: 95.06894
A33: 24 | B33: ASIANPAINT | C33: 1127.2 | D33: 1125.15 | E33: 1117.05 | F33: 1106.90 | G33: 1098.80 | H33: 1135.30 | I33: 1143.40 | J33: 1153.55 | K33: 1133.25 | L33: 1115 | M33: 7.20563
A34: 25 | B34: AUROPHARMA | C34: 571 | D34: 570.90 | E34: 560.80 | F34: 550.60 | G34: 540.50 | H34: 581.10 | I34: 591.20 | J34: 601.40 | K34: 581 | L34: 560.7 | M34: 40.40988
A35: 26 | B35: DMART | C35: 1237.8 | D35: 1223.70 | E35: 1196.40 | F35: 1155.00 | G35: 1127.70 | H35: 1265.10 | I35: 1292.40 | J35: 1333.80 | K35: 1251 | L35: 1182.3 | M35: 12.09483
A36: 27 | B36: AXISBANK | C36: 535.8 | D36: 532.90 | E36: 527.30 | F36: 518.80 | G36: 513.20 | H36: 541.40 | I36: 547.00 | J36: 555.50 | K36: 538.5 | L36: 524.4 | M36: 46.38382
A37: 28 | B37: BAJAJ-AUTO | C37: 3012.6 | D37: 3032.42 | E37: 2983.28 | F37: 2953.97 | G37: 2904.83 | H37: 3061.73 | I37: 3110.87 | J37: 3140.18 | K37: 3081.55 | L37: 3003.1 | M37: 2.75688
A38: 29 | B38: BAJFINANCE | C38: 1596.45 | D38: 1613.92 | E38: 1569.83 | F38: 1543.22 | G38: 1499.13 | H38: 1640.53 | I38: 1684.62 | J38: 1711.23 | K38: 1658 | L38: 1587.3 | M38: 16.89744
A39: 30 | B39: BAJAJFINSV | C39: 4973.45 | D39: 4992.93 | E39: 4935.62 | F39: 4897.78 | G39: 4840.47 | H39: 5030.77 | I39: 5088.08 | J39: 5125.92 | K39: 5050.25 | L39: 4955.1 | M39: 1.00845
A40: 31 | B40: BALKRISIND | C40: 1103.45 | D40: 1105.88 | E40: 1090.57 | F40: 1077.68 | G40: 1062.37 | H40: 1118.77 | I40: 1134.08 | J40: 1146.97 | K40: 1121.2 | L40: 1093 | M40: 3.72221
A41: 32 | B41: BANKBARODA | C41: 145.9 | D41: 145.13 | E41: 143.07 | F41: 140.23 | G41: 138.17 | H41: 147.97 | I41: 150.03 | J41: 152.87 | K41: 147.2 | L41: 142.3 | M41: 135.11046
A42: 33 | B42: BANKINDIA | C42: 128.75 | D42: 129.20 | E42: 125.90 | F42: 123.05 | G42: 119.75 | H42: 132.05 | I42: 135.35 | J42: 138.20 | K42: 132.5 | L42: 126.35 | M42: 79.18645
A43: 34 | B43: BATAINDIA | C43: 704.65 | D43: 710.00 | E43: 696.60 | F43: 688.55 | G43: 675.15 | H43: 718.05 | I43: 731.45 | J43: 739.50 | K43: 723.4 | L43: 701.95 | M43: 3.21261
A44: 35 | B44: BERGEPAINT | C44: 246.35 | D44: 245.08 | E44: 242.27 | F44: 238.18 | G44: 235.37 | H44: 249.17 | I44: 251.98 | J44: 256.07 | K44: 247.9 | L44: 241 | M44: 2.56005
A45: 36 | B45: BEL | C45: 150.85 | D45: 151.88 | E45: 149.02 | F45: 147.18 | G45: 144.32 | H45: 153.72 | I45: 156.58 | J45: 158.42 | K45: 154.75 | L45: 150.05 | M45: 39.70545
A46: 37 | B46: BHARATFIN | C46: 969.2 | D46: 976.65 | E46: 957.75 | F46: 946.30 | G46: 927.40 | H46: 988.10 | I46: 1007.00 | J46: 1018.45 | K46: 995.55 | L46: 965.2 | M46: 15.87155
A47: 38 | B47: BHARATFORG | C47: 757.55 | D47: 751.55 | E47: 741.25 | F47: 724.95 | G47: 714.65 | H47: 767.85 | I47: 778.15 | J47: 794.45 | K47: 761.85 | L47: 735.25 | M47: 12.13985
A48: 39 | B48: BHEL | C48: 91.7 | D48: 92.18 | E48: 90.42 | F48: 89.13 | G48: 87.37 | H48: 93.47 | I48: 95.23 | J48: 96.52 | K48: 93.95 | L48: 90.9 | M48: 61.27936
A49: 40 | B49: BPCL | C49: 447.55 | D49: 448.60 | E49: 439.05 | F49: 430.55 | G49: 421.00 | H49: 457.10 | I49: 466.65 | J49: 475.15 | K49: 458.15 | L49: 440.1 | M49: 91.63043
A50: 41 | B50: BHARTIARTL | C50: 419.65 | D50: 419.83 | E50: 417.17 | F50: 414.68 | G50: 412.02 | H50: 422.32 | I50: 424.98 | J50: 427.47 | K50: 422.5 | L50: 417.35 | M50: 42.64637
A51: 42 | B51: INFRATEL | C51: 338.05 | D51: 336.68 | E51: 333.87 | F51: 329.68 | G51: 326.87 | H51: 340.87 | I51: 343.68 | J51: 347.87 | K51: 339.5 | L51: 332.5 | M51: 21.92907
A52: 43 | B52: BIOCON | C52: 579.65 | D52: 572.55 | E52: 560.30 | F52: 540.95 | G52: 528.70 | H52: 591.90 | I52: 604.15 | J52: 623.50 | K52: 584.8 | L52: 553.2 | M52: 58.59856
A53: 44 | B53: BOSCHLTD | C53: 19160.05 | D53: 19251.57 | E53: 19008.53 | F53: 18857.02 | G53: 18613.98 | H53: 19403.08 | I53: 19646.12 | J53: 19797.63 | K53: 19494.6 | L53: 19100.05 | M53: 0.13402
A54: 45 | B54: BRITANNIA | C54: 4769.75 | D54: 4765.42 | E54: 4743.93 | F54: 4718.12 | G54: 4696.63 | H54: 4791.23 | I54: 4812.72 | J54: 4838.53 | K54: 4786.9 | L54: 4739.6 | M54: 1.23451
A55: 46 | B55: CRISIL | C55: 1921.45 | D55: 1940.38 | E55: 1900.07 | F55: 1878.68 | G55: 1838.37 | H55: 1961.77 | I55: 2002.08 | J55: 2023.47 | K55: 1980.7 | L55: 1919 | M55: 0.32046
A56: 47 | B56: CADILAHC | C56: 411.15 | D56: 409.62 | E56: 405.83 | F56: 400.52 | G56: 396.73 | H56: 414.93 | I56: 418.72 | J56: 424.03 | K56: 413.4 | L56: 404.3 | M56: 8.12011
A57: 48 | B57: CANBK | C57: 311.7 | D57: 310.23 | E57: 305.47 | F57: 299.23 | G57: 294.47 | H57: 316.47 | I57: 321.23 | J57: 327.47 | K57: 315 | L57: 304 | M57: 33.81221
A58: 49 | B58: CASTROLIND | C58: 193.8 | D58: 192.60 | E58: 191.20 | F58: 188.60 | G58: 187.20 | H58: 195.20 | I58: 196.60 | J58: 199.20 | K58: 194 | L58: 190 | M58: 7.16724
A59: 50 | B59: CENTRALBK | C59: 66.3 | D59: 66.50 | E59: 65.30 | F59: 64.30 | G59: 63.10 | H59: 67.50 | I59: 68.70 | J59: 69.70 | K59: 67.7 | L59: 65.5 | M59: 2.48234
A60: 51 | B60: CENTURYTEX | C60: 1171.25 | D60: 1180.45 | E60: 1152.80 | F60: 1134.35 | G60: 1106.70 | H60: 1198.90 | I60: 1226.55 | J60: 1245.00 | K60: 1208.1 | L60: 1162 | M60: 7.20044
A61: 52 | B61: CHOLAFIN | C61: 1381.6 | D61: 1364.20 | E61: 1341.40 | F61: 1301.20 | G61: 1278.40 | H61: 1404.40 | I61: 1427.20 | J61: 1467.40 | K61: 1387 | L61: 1324 | M61: 2.89354
A62: 53 | B62: CIPLA | C62: 597.25 | D62: 598.08 | E62: 588.42 | F62: 579.58 | G62: 569.92 | H62: 606.92 | I62: 616.58 | J62: 625.42 | K62: 607.75 | L62: 589.25 | M62: 14.09752
A63: 54 | B63: COALINDIA | C63: 310.55 | D63: 309.23 | E63: 306.47 | F63: 302.38 | G63: 299.62 | H63: 313.32 | I63: 316.08 | J63: 320.17 | K63: 312 | L63: 305.15 | M63: 53.99556
A64: 55 | B64: COLPAL | C64: 1080.75 | D64: 1078.93 | E64: 1068.92 | F64: 1057.08 | G64: 1047.07 | H64: 1090.77 | I64: 1100.78 | J64: 1112.62 | K64: 1088.95 | L64: 1067.1 | M64: 4.4362
A65: 56 | B65: CONCOR | C65: 1308.9 | D65: 1300.95 | E65: 1284.20 | F65: 1259.50 | G65: 1242.75 | H65: 1325.65 | I65: 1342.40 | J65: 1367.10 | K65: 1317.7 | L65: 1276.25 | M65: 2.03255
A66: 57 | B66: COROMANDEL | C66: 507.85 | D66: 508.15 | E66: 500.70 | F66: 493.55 | G66: 486.10 | H66: 515.30 | I66: 522.75 | J66: 529.90 | K66: 515.6 | L66: 501 | M66: 0.46571
A67: 58 | B67: CROMPTON | C67: 235 | D67: 234.90 | E67: 232.00 | F67: 229.00 | G67: 226.10 | H67: 237.90 | I67: 240.80 | J67: 243.80 | K67: 237.8 | L67: 231.9 | M67: 25.62862
A68: 59 | B68: CUMMINSIND | C68: 842.85 | D68: 845.62 | E68: 835.23 | F68: 827.62 | G68: 817.23 | H68: 853.23 | I68: 863.62 | J68: 871.23 | K68: 856 | L68: 838 | M68: 0.67869
A69: 60 | B69: DLF | C69: 221 | D69: 222.20 | E69: 217.40 | F69: 213.80 | G69: 209.00 | H69: 225.80 | I69: 230.60 | J69: 234.20 | K69: 227 | L69: 218.6 | M69: 59.96226
A70: 61 | B70: DABUR | C70: 334.5 | D70: 336.97 | E70: 330.83 | F70: 327.17 | G70: 321.03 | H70: 340.63 | I70: 346.77 | J70: 350.43 | K70: 343.1 | L70: 333.3 | M70: 13.12888
A71: 62 | B71: DALMIABHA | C71: 2829.2 | D71: 2835.58 | E71: 2811.17 | F71: 2793.13 | G71: 2768.72 | H71: 2853.62 | I71: 2878.03 | J71: 2896.07 | K71: 2860 | L71: 2817.55 | M71: 0.64077
A72: 63 | B72: DHFL | C72: 557.35 | D72: 552.48 | E72: 544.97 | F72: 532.58 | G72: 525.07 | H72: 564.87 | I72: 572.38 | J72: 584.77 | K72: 560 | L72: 540.1 | M72: 29.34005
A73: 64 | B73: DISHTV | C73: 72.9 | D73: 72.62 | E73: 71.88 | F73: 70.87 | G73: 70.13 | H73: 73.63 | I73: 74.37 | J73: 75.38 | K73: 73.35 | L73: 71.6 | M73: 20.53745
A74: 65 | B74: DIVISLAB | C74: 1006.75 | D74: 1009.58 | E74: 994.47 | F74: 982.18 | G74: 967.07 | H74: 1021.87 | I74: 1036.98 | J74: 1049.27 | K74: 1024.7 | L74: 997.3 | M74: 6.28446
A75: 66 | B75: LALPATHLAB | C75: 905.1 | D75: 905.45 | E75: 900.90 | F75: 896.70 | G75: 892.15 | H75: 909.65 | I75: 914.20 | J75: 918.40 | K75: 910 | L75: 901.25 | M75: 0.30252
A76: 67 | B76: DRREDDY | C76: 2165.9 | D76: 2169.55 | E76: 2137.10 | F76: 2108.30 | G76: 2075.85 | H76: 2198.35 | I76: 2230.80 | J76: 2259.60 | K76: 2202 | L76: 2140.75 | M76: 4.98005
A77: 68 | B77: EDELWEISS | C77: 258.85 | D77: 256.67 | E77: 252.83 | F77: 246.82 | G77: 242.98 | H77: 262.68 | I77: 266.52 | J77: 272.53 | K77: 260.5 | L77: 250.65 | M77: 15.53544
A78: 69 | B78: EICHERMOT | C78: 27365.75 | D78: 27296.45 | E78: 27112.90 | F78: 26860.05 | G78: 26676.50 | H78: 27549.30 | I78: 27732.85 | J78: 27985.70 | K78: 27480 | L78: 27043.6 | M78: 0.36682
A79: 70 | B79: EMAMILTD | C79: 1053.5 | D79: 1051.90 | E79: 1043.70 | F79: 1033.90 | G79: 1025.70 | H79: 1061.70 | I79: 1069.90 | J79: 1079.70 | K79: 1060.1 | L79: 1042.1 | M79: 1.3191
A80: 71 | B80: ENDURANCE | C80: 1284.65 | D80: 1287.53 | E80: 1269.17 | F80: 1253.68 | G80: 1235.32 | H80: 1303.02 | I80: 1321.38 | J80: 1336.87 | K80: 1305.9 | L80: 1272.05 | M80: 0.57364
A81: 72 | B81: ENGINERSIN | C81: 163.55 | D81: 164.93 | E81: 160.87 | F81: 158.18 | G81: 154.12 | H81: 167.62 | I81: 171.68 | J81: 174.37 | K81: 169 | L81: 162.25 | M81: 26.9531
A82: 73 | B82: EXIDEIND | C82: 211 | D82: 211.23 | E82: 209.32 | F82: 207.63 | G82: 205.72 | H82: 212.92 | I82: 214.83 | J82: 216.52 | K82: 213.15 | L82: 209.55 | M82: 8.17084
A83: 74 | B83: FEDERALBNK | C83: 92 | D83: 92.12 | E83: 91.28 | F83: 90.57 | G83: 89.73 | H83: 92.83 | I83: 93.67 | J83: 94.38 | K83: 92.95 | L83: 91.4 | M83: 70.95263
A84: 75 | B84: GAIL | C84: 466.1 | D84: 466.43 | E84: 463.07 | F84: 460.03 | G84: 456.67 | H84: 469.47 | I84: 472.83 | J84: 475.87 | K84: 469.8 | L84: 463.4 | M84: 23.22768
A85: 76 | B85: GMRINFRA | C85: 17.3 | D85: 17.48 | E85: 17.02 | F85: 16.73 | G85: 16.27 | H85: 17.77 | I85: 18.23 | J85: 18.52 | K85: 17.95 | L85: 17.2 | M85: 303.44685
A86: 77 | B86: GSKCONS | C86: 6477.15 | D86: 6495.32 | E86: 6436.83 | F86: 6396.52 | G86: 6338.03 | H86: 6535.63 | I86: 6594.12 | J86: 6634.43 | K86: 6553.8 | L86: 6455 | M86: 0.05841
A87: 78 | B87: GLAXO | C87: 2388.9 | D87: 2394.07 | E87: 2371.08 | F87: 2353.27 | G87: 2330.28 | H87: 2411.88 | I87: 2434.87 | J87: 2452.68 | K87: 2417.05 | L87: 2376.25 | M87: 0.11251
A88: 79 | B88: GLENMARK | C88: 524.95 | D88: 524.82 | E88: 521.63 | F88: 518.32 | G88: 515.13 | H88: 528.13 | I88: 531.32 | J88: 534.63 | K88: 528 | L88: 521.5 | M88: 5.59394
A89: 80 | B89: GODREJCP | C89: 1057.2 | D89: 1056.95 | E89: 1050.70 | F89: 1044.20 | G89: 1037.95 | H89: 1063.45 | I89: 1069.70 | J89: 1076.20 | K89: 1063.2 | L89: 1050.45 | M89: 3.48258
A90: 81 | B90: GODREJIND | C90: 540.7 | D90: 541.12 | E90: 537.23 | F90: 533.77 | G90: 529.88 | H90: 544.58 | I90: 548.47 | J90: 551.93 | K90: 545 | L90: 537.65 | M90: 1.56765
A91: 82 | B91: GRUH | C91: 545.75 | D91: 535.33 | E91: 510.87 | F91: 475.98 | G91: 451.52 | H91: 570.22 | I91: 594.68 | J91: 629.57 | K91: 559.8 | L91: 500.45 | M91: 14.01361
A92: 83 | B92: GPPL | C92: 142.7 | D92: 142.88 | E92: 141.57 | F92: 140.43 | G92: 139.12 | H92: 144.02 | I92: 145.33 | J92: 146.47 | K92: 144.2 | L92: 141.75 | M92: 1.13136
A93: 84 | B93: GSPL | C93: 198.4 | D93: 198.00 | E93: 196.30 | F93: 194.20 | G93: 192.50 | H93: 200.10 | I93: 201.80 | J93: 203.90 | K93: 199.7 | L93: 195.9 | M93: 1.46272
A94: 85 | B94: HCLTECH | C94: 942.9 | D94: 934.23 | E94: 920.67 | F94: 898.43 | G94: 884.87 | H94: 956.47 | I94: 970.03 | J94: 992.27 | K94: 947.8 | L94: 912 | M94: 27.84756
A95: 86 | B95: HDFCBANK | C95: 1857.4 | D95: 1859.38 | E95: 1850.22 | F95: 1843.03 | G95: 1833.87 | H95: 1866.57 | I95: 1875.73 | J95: 1882.92 | K95: 1868.55 | L95: 1852.2 | M95: 6.88268
A96: 87 | B96: HAVELLS | C96: 506.35 | D96: 506.05 | E96: 500.50 | F96: 494.65 | G96: 489.10 | H96: 511.90 | I96: 517.45 | J96: 523.30 | K96: 511.6 | L96: 500.2 | M96: 7.20502
A97: 88 | B97: HEROMOTOCO | C97: 3490.75 | D97: 3489.52 | E97: 3461.23 | F97: 3431.72 | G97: 3403.43 | H97: 3519.03 | I97: 3547.32 | J97: 3576.83 | K97: 3517.8 | L97: 3460 | M97: 2.66352
A98: 89 | B98: HEXAWARE | C98: 345.85 | D98: 342.73 | E98: 337.72 | F98: 329.58 | G98: 324.57 | H98: 350.87 | I98: 355.88 | J98: 364.02 | K98: 347.75 | L98: 334.6 | M98: 21.65646
A99: 90 | B99: HINDALCO | C99: 240.65 | D99: 243.40 | E99: 236.00 | F99: 231.35 | G99: 223.95 | H99: 248.05 | I99: 255.45 | J99: 260.10 | K99: 250.8 | L99: 238.75 | M99: 119.01519
A100: 91 | B100: HINDPETRO | C100: 386.9 | D100: 383.87 | E100: 379.73 | F100: 372.57 | G100: 368.43 | H100: 391.03 | I100: 395.17 | J100: 402.33 | K100: 388 | L100: 376.7 | M100: 27.89103
A101: 92 | B101: HINDUNILVR | C101: 1330.6 | D101: 1330.87 | E101: 1322.73 | F101: 1314.87 | G101: 1306.73 | H101: 1338.73 | I101: 1346.87 | J101: 1354.73 | K101: 1339 | L101: 1323 | M101: 14.06451
A102: 93 | B102: HINDZINC | C102: 316.2 | D102: 316.88 | E102: 314.52 | F102: 312.83 | G102: 310.47 | H102: 318.57 | I102: 320.93 | J102: 322.62 | K102: 319.25 | L102: 315.2 | M102: 34.48007
A103: 94 | B103: HUDCO | C103: 79.1 | D103: 79.62 | E103: 78.33 | F103: 77.57 | G103: 76.28 | H103: 80.38 | I103: 81.67 | J103: 82.43 | K103: 80.9 | L103: 78.85 | M103: 8.68966
A104: 95 | B104: HDFC | C104: 1824.8 | D104: 1824.50 | E104: 1816.30 | F104: 1807.80 | G104: 1799.60 | H104: 1833.00 | I104: 1841.20 | J104: 1849.70 | K104: 1832.7 | L104: 1816 | M104: 37.95216
A105: 96 | B105: ITC | C105: 268.2 | D105: 266.87 | E105: 264.78 | F105: 261.37 | G105: 259.28 | H105: 270.28 | I105: 272.37 | J105: 275.78 | K105: 268.95 | L105: 263.45 | M105: 105.55155
A106: 97 | B106: ICICIBANK | C106: 319.2 | D106: 318.53 | E106: 316.37 | F106: 313.53 | G106: 311.37 | H106: 321.37 | I106: 323.53 | J106: 326.37 | K106: 320.7 | L106: 315.7 | M106: 99.74873
A107: 98 | B107: ICICIPRULI | C107: 409.05 | D107: 407.20 | E107: 403.50 | F107: 397.95 | G107: 394.25 | H107: 412.75 | I107: 416.45 | J107: 422.00 | K107: 410.9 | L107: 401.65 | M107: 4.92741
A108: 99 | B108: IDBI | C108: 70.3 | D108: 68.98 | E108: 66.77 | F108: 63.23 | G108: 61.02 | H108: 72.52 | I108: 74.73 | J108: 78.27 | K108: 71.2 | L108: 65.45 | M108: 195.09732
A109: 100 | B109: IDFCBANK | C109: 52.35 | D109: 52.38 | E109: 51.97 | F109: 51.58 | G109: 51.17 | H109: 52.77 | I109: 53.18 | J109: 53.57 | K109: 52.8 | L109: 52 | M109: 35.2059
A110: 101 | B110: IDFC | C110: 52.5 | D110: 52.48 | E110: 52.12 | F110: 51.73 | G110: 51.37 | H110: 52.87 | I110: 53.23 | J110: 53.62 | K110: 52.85 | L110: 52.1 | M110: 23.96417
A111: 102 | B111: IRB | C111: 221.55 | D111: 221.27 | E111: 218.03 | F111: 214.52 | G111: 211.28 | H111: 224.78 | I111: 228.02 | J111: 231.53 | K111: 224.5 | L111: 217.75 | M111: 11.74499
A112: 103 | B112: IDEA | C112: 83.1 | D112: 83.52 | E112: 82.33 | F112: 81.57 | G112: 80.38 | H112: 84.28 | I112: 85.47 | J112: 86.23 | K112: 84.7 | L112: 82.75 | M112: 70.65196
A113: 104 | B113: IBULHSGFIN | C113: 1244.05 | D113: 1240.85 | E113: 1231.05 | F113: 1218.05 | G113: 1208.25 | H113: 1253.85 | I113: 1263.65 | J113: 1276.65 | K113: 1250.65 | L113: 1227.85 | M113: 11.94393
A114: 105 | B114: INDIANB | C114: 326.45 | D114: 325.22 | E114: 317.73 | F114: 309.02 | G114: 301.53 | H114: 333.93 | I114: 341.42 | J114: 350.13 | K114: 332.7 | L114: 316.5 | M114: 19.6166
A115: 106 | B115: INDHOTEL | C115: 132.65 | D115: 133.83 | E115: 130.82 | F115: 128.98 | G115: 125.97 | H115: 135.67 | I115: 138.68 | J115: 140.52 | K115: 136.85 | L115: 132 | M115: 8.99724
A116: 107 | B116: IOC | C116: 368.5 | D116: 367.60 | E116: 363.40 | F116: 358.30 | G116: 354.10 | H116: 372.70 | I116: 376.90 | J116: 382.00 | K116: 371.8 | L116: 362.5 | M116: 43.96885
A117: 108 | B117: IGL | C117: 293.9 | D117: 295.83 | E117: 290.12 | F117: 286.33 | G117: 280.62 | H117: 299.62 | I117: 305.33 | J117: 309.12 | K117: 301.55 | L117: 292.05 | M117: 19.54906
A118: 109 | B118: INDUSINDBK | C118: 1594.25 | D118: 1606.75 | E118: 1577.50 | F118: 1560.75 | G118: 1531.50 | H118: 1623.50 | I118: 1652.75 | J118: 1669.50 | K118: 1636 | L118: 1590 | M118: 14.25276
A119: 110 | B119: NAUKRI | C119: 1174.55 | D119: 1186.42 | E119: 1151.63 | F119: 1128.72 | G119: 1093.93 | H119: 1209.33 | I119: 1244.12 | J119: 1267.03 | K119: 1221.2 | L119: 1163.5 | M119: 0.65482
A120: 111 | B120: INFY | C120: 1147.4 | D120: 1146.43 | E120: 1140.97 | F120: 1134.53 | G120: 1129.07 | H120: 1152.87 | I120: 1158.33 | J120: 1164.77 | K120: 1151.9 | L120: 1140 | M120: 68.85679
A121: 112 | B121: INDIGO | C121: 1274 | D121: 1273.68 | E121: 1261.37 | F121: 1248.73 | G121: 1236.42 | H121: 1286.32 | I121: 1298.63 | J121: 1311.27 | K121: 1286 | L121: 1261.05 | M121: 5.92221
A122: 113 | B122: IPCALAB | C122: 640.05 | D122: 637.45 | E122: 629.90 | F122: 619.75 | G122: 612.20 | H122: 647.60 | I122: 655.15 | J122: 665.30 | K122: 645 | L122: 627.3 | M122: 4.26141
A123: 114 | B123: JSWENERGY | C123: 79.3 | D123: 79.75 | E123: 78.55 | F123: 77.80 | G123: 76.60 | H123: 80.50 | I123: 81.70 | J123: 82.45 | K123: 80.95 | L123: 79 | M123: 10.87538
A124: 115 | B124: JSWSTEEL | C124: 298.3 | D124: 300.48 | E124: 292.82 | F124: 287.33 | G124: 279.67 | H124: 305.97 | I124: 313.63 | J124: 319.12 | K124: 308.15 | L124: 295 | M124: 59.47856
A125: 116 | B125: JINDALSTEL | C125: 247.3 | D125: 248.38 | E125: 241.97 | F125: 236.63 | G125: 230.22 | H125: 253.72 | I125: 260.13 | J125: 265.47 | K125: 254.8 | L125: 243.05 | M125: 86.18601
A126: 117 | B126: JUBLFOOD | C126: 1990.3 | D126: 1991.10 | E126: 1965.30 | F126: 1940.30 | G126: 1914.50 | H126: 2016.10 | I126: 2041.90 | J126: 2066.90 | K126: 2016.9 | L126: 1966.1 | M126: 5.33111
A127: 118 | B127: JUBILANT | C127: 987.95 | D127: 973.30 | E127: 948.80 | F127: 909.65 | G127: 885.15 | H127: 1012.45 | I127: 1036.95 | J127: 1076.10 | K127: 997.8 | L127: 934.15 | M127: 11.02329
A128: 119 | B128: KARURVYSYA | C128: 111.05 | D128: 110.83 | E128: 109.87 | F128: 108.68 | G128: 107.72 | H128: 112.02 | I128: 112.98 | J128: 114.17 | K128: 111.8 | L128: 109.65 | M128: 7.93979
A129: 120 | B129: KOTAKBANK | C129: 1055.05 | D129: 1052.80 | E129: 1044.80 | F129: 1034.55 | G129: 1026.55 | H129: 1063.05 | I129: 1071.05 | J129: 1081.30 | K129: 1060.8 | L129: 1042.55 | M129: 35.72028
A130: 121 | B130: L&TFH | C130: 158.1 | D130: 157.85 | E130: 155.40 | F130: 152.70 | G130: 150.25 | H130: 160.55 | I130: 163.00 | J130: 165.70 | K130: 160.3 | L130: 155.15 | M130: 26.909
A131: 122 | B131: LICHSGFIN | C131: 511.55 | D131: 511.87 | E131: 505.93 | F131: 500.32 | G131: 494.38 | H131: 517.48 | I131: 523.42 | J131: 529.03 | K131: 517.8 | L131: 506.25 | M131: 11.72281
A132: 123 | B132: LT | C132: 1282.8 | D132: 1287.13 | E132: 1274.67 | F132: 1266.53 | G132: 1254.07 | H132: 1295.27 | I132: 1307.73 | J132: 1315.87 | K132: 1299.6 | L132: 1279 | M132: 15.84305
A133: 124 | B133: LUPIN | C133: 813.95 | D133: 817.80 | E133: 807.65 | F133: 801.35 | G133: 791.20 | H133: 824.10 | I133: 834.25 | J133: 840.55 | K133: 827.95 | L133: 811.5 | M133: 11.8481
A134: 125 | B134: MRF | C134: 71787.05 | D134: 71496.33 | E134: 70993.67 | F134: 70200.28 | G134: 69697.62 | H134: 72289.72 | I134: 72792.38 | J134: 73585.77 | K134: 71999 | L134: 70702.95 | M134: 0.05414
A135: 126 | B135: MGL | C135: 993.8 | D135: 995.32 | E135: 983.58 | F135: 973.37 | G135: 961.63 | H135: 1005.53 | I135: 1017.27 | J135: 1027.48 | K135: 1007.05 | L135: 985.1 | M135: 0.90849
A136: 127 | B136: M&MFIN | C136: 435.8 | D136: 437.43 | E136: 431.87 | F136: 427.93 | G136: 422.37 | H136: 441.37 | I136: 446.93 | J136: 450.87 | K136: 443 | L136: 433.5 | M136: 11.24121
A137: 128 | B137: M&M | C137: 708.4 | D137: 708.47 | E137: 700.93 | F137: 693.47 | G137: 685.93 | H137: 715.93 | I137: 723.47 | J137: 730.93 | K137: 716 | L137: 701 | M137: 22.90218
A138: 129 | B138: MANAPPURAM | C138: 105.8 | D138: 106.27 | E138: 104.53 | F138: 103.27 | G138: 101.53 | H138: 107.53 | I138: 109.27 | J138: 110.53 | K138: 108 | L138: 105 | M138: 34.30466
A139: 130 | B139: MRPL | C139: 118.75 | D139: 118.55 | E139: 117.70 | F139: 116.65 | G139: 115.80 | H139: 119.60 | I139: 120.45 | J139: 121.50 | K139: 119.4 | L139: 117.5 | M139: 8.73414
A140: 131 | B140: MARICO | C140: 306.95 | D140: 307.37 | E140: 303.73 | F140: 300.52 | G140: 296.88 | H140: 310.58 | I140: 314.22 | J140: 317.43 | K140: 311 | L140: 304.15 | M140: 4.80362
A141: 132 | B141: MARUTI | C141: 8782.75 | D141: 8761.98 | E141: 8728.97 | F141: 8675.18 | G141: 8642.17 | H141: 8815.77 | I141: 8848.78 | J141: 8902.57 | K141: 8795 | L141: 8708.2 | M141: 4.71756
A142: 133 | B142: MFSL | C142: 499.7 | D142: 499.48 | E142: 495.47 | F142: 491.23 | G142: 487.22 | H142: 503.72 | I142: 507.73 | J142: 511.97 | K142: 503.5 | L142: 495.25 | M142: 4.6236
A143: 134 | B143: MINDTREE | C143: 726.15 | D143: 716.82 | E143: 705.33 | F143: 684.52 | G143: 673.03 | H143: 737.63 | I143: 749.12 | J143: 769.93 | K143: 728.3 | L143: 696 | M143: 21.96558
A144: 135 | B144: MOTHERSUMI | C144: 314.1 | D144: 318.33 | E144: 308.67 | F144: 303.23 | G144: 293.57 | H144: 323.77 | I144: 333.43 | J144: 338.87 | K144: 328 | L144: 312.9 | M144: 62.39954
A145: 136 | B145: MPHASIS | C145: 886.35 | D145: 889.83 | E145: 870.67 | F145: 854.98 | G145: 835.82 | H145: 905.52 | I145: 924.68 | J145: 940.37 | K145: 909 | L145: 874.15 | M145: 3.4831
A146: 137 | B146: MUTHOOTFIN | C146: 377.45 | D146: 378.68 | E146: 372.77 | F146: 368.08 | G146: 362.17 | H146: 383.37 | I146: 389.28 | J146: 393.97 | K146: 384.6 | L146: 374 | M146: 4.6698
A147: 138 | B147: NATCOPHARM | C147: 780.1 | D147: 781.43 | E147: 772.87 | F147: 765.63 | G147: 757.07 | H147: 788.67 | I147: 797.23 | J147: 804.47 | K147: 790 | L147: 774.2 | M147: 5.82511
A148: 139 | B148: NBCC | C148: 197.65 | D148: 197.70 | E148: 196.45 | F148: 195.25 | G148: 194.00 | H148: 198.90 | I148: 200.15 | J148: 201.35 | K148: 198.95 | L148: 196.5 | M148: 9.78644
A149: 140 | B149: NHPC | C149: 27.25 | D149: 27.27 | E149: 27.03 | F149: 26.82 | G149: 26.58 | H149: 27.48 | I149: 27.72 | J149: 27.93 | K149: 27.5 | L149: 27.05 | M149: 41.71371
A150: 141 | B150: NMDC | C150: 128.95 | D150: 129.62 | E150: 127.23 | F150: 125.52 | G150: 123.13 | H150: 131.33 | I150: 133.72 | J150: 135.43 | K150: 132 | L150: 127.9 | M150: 38.02685
A151: 142 | B151: NTPC | C151: 162.3 | D151: 162.93 | E151: 160.87 | F151: 159.43 | G151: 157.37 | H151: 164.37 | I151: 166.43 | J151: 167.87 | K151: 165 | L151: 161.5 | M151: 77.63625
A152: 143 | B152: NATIONALUM | C152: 66.45 | D152: 66.80 | E152: 65.40 | F152: 64.35 | G152: 62.95 | H152: 67.85 | I152: 69.25 | J152: 70.30 | K152: 68.2 | L152: 65.75 | M152: 55.37317
A153: 144 | B153: OBEROIRLTY | C153: 466.65 | D153: 470.12 | E153: 460.73 | F153: 454.82 | G153: 445.43 | H153: 476.03 | I153: 485.42 | J153: 491.33 | K153: 479.5 | L153: 464.2 | M153: 0.69996
A154: 145 | B154: ONGC | C154: 190.15 | D154: 188.55 | E154: 186.30 | F154: 182.45 | G154: 180.20 | H154: 192.40 | I154: 194.65 | J154: 198.50 | K154: 190.8 | L154: 184.7 | M154: 46.51807
A155: 146 | B155: OIL | C155: 343.15 | D155: 344.48 | E155: 339.97 | F155: 336.78 | G155: 332.27 | H155: 347.67 | I155: 352.18 | J155: 355.37 | K155: 349 | L155: 341.3 | M155: 10.65339
A156: 147 | B156: OFSS | C156: 4072.75 | D156: 4067.58 | E156: 4027.17 | F156: 3981.58 | G156: 3941.17 | H156: 4113.17 | I156: 4153.58 | J156: 4199.17 | K156: 4108 | L156: 4022 | M156: 0.82197
A157: 148 | B157: PCJEWELLER | C157: 346 | D157: 354.43 | E157: 334.87 | F157: 323.73 | G157: 304.17 | H157: 365.57 | I157: 385.13 | J157: 396.27 | K157: 374 | L157: 343.3 | M157: 90.37849
A158: 149 | B158: PIIND | C158: 842.7 | D158: 841.88 | E158: 832.57 | F158: 822.43 | G158: 813.12 | H158: 852.02 | I158: 861.33 | J158: 871.47 | K158: 851.2 | L158: 831.75 | M158: 0.24372
A159: 150 | B159: PNBHOUSING | C159: 1207.95 | D159: 1206.98 | E159: 1201.97 | F159: 1195.98 | G159: 1190.97 | H159: 1212.97 | I159: 1217.98 | J159: 1223.97 | K159: 1212 | L159: 1201 | M159: 1.04665
A160: 151 | B160: PAGEIND | C160: 22809.2 | D160: 22780.37 | E160: 22560.93 | F160: 22312.67 | G160: 22093.23 | H160: 23028.63 | I160: 23248.07 | J160: 23496.33 | K160: 22999.8 | L160: 22532.1 | M160: 0.10008
A161: 152 | B161: PETRONET | C161: 245.1 | D161: 244.92 | E161: 241.98 | F161: 238.87 | G161: 235.93 | H161: 248.03 | I161: 250.97 | J161: 254.08 | K161: 247.85 | L161: 241.8 | M161: 22.86228
A162: 153 | B162: PIDILITIND | C162: 903.15 | D162: 900.20 | E162: 890.05 | F162: 876.95 | G162: 866.80 | H162: 913.30 | I162: 923.45 | J162: 936.55 | K162: 910.35 | L162: 887.1 | M162: 7.39323
A163: 154 | B163: PEL | C163: 2639.95 | D163: 2633.95 | E163: 2611.00 | F163: 2582.05 | G163: 2559.10 | H163: 2662.90 | I163: 2685.85 | J163: 2714.80 | K163: 2656.9 | L163: 2605 | M163: 1.00388
A164: 155 | B164: PFC | C164: 104.6 | D164: 104.77 | E164: 103.13 | F164: 101.67 | G164: 100.03 | H164: 106.23 | I164: 107.87 | J164: 109.33 | K164: 106.4 | L164: 103.3 | M164: 50.85209
A165: 156 | B165: POWERGRID | C165: 193.95 | D165: 194.38 | E165: 192.87 | F165: 191.78 | G165: 190.27 | H165: 195.47 | I165: 196.98 | J165: 198.07 | K165: 195.9 | L165: 193.3 | M165: 52.07855
A166: 157 | B166: PRESTIGE | C166: 309.4 | D166: 307.80 | E166: 303.60 | F166: 297.80 | G166: 293.60 | H166: 313.60 | I166: 317.80 | J166: 323.60 | K166: 312 | L166: 302 | M166: 8.68106
A167: 158 | B167: PGHH | C167: 9394.2 | D167: 9363.40 | E167: 9326.80 | F167: 9259.40 | G167: 9222.80 | H167: 9430.80 | I167: 9467.40 | J167: 9534.80 | K167: 9400 | L167: 9296 | M167: 0.00936
A168: 159 | B168: PNB | C168: 117.3 | D168: 117.45 | E168: 115.40 | F168: 113.50 | G168: 111.45 | H168: 119.35 | I168: 121.40 | J168: 123.30 | K168: 119.5 | L168: 115.55 | M168: 675.41786
A169: 160 | B169: RBLBANK | C169: 470.85 | D169: 468.63 | E169: 462.77 | F169: 454.68 | G169: 448.82 | H169: 476.72 | I169: 482.58 | J169: 490.67 | K169: 474.5 | L169: 460.55 | M169: 8.21992
A170: 161 | B170: RAJESHEXPO | C170: 799.05 | D170: 798.55 | E170: 793.10 | F170: 787.15 | G170: 781.70 | H170: 804.50 | I170: 809.95 | J170: 815.90 | K170: 804 | L170: 792.6 | M170: 1.42379
A171: 162 | B171: RELCAPITAL | C171: 466.9 | D171: 467.85 | E171: 458.15 | F171: 449.40 | G171: 439.70 | H171: 476.60 | I171: 486.30 | J171: 495.05 | K171: 477.55 | L171: 459.1 | M171: 41.14236
A172: 163 | B172: RCOM | C172: 28 | D172: 27.98 | E172: 27.57 | F172: 27.13 | G172: 26.72 | H172: 28.42 | I172: 28.83 | J172: 29.27 | K172: 28.4 | L172: 27.55 | M172: 533.66023
A173: 164 | B173: RELIANCE | C173: 929.35 | D173: 928.00 | E173: 923.50 | F173: 917.65 | G173: 913.15 | H173: 933.85 | I173: 938.35 | J173: 944.20 | K173: 932.5 | L173: 922.15 | M173: 54.4823
A174: 165 | B174: RELINFRA | C174: 443.4 | D174: 444.05 | E174: 436.65 | F174: 429.90 | G174: 422.50 | H174: 450.80 | I174: 458.20 | J174: 464.95 | K174: 451.45 | L174: 437.3 | M174: 18.25773
A175: 166 | B175: RPOWER | C175: 43.85 | D175: 43.87 | E175: 42.63 | F175: 41.42 | G175: 40.18 | H175: 45.08 | I175: 46.32 | J175: 47.53 | K175: 45.1 | L175: 42.65 | M175: 89.07241
A176: 167 | B176: RECLTD | C176: 137.75 | D176: 138.22 | E176: 136.63 | F176: 135.52 | G176: 133.93 | H176: 139.33 | I176: 140.92 | J176: 142.03 | K176: 139.8 | L176: 137.1 | M176: 23.31192
A177: 168 | B177: SRF | C177: 1878.7 | D177: 1884.95 | E177: 1866.95 | F177: 1855.20 | G177: 1837.20 | H177: 1896.70 | I177: 1914.70 | J177: 1926.45 | K177: 1902.95 | L177: 1873.2 | M177: 0.56383
A178: 169 | B178: SHREECEM | C178: 17004.5 | D178: 16987.08 | E178: 16889.47 | F178: 16774.43 | G178: 16676.82 | H178: 17102.12 | I178: 17199.73 | J178: 17314.77 | K178: 17084.7 | L178: 16872.05 | M178: 0.05665
A179: 170 | B179: SRTRANSFIN | C179: 1261.85 | D179: 1273.48 | E179: 1243.37 | F179: 1224.88 | G179: 1194.77 | H179: 1291.97 | I179: 1322.08 | J179: 1340.57 | K179: 1303.6 | L179: 1255 | M179: 6.2025
A180: 171 | B180: SIEMENS | C180: 1244.2 | D180: 1243.93 | E180: 1230.37 | F180: 1216.53 | G180: 1202.97 | H180: 1257.77 | I180: 1271.33 | J180: 1285.17 | K180: 1257.5 | L180: 1230.1 | M180: 1.08583
A181: 172 | B181: SBIN | C181: 273.3 | D181: 271.60 | E181: 269.10 | F181: 264.90 | G181: 262.40 | H181: 275.80 | I181: 278.30 | J181: 282.50 | K181: 274.1 | L181: 267.4 | M181: 237.14454
A182: 173 | B182: SAIL | C182: 84.15 | D182: 84.98 | E182: 82.52 | F182: 80.88 | G182: 78.42 | H182: 86.62 | I182: 89.08 | J182: 90.72 | K182: 87.45 | L182: 83.35 | M182: 110.68826
A183: 174 | B183: SPARC | C183: 419.65 | D183: 421.62 | E183: 406.23 | F183: 392.82 | G183: 377.43 | H183: 435.03 | I183: 450.42 | J183: 463.83 | K183: 437 | L183: 408.2 | M183: 3.14702
A184: 175 | B184: SUNPHARMA | C184: 525.75 | D184: 533.35 | E184: 503.70 | F184: 481.65 | G184: 452.00 | H184: 555.40 | I184: 585.05 | J184: 607.10 | K184: 563 | L184: 511.3 | M184: 218.9895
A185: 176 | B185: SUNTV | C185: 932.85 | D185: 926.82 | E185: 915.73 | F185: 898.62 | G185: 887.53 | H185: 943.93 | I185: 955.02 | J185: 972.13 | K185: 937.9 | L185: 909.7 | M185: 16.71516
A186: 177 | B186: SUZLON | C186: 12.9 | D186: 12.98 | E186: 12.82 | F186: 12.73 | G186: 12.57 | H186: 13.07 | I186: 13.23 | J186: 13.32 | K186: 13.15 | L186: 12.9 | M186: 234.64838
A187: 178 | B187: SYNDIBANK | C187: 58.8 | D187: 58.63 | E187: 57.97 | F187: 57.13 | G187: 56.47 | H187: 59.47 | I187: 60.13 | J187: 60.97 | K187: 59.3 | L187: 57.8 | M187: 44.58776
A188: 179 | B188: SYNGENE | C188: 580.85 | D188: 584.97 | E188: 572.83 | F188: 564.82 | G188: 552.68 | H188: 592.98 | I188: 605.12 | J188: 613.13 | K188: 597.1 | L188: 576.95 | M188: 2.78351
A189: 180 | B189: TV18BRDCST | C189: 55.1 | D189: 55.25 | E189: 54.65 | F189: 54.20 | G189: 53.60 | H189: 55.70 | I189: 56.30 | J189: 56.75 | K189: 55.85 | L189: 54.8 | M189: 23.06512
A190: 181 | B190: TVSMOTOR | C190: 637.25 | D190: 640.10 | E190: 625.20 | F190: 613.15 | G190: 598.25 | H190: 652.15 | I190: 667.05 | J190: 679.10 | K190: 655 | L190: 628.05 | M190: 10.24992
A191: 182 | B191: TATACHEM | C191: 699.75 | D191: 701.57 | E191: 693.78 | F191: 687.82 | G191: 680.03 | H191: 707.53 | I191: 715.32 | J191: 721.28 | K191: 709.35 | L191: 695.6 | M191: 7.52851
A192: 183 | B192: TATACOMM | C192: 625.5 | D192: 625.83 | E192: 616.77 | F192: 608.03 | G192: 598.97 | H192: 634.57 | I192: 643.63 | J192: 652.37 | K192: 634.9 | L192: 617.1 | M192: 2.22232
A193: 184 | B193: TCS | C193: 3042.3 | D193: 3021.65 | E193: 2980.70 | F193: 2919.10 | G193: 2878.15 | H193: 3083.25 | I193: 3124.20 | J193: 3185.80 | K193: 3062.6 | L193: 2960.05 | M193: 15.44614
A194: 185 | B194: TATAGLOBAL | C194: 266.6 | D194: 265.88 | E194: 262.92 | F194: 259.23 | G194: 256.27 | H194: 269.57 | I194: 272.53 | J194: 276.22 | K194: 268.85 | L194: 262.2 | M194: 36.38163
A195: 186 | B195: TATAMTRDVR | C195: 204.05 | D195: 204.58 | E195: 202.47 | F195: 200.88 | G195: 198.77 | H195: 206.17 | I195: 208.28 | J195: 209.87 | K195: 206.7 | L195: 203 | M195: 40.42539
A196: 187 | B196: TATAMOTORS | C196: 364.45 | D196: 366.60 | E196: 360.70 | F196: 356.95 | G196: 351.05 | H196: 370.35 | I196: 376.25 | J196: 380.00 | K196: 372.5 | L196: 362.85 | M196: 86.40166
A197: 188 | B197: TATAPOWER | C197: 86.35 | D197: 86.02 | E197: 84.93 | F197: 83.52 | G197: 82.43 | H197: 87.43 | I197: 88.52 | J197: 89.93 | K197: 87.1 | L197: 84.6 | M197: 61.05693
A198: 189 | B198: TATASTEEL | C198: 640.95 | D198: 643.17 | E198: 630.78 | F198: 620.62 | G198: 608.23 | H198: 653.33 | I198: 665.72 | J198: 675.88 | K198: 655.55 | L198: 633 | M198: 103.07539
A199: 190 | B199: TECHM | C199: 595.2 | D199: 586.58 | E199: 575.17 | F199: 555.13 | G199: 543.72 | H199: 606.62 | I199: 618.03 | J199: 638.07 | K199: 598 | L199: 566.55 | M199: 55.90807
A200: 191 | B200: RAMCOCEM | C200: 730.7 | D200: 729.30 | E200: 719.60 | F200: 708.50 | G200: 698.80 | H200: 740.40 | I200: 750.10 | J200: 761.20 | K200: 739 | L200: 718.2 | M200: 1.3739
A201: 192 | B201: TITAN | C201: 822.9 | D201: 827.72 | E201: 813.93 | F201: 804.97 | G201: 791.18 | H201: 836.68 | I201: 850.47 | J201: 859.43 | K201: 841.5 | L201: 818.75 | M201: 20.67029
A202: 193 | B202: TORNTPHARM | C202: 1354 | D202: 1360.55 | E202: 1338.10 | F202: 1322.20 | G202: 1299.75 | H202: 1376.45 | I202: 1398.90 | J202: 1414.80 | K202: 1383 | L202: 1344.65 | M202: 0.9452
A203: 194 | B203: TORNTPOWER | C203: 260.65 | D203: 261.67 | E203: 257.23 | F203: 253.82 | G203: 249.38 | H203: 265.08 | I203: 269.52 | J203: 272.93 | K203: 266.1 | L203: 258.25 | M203: 13.72569
A204: 195 | B204: UPL | C204: 688.25 | D204: 690.87 | E204: 680.03 | F204: 671.82 | G204: 660.98 | H204: 699.08 | I204: 709.92 | J204: 718.13 | K204: 701.7 | L204: 682.65 | M204: 22.79472
A205: 196 | B205: ULTRACEMCO | C205: 4131.55 | D205: 4141.52 | E205: 4110.08 | F205: 4088.62 | G205: 4057.18 | H205: 4162.98 | I205: 4194.42 | J205: 4215.88 | K205: 4172.95 | L205: 4120.05 | M205: 1.70432
... 30 more rows

Sheet MidCap Intra
L5: Back To Main Page
A6: FOR INTRA DAY TRADING | K6: =Main!B10 -> 2018-02-22
A9: Sr.no | B9: Scrip | C9: CLOSE RATE | D9: Pivot Point | E9: Supports | H9: Resistances
C10: Point | E10: S1 | F10: S2 | G10: S3 | H10: R1 | I10: R2 | J10: R3 | K10: HIGH | L10: LOW | M10: Total Trade Quanity in Lakhs
A11: 1 | B11: 3MINDIA | C11: 20543.45 | D11: 20626.48 | E11: 20346.97 | F11: 20150.48 | G11: 19870.97 | H11: 20822.97 | I11: 21102.48 | J11: 21298.97 | K11: 20906 | L11: 20430 | M11: 0.01446
A12: 2 | B12: 8KMILES | C12: 766.9 | D12: 772.97 | E12: 757.93 | F12: 748.97 | G12: 733.93 | H12: 781.93 | I12: 796.97 | J12: 805.93 | K12: 788 | L12: 764 | M12: 1.205
A13: 3 | B13: ABB | C13: 1511.4 | D13: 1517.50 | E13: 1500.05 | F13: 1488.70 | G13: 1471.25 | H13: 1528.85 | I13: 1546.30 | J13: 1557.65 | K13: 1534.95 | L13: 1506.15 | M13: 0.35217
A14: 4 | B14: ACC | C14: 1645.25 | D14: 1648.75 | E14: 1635.50 | F14: 1625.75 | G14: 1612.50 | H14: 1658.50 | I14: 1671.75 | J14: 1681.50 | K14: 1662 | L14: 1639 | M14: 3.22498
A15: 5 | B15: AIAENG | C15: 1461.45 | D15: 1447.80 | E15: 1429.65 | F15: 1397.85 | G15: 1379.70 | H15: 1479.60 | I15: 1497.75 | J15: 1529.55 | K15: 1465.95 | L15: 1416 | M15: 0.18004
A16: 6 | B16: APLAPOLLO | C16: 2010.75 | D16: 2010.58 | E16: 1976.17 | F16: 1941.58 | G16: 1907.17 | H16: 2045.17 | I16: 2079.58 | J16: 2114.17 | K16: 2045 | L16: 1976 | M16: 0.09061
A17: 7 | B17: AUBANK | C17: 579.8 | D17: 580.25 | E17: 575.55 | F17: 571.30 | G17: 566.60 | H17: 584.50 | I17: 589.20 | J17: 593.45 | K17: 584.95 | L17: 576 | M17: 0.50778
A18: 8 | B18: AARTIIND | C18: 1167.25 | D18: 1168.40 | E18: 1156.90 | F18: 1146.55 | G18: 1135.05 | H18: 1178.75 | I18: 1190.25 | J18: 1200.60 | K18: 1179.9 | L18: 1158.05 | M18: 0.19661
A19: 9 | B19: ABAN | C19: 168.75 | D19: 169.82 | E19: 166.13 | F19: 163.52 | G19: 159.83 | H19: 172.43 | I19: 176.12 | J19: 178.73 | K19: 173.5 | L19: 167.2 | M19: 6.23932
A20: 10 | B20: ADANIENT | C20: 197.4 | D20: 197.73 | E20: 194.97 | F20: 192.53 | G20: 189.77 | H20: 200.17 | I20: 202.93 | J20: 205.37 | K20: 200.5 | L20: 195.3 | M20: 41.52954
A21: 11 | B21: ADANIPORTS | C21: 395.6 | D21: 394.70 | E21: 390.65 | F21: 385.70 | G21: 381.65 | H21: 399.65 | I21: 403.70 | J21: 408.65 | K21: 398.75 | L21: 389.75 | M21: 18.00533
A22: 12 | B22: ADANIPOWER | C22: 31.35 | D22: 31.30 | E22: 30.95 | F22: 30.55 | G22: 30.20 | H22: 31.70 | I22: 32.05 | J22: 32.45 | K22: 31.65 | L22: 30.9 | M22: 60.96399
A23: 13 | B23: ADANITRANS | C23: 203.45 | D23: 202.90 | E23: 197.80 | F23: 192.15 | G23: 187.05 | H23: 208.55 | I23: 213.65 | J23: 219.30 | K23: 208 | L23: 197.25 | M23: 8.91682
A24: 14 | B24: ABFRL | C24: 149.75 | D24: 150.43 | E24: 148.37 | F24: 146.98 | G24: 144.92 | H24: 151.82 | I24: 153.88 | J24: 155.27 | K24: 152.5 | L24: 149.05 | M24: 1.23154
A25: 15 | B25: ADVENZYMES | C25: 233.95 | D25: 235.20 | E25: 231.60 | F25: 229.25 | G25: 225.65 | H25: 237.55 | I25: 241.15 | J25: 243.50 | K25: 238.8 | L25: 232.85 | M25: 2.32761
A26: 16 | B26: AEGISCHEM | C26: 256.65 | D26: 255.25 | E26: 250.60 | F26: 244.55 | G26: 239.90 | H26: 261.30 | I26: 265.95 | J26: 272.00 | K26: 259.9 | L26: 249.2 | M26: 0.90818
A27: 17 | B27: AHLUCONT | C27: 357.2 | D27: 356.07 | E27: 346.13 | F27: 335.07 | G27: 325.13 | H27: 367.13 | I27: 377.07 | J27: 388.13 | K27: 366 | L27: 345 | M27: 0.47473
A28: 18 | B28: AJANTPHARM | C28: 1356.45 | D28: 1344.25 | E28: 1323.50 | F28: 1290.55 | G28: 1269.80 | H28: 1377.20 | I28: 1397.95 | J28: 1430.90 | K28: 1365 | L28: 1311.3 | M28: 2.37837
A29: 19 | B29: AKZOINDIA | C29: 1800.65 | D29: 1797.62 | E29: 1788.03 | F29: 1775.42 | G29: 1765.83 | H29: 1810.23 | I29: 1819.82 | J29: 1832.43 | K29: 1807.2 | L29: 1785 | M29: 0.01464
A30: 20 | B30: APLLTD | C30: 560.85 | D30: 564.38 | E30: 552.77 | F30: 544.68 | G30: 533.07 | H30: 572.47 | I30: 584.08 | J30: 592.17 | K30: 576 | L30: 556.3 | M30: 0.281
A31: 21 | B31: ALKEM | C31: 2152.95 | D31: 2153.97 | E31: 2138.98 | F31: 2125.02 | G31: 2110.03 | H31: 2167.93 | I31: 2182.92 | J31: 2196.88 | K31: 2168.95 | L31: 2140 | M31: 0.06108
A32: 22 | B32: ALBK | C32: 52.45 | D32: 52.10 | E32: 51.30 | F32: 50.15 | G32: 49.35 | H32: 53.25 | I32: 54.05 | J32: 55.20 | K32: 52.9 | L32: 50.95 | M32: 65.42974
A33: 23 | B33: ALLCARGO | C33: 177 | D33: 177.12 | E33: 174.28 | F33: 171.57 | G33: 168.73 | H33: 179.83 | I33: 182.67 | J33: 185.38 | K33: 179.95 | L33: 174.4 | M33: 1.4817
A34: 24 | B34: AMARAJABAT | C34: 795.25 | D34: 801.17 | E34: 786.88 | F34: 778.52 | G34: 764.23 | H34: 809.53 | I34: 823.82 | J34: 832.18 | K34: 815.45 | L34: 792.8 | M34: 2.70748
A35: 25 | B35: AMBUJACEM | C35: 261.7 | D35: 263.55 | E35: 258.25 | F35: 254.80 | G35: 249.50 | H35: 267.00 | I35: 272.30 | J35: 275.75 | K35: 268.85 | L35: 260.1 | M35: 64.98774
A36: 26 | B36: ANDHRABANK | C36: 45.7 | D36: 46.03 | E36: 44.92 | F36: 44.13 | G36: 43.02 | H36: 46.82 | I36: 47.93 | J36: 48.72 | K36: 47.15 | L36: 45.25 | M36: 26.17792
A37: 27 | B37: APARINDS | C37: 772.05 | D37: 775.00 | E37: 764.15 | F37: 756.25 | G37: 745.40 | H37: 782.90 | I37: 793.75 | J37: 801.65 | K37: 785.85 | L37: 767.1 | M37: 0.14841
A38: 28 | B38: APOLLOHOSP | C38: 1211.2 | D38: 1202.07 | E38: 1185.13 | F38: 1159.07 | G38: 1142.13 | H38: 1228.13 | I38: 1245.07 | J38: 1271.13 | K38: 1219 | L38: 1176 | M38: 6.40761
A39: 29 | B39: APOLLOTYRE | C39: 262.15 | D39: 263.08 | E39: 258.17 | F39: 254.18 | G39: 249.27 | H39: 267.07 | I39: 271.98 | J39: 275.97 | K39: 268 | L39: 259.1 | M39: 19.35835
A40: 30 | B40: ARVIND | C40: 398.35 | D40: 396.65 | E40: 391.35 | F40: 384.35 | G40: 379.05 | H40: 403.65 | I40: 408.95 | J40: 415.95 | K40: 401.95 | L40: 389.65 | M40: 13.95861
A41: 31 | B41: ASHOKLEY | C41: 132.35 | D41: 133.07 | E41: 131.23 | F41: 130.12 | G41: 128.28 | H41: 134.18 | I41: 136.02 | J41: 137.13 | K41: 134.9 | L41: 131.95 | M41: 95.06894
A42: 32 | B42: ASHOKA | C42: 220.6 | D42: 221.42 | E42: 218.18 | F42: 215.77 | G42: 212.53 | H42: 223.83 | I42: 227.07 | J42: 229.48 | K42: 224.65 | L42: 219 | M42: 0.493
A43: 33 | B43: ASIANPAINT | C43: 1127.2 | D43: 1125.15 | E43: 1117.05 | F43: 1106.90 | G43: 1098.80 | H43: 1135.30 | I43: 1143.40 | J43: 1153.55 | K43: 1133.25 | L43: 1115 | M43: 7.20563
A44: 34 | B44: ASTRAZEN | C44: 1023.95 | D44: 1020.23 | E44: 1005.02 | F44: 986.08 | G44: 970.87 | H44: 1039.17 | I44: 1054.38 | J44: 1073.32 | K44: 1035.45 | L44: 1001.3 | M44: 0.04515
A45: 35 | B45: ASTRAL | C45: 761.05 | D45: 764.48 | E45: 748.97 | F45: 736.88 | G45: 721.37 | H45: 776.57 | I45: 792.08 | J45: 804.17 | K45: 780 | L45: 752.4 | M45: 0.105
A46: 36 | B46: ATUL | C46: 2623.4 | D46: 2621.58 | E46: 2553.82 | F46: 2484.23 | G46: 2416.47 | H46: 2691.17 | I46: 2758.93 | J46: 2828.52 | K46: 2689.35 | L46: 2552 | M46: 0.30021
A47: 37 | B47: AUROPHARMA | C47: 571 | D47: 570.90 | E47: 560.80 | F47: 550.60 | G47: 540.50 | H47: 581.10 | I47: 591.20 | J47: 601.40 | K47: 581 | L47: 560.7 | M47: 40.40988
A48: 38 | B48: AVANTIFEED | C48: 2344.5 | D48: 2335.93 | E48: 2312.62 | F48: 2280.73 | G48: 2257.42 | H48: 2367.82 | I48: 2391.13 | J48: 2423.02 | K48: 2359.25 | L48: 2304.05 | M48: 0.46082
A49: 39 | B49: DMART | C49: 1237.8 | D49: 1223.70 | E49: 1196.40 | F49: 1155.00 | G49: 1127.70 | H49: 1265.10 | I49: 1292.40 | J49: 1333.80 | K49: 1251 | L49: 1182.3 | M49: 12.09483
A50: 40 | B50: AXISBANK | C50: 535.8 | D50: 532.90 | E50: 527.30 | F50: 518.80 | G50: 513.20 | H50: 541.40 | I50: 547.00 | J50: 555.50 | K50: 538.5 | L50: 524.4 | M50: 46.38382
A51: 41 | B51: BASF | C51: 2002.7 | D51: 2017.20 | E51: 1979.95 | F51: 1957.20 | G51: 1919.95 | H51: 2039.95 | I51: 2077.20 | J51: 2099.95 | K51: 2054.45 | L51: 1994.45 | M51: 0.07715
A52: 42 | B52: BEML | C52: 1204.6 | D52: 1212.20 | E52: 1186.40 | F52: 1168.20 | G52: 1142.40 | H52: 1230.40 | I52: 1256.20 | J52: 1274.40 | K52: 1238 | L52: 1194 | M52: 4.90979
A53: 43 | B53: BFUTILITIE | C53: 439.95 | D53: 441.30 | E53: 435.15 | F53: 430.35 | G53: 424.20 | H53: 446.10 | I53: 452.25 | J53: 457.05 | K53: 447.45 | L53: 436.5 | M53: 2.23528
A54: 44 | B54: BGRENERGY | C54: 118.75 | D54: 118.95 | E54: 117.80 | F54: 116.85 | G54: 115.70 | H54: 119.90 | I54: 121.05 | J54: 122.00 | K54: 120.1 | L54: 118 | M54: 0.35923
A55: 45 | B55: BSE | C55: 806.35 | D55: 811.82 | E55: 799.63 | F55: 792.92 | G55: 780.73 | H55: 818.53 | I55: 830.72 | J55: 837.43 | K55: 824 | L55: 805.1 | M55: 1.50326
A56: 46 | B56: BAJAJ-AUTO | C56: 3012.6 | D56: 3032.42 | E56: 2983.28 | F56: 2953.97 | G56: 2904.83 | H56: 3061.73 | I56: 3110.87 | J56: 3140.18 | K56: 3081.55 | L56: 3003.1 | M56: 2.75688
A57: 47 | B57: BAJAJCORP | C57: 485.65 | D57: 484.48 | E57: 480.97 | F57: 476.28 | G57: 472.77 | H57: 489.17 | I57: 492.68 | J57: 497.37 | K57: 488 | L57: 479.8 | M57: 0.16023
A58: 48 | B58: BAJAJELEC | C58: 502.85 | D58: 502.27 | E58: 497.13 | F58: 491.42 | G58: 486.28 | H58: 507.98 | I58: 513.12 | J58: 518.83 | K58: 507.4 | L58: 496.55 | M58: 1.04814
A59: 49 | B59: BAJFINANCE | C59: 1596.45 | D59: 1613.92 | E59: 1569.83 | F59: 1543.22 | G59: 1499.13 | H59: 1640.53 | I59: 1684.62 | J59: 1711.23 | K59: 1658 | L59: 1587.3 | M59: 16.89744
A60: 50 | B60: BAJAJFINSV | C60: 4973.45 | D60: 4992.93 | E60: 4935.62 | F60: 4897.78 | G60: 4840.47 | H60: 5030.77 | I60: 5088.08 | J60: 5125.92 | K60: 5050.25 | L60: 4955.1 | M60: 1.00845
A61: 51 | B61: BAJAJHIND | C61: 12.95 | D61: 12.95 | E61: 12.90 | F61: 12.85 | G61: 12.80 | H61: 13.00 | I61: 13.05 | J61: 13.10 | K61: 13 | L61: 12.9 | M61: 11.04527
A62: 52 | B62: BAJAJHLDNG | C62: 2718.65 | D62: 2718.72 | E62: 2702.43 | F62: 2686.22 | G62: 2669.93 | H62: 2734.93 | I62: 2751.22 | J62: 2767.43 | K62: 2735 | L62: 2702.5 | M62: 0.19881
A63: 53 | B63: BALKRISIND | C63: 1103.45 | D63: 1105.88 | E63: 1090.57 | F63: 1077.68 | G63: 1062.37 | H63: 1118.77 | I63: 1134.08 | J63: 1146.97 | K63: 1121.2 | L63: 1093 | M63: 3.72221
A64: 54 | B64: BALLARPUR | C64: 13.35 | D64: 13.48 | E64: 13.17 | F64: 12.98 | G64: 12.67 | H64: 13.67 | I64: 13.98 | J64: 14.17 | K64: 13.8 | L64: 13.3 | M64: 8.36515
A65: 55 | B65: BALMLAWRIE | C65: 229.9 | D65: 230.15 | E65: 227.90 | F65: 225.90 | G65: 223.65 | H65: 232.15 | I65: 234.40 | J65: 236.40 | K65: 232.4 | L65: 228.15 | M65: 0.43836
A66: 56 | B66: BALRAMCHIN | C66: 114.35 | D66: 116.00 | E66: 111.00 | F66: 107.65 | G66: 102.65 | H66: 119.35 | I66: 124.35 | J66: 127.70 | K66: 121 | L66: 112.65 | M66: 64.99289
A67: 57 | B67: BANKBARODA | C67: 145.9 | D67: 145.13 | E67: 143.07 | F67: 140.23 | G67: 138.17 | H67: 147.97 | I67: 150.03 | J67: 152.87 | K67: 147.2 | L67: 142.3 | M67: 135.11046
A68: 58 | B68: BANKINDIA | C68: 128.75 | D68: 129.20 | E68: 125.90 | F68: 123.05 | G68: 119.75 | H68: 132.05 | I68: 135.35 | J68: 138.20 | K68: 132.5 | L68: 126.35 | M68: 79.18645
A69: 59 | B69: BATAINDIA | C69: 704.65 | D69: 710.00 | E69: 696.60 | F69: 688.55 | G69: 675.15 | H69: 718.05 | I69: 731.45 | J69: 739.50 | K69: 723.4 | L69: 701.95 | M69: 3.21261
A70: 60 | B70: BERGEPAINT | C70: 246.35 | D70: 245.08 | E70: 242.27 | F70: 238.18 | G70: 235.37 | H70: 249.17 | I70: 251.98 | J70: 256.07 | K70: 247.9 | L70: 241 | M70: 2.56005
A71: 61 | B71: BEL | C71: 150.85 | D71: 151.88 | E71: 149.02 | F71: 147.18 | G71: 144.32 | H71: 153.72 | I71: 156.58 | J71: 158.42 | K71: 154.75 | L71: 150.05 | M71: 39.70545
A72: 62 | B72: BHARATFIN | C72: 969.2 | D72: 976.65 | E72: 957.75 | F72: 946.30 | G72: 927.40 | H72: 988.10 | I72: 1007.00 | J72: 1018.45 | K72: 995.55 | L72: 965.2 | M72: 15.87155
A73: 63 | B73: BHARATFORG | C73: 757.55 | D73: 751.55 | E73: 741.25 | F73: 724.95 | G73: 714.65 | H73: 767.85 | I73: 778.15 | J73: 794.45 | K73: 761.85 | L73: 735.25 | M73: 12.13985
A74: 64 | B74: BHEL | C74: 91.7 | D74: 92.18 | E74: 90.42 | F74: 89.13 | G74: 87.37 | H74: 93.47 | I74: 95.23 | J74: 96.52 | K74: 93.95 | L74: 90.9 | M74: 61.27936
A75: 65 | B75: BPCL | C75: 447.55 | D75: 448.60 | E75: 439.05 | F75: 430.55 | G75: 421.00 | H75: 457.10 | I75: 466.65 | J75: 475.15 | K75: 458.15 | L75: 440.1 | M75: 91.63043
A76: 66 | B76: BHARTIARTL | C76: 419.65 | D76: 419.83 | E76: 417.17 | F76: 414.68 | G76: 412.02 | H76: 422.32 | I76: 424.98 | J76: 427.47 | K76: 422.5 | L76: 417.35 | M76: 42.64637
A77: 67 | B77: INFRATEL | C77: 338.05 | D77: 336.68 | E77: 333.87 | F77: 329.68 | G77: 326.87 | H77: 340.87 | I77: 343.68 | J77: 347.87 | K77: 339.5 | L77: 332.5 | M77: 21.92907
A78: 68 | B78: BHUSANSTL | C78: 49.35 | D78: 50.12 | E78: 47.73 | F78: 46.12 | G78: 43.73 | H78: 51.73 | I78: 54.12 | J78: 55.73 | K78: 52.5 | L78: 48.5 | M78: 92.73312
A79: 69 | B79: BIOCON | C79: 579.65 | D79: 572.55 | E79: 560.30 | F79: 540.95 | G79: 528.70 | H79: 591.90 | I79: 604.15 | J79: 623.50 | K79: 584.8 | L79: 553.2 | M79: 58.59856
A80: 70 | B80: BIRLACORPN | C80: 903.65 | D80: 904.17 | E80: 881.48 | F80: 859.32 | G80: 836.63 | H80: 926.33 | I80: 949.02 | J80: 971.18 | K80: 926.85 | L80: 882 | M80: 1.20364
A81: 71 | B81: BLISSGVS | C81: 192.75 | D81: 193.25 | E81: 191.50 | F81: 190.25 | G81: 188.50 | H81: 194.50 | I81: 196.25 | J81: 197.50 | K81: 195 | L81: 192 | M81: 0.40147
A82: 72 | B82: BLUEDART | C82: 4285.45 | D82: 4322.15 | E82: 4219.30 | F82: 4153.15 | G82: 4050.30 | H82: 4388.30 | I82: 4491.15 | J82: 4557.30 | K82: 4425 | L82: 4256 | M82: 0.0415
A83: 73 | B83: BLUESTARCO | C83: 728.55 | D83: 726.92 | E83: 719.83 | F83: 711.12 | G83: 704.03 | H83: 735.63 | I83: 742.72 | J83: 751.43 | K83: 734 | L83: 718.2 | M83: 0.10523
A84: 74 | B84: BBTC | C84: 1533.7 | D84: 1542.93 | E84: 1515.87 | F84: 1498.03 | G84: 1470.97 | H84: 1560.77 | I84: 1587.83 | J84: 1605.67 | K84: 1570 | L84: 1525.1 | M84: 0.97659
A85: 75 | B85: BOMDYEING | C85: 280.75 | D85: 280.65 | E85: 276.10 | F85: 271.45 | G85: 266.90 | H85: 285.30 | I85: 289.85 | J85: 294.50 | K85: 285.2 | L85: 276 | M85: 36.07739
A86: 76 | B86: BRFL | C86: 63.85 | D86: 64.28 | E86: 62.67 | F86: 61.48 | G86: 59.87 | H86: 65.47 | I86: 67.08 | J86: 68.27 | K86: 65.9 | L86: 63.1 | M86: 0.82975
A87: 77 | B87: BOSCHLTD | C87: 19160.05 | D87: 19251.57 | E87: 19008.53 | F87: 18857.02 | G87: 18613.98 | H87: 19403.08 | I87: 19646.12 | J87: 19797.63 | K87: 19494.6 | L87: 19100.05 | M87: 0.13402
A88: 78 | B88: BRIGADE | C88: 282.8 | D88: 282.23 | E88: 278.57 | F88: 274.33 | G88: 270.67 | H88: 286.47 | I88: 290.13 | J88: 294.37 | K88: 285.9 | L88: 278 | M88: 0.25675
A89: 79 | B89: BRITANNIA | C89: 4769.75 | D89: 4765.42 | E89: 4743.93 | F89: 4718.12 | G89: 4696.63 | H89: 4791.23 | I89: 4812.72 | J89: 4838.53 | K89: 4786.9 | L89: 4739.6 | M89: 1.23451
A90: 80 | B90: CARERATING | C90: 1386 | D90: 1386.27 | E90: 1375.73 | F90: 1365.47 | G90: 1354.93 | H90: 1396.53 | I90: 1407.07 | J90: 1417.33 | K90: 1396.8 | L90: 1376 | M90: 0.18726
A91: 81 | B91: CCL | C91: 281.05 | D91: 281.50 | E91: 278.15 | F91: 275.25 | G91: 271.90 | H91: 284.40 | I91: 287.75 | J91: 290.65 | K91: 284.85 | L91: 278.6 | M91: 0.2687
A92: 82 | B92: CGPOWER | C92: 82.25 | D92: 82.18 | E92: 81.52 | F92: 80.78 | G92: 80.12 | H92: 82.92 | I92: 83.58 | J92: 84.32 | K92: 82.85 | L92: 81.45 | M92: 14.67233
A93: 83 | B93: CRISIL | C93: 1921.45 | D93: 1940.38 | E93: 1900.07 | F93: 1878.68 | G93: 1838.37 | H93: 1961.77 | I93: 2002.08 | J93: 2023.47 | K93: 1980.7 | L93: 1919 | M93: 0.32046
A94: 84 | B94: CADILAHC | C94: 411.15 | D94: 409.62 | E94: 405.83 | F94: 400.52 | G94: 396.73 | H94: 414.93 | I94: 418.72 | J94: 424.03 | K94: 413.4 | L94: 404.3 | M94: 8.12011
A95: 85 | B95: CANFINHOME | C95: 518.45 | D95: 517.45 | E95: 512.90 | F95: 507.35 | G95: 502.80 | H95: 523.00 | I95: 527.55 | J95: 533.10 | K95: 522 | L95: 511.9 | M95: 10.25243
A96: 86 | B96: CANBK | C96: 311.7 | D96: 310.23 | E96: 305.47 | F96: 299.23 | G96: 294.47 | H96: 316.47 | I96: 321.23 | J96: 327.47 | K96: 315 | L96: 304 | M96: 33.81221
A97: 87 | B97: CAPF | C97: 679 | D97: 679.15 | E97: 672.30 | F97: 665.60 | G97: 658.75 | H97: 685.85 | I97: 692.70 | J97: 699.40 | K97: 686 | L97: 672.45 | M97: 3.83311
A98: 88 | B98: CAPLIPOINT | C98: 600.35 | D98: 603.22 | E98: 595.43 | F98: 590.52 | G98: 582.73 | H98: 608.13 | I98: 615.92 | J98: 620.83 | K98: 611 | L98: 598.3 | M98: 0.27278
A99: 89 | B99: CARBORUNIV | C99: 358.8 | D99: 361.28 | E99: 354.07 | F99: 349.33 | G99: 342.12 | H99: 366.02 | I99: 373.23 | J99: 377.97 | K99: 368.5 | L99: 356.55 | M99: 0.47068
A100: 90 | B100: CASTROLIND | C100: 193.8 | D100: 192.60 | E100: 191.20 | F100: 188.60 | G100: 187.20 | H100: 195.20 | I100: 196.60 | J100: 199.20 | K100: 194 | L100: 190 | M100: 7.16724
A101: 91 | B101: CEATLTD | C101: 1587.2 | D101: 1599.75 | E101: 1564.50 | F101: 1541.80 | G101: 1506.55 | H101: 1622.45 | I101: 1657.70 | J101: 1680.40 | K101: 1635 | L101: 1577.05 | M101: 4.37816
A102: 92 | B102: CENTRALBK | C102: 66.3 | D102: 66.50 | E102: 65.30 | F102: 64.30 | G102: 63.10 | H102: 67.50 | I102: 68.70 | J102: 69.70 | K102: 67.7 | L102: 65.5 | M102: 2.48234
A103: 93 | B103: CENTURYPLY | C103: 314 | D103: 313.43 | E103: 309.42 | F103: 304.83 | G103: 300.82 | H103: 318.02 | I103: 322.03 | J103: 326.62 | K103: 317.45 | L103: 308.85 | M103: 0.8228
A104: 94 | B104: CENTURYTEX | C104: 1171.25 | D104: 1180.45 | E104: 1152.80 | F104: 1134.35 | G104: 1106.70 | H104: 1198.90 | I104: 1226.55 | J104: 1245.00 | K104: 1208.1 | L104: 1162 | M104: 7.20044
A105: 95 | B105: CERA | C105: 3272.05 | D105: 3291.35 | E105: 3235.70 | F105: 3199.35 | G105: 3143.70 | H105: 3327.70 | I105: 3383.35 | J105: 3419.70 | K105: 3347 | L105: 3255 | M105: 0.0236
A106: 96 | B106: CHAMBLFERT | C106: 157.9 | D106: 157.80 | E106: 155.10 | F106: 152.30 | G106: 149.60 | H106: 160.60 | I106: 163.30 | J106: 166.10 | K106: 160.5 | L106: 155 | M106: 5.41556
A107: 97 | B107: CHENNPETRO | C107: 358.15 | D107: 360.38 | E107: 353.77 | F107: 349.38 | G107: 342.77 | H107: 364.77 | I107: 371.38 | J107: 375.77 | K107: 367 | L107: 356 | M107: 2.95979
A108: 98 | B108: CHOLAFIN | C108: 1381.6 | D108: 1364.20 | E108: 1341.40 | F108: 1301.20 | G108: 1278.40 | H108: 1404.40 | I108: 1427.20 | J108: 1467.40 | K108: 1387 | L108: 1324 | M108: 2.89354
A109: 99 | B109: CIPLA | C109: 597.25 | D109: 598.08 | E109: 588.42 | F109: 579.58 | G109: 569.92 | H109: 606.92 | I109: 616.58 | J109: 625.42 | K109: 607.75 | L109: 589.25 | M109: 14.09752
A110: 100 | B110: CUB | C110: 172.65 | D110: 173.37 | E110: 170.73 | F110: 168.82 | G110: 166.18 | H110: 175.28 | I110: 177.92 | J110: 179.83 | K110: 176 | L110: 171.45 | M110: 3.4969
A111: 101 | B111: COALINDIA | C111: 310.55 | D111: 309.23 | E111: 306.47 | F111: 302.38 | G111: 299.62 | H111: 313.32 | I111: 316.08 | J111: 320.17 | K111: 312 | L111: 305.15 | M111: 53.99556
A112: 102 | B112: COCHINSHIP | C112: 526.95 | D112: 525.98 | E112: 523.07 | F112: 519.18 | G112: 516.27 | H112: 529.87 | I112: 532.78 | J112: 536.67 | K112: 528.9 | L112: 522.1 | M112: 0.46037
A113: 103 | B113: COFFEEDAY | C113: 313.75 | D113: 313.23 | E113: 310.67 | F113: 307.58 | G113: 305.02 | H113: 316.32 | I113: 318.88 | J113: 321.97 | K113: 315.8 | L113: 310.15 | M113: 0.8019
A114: 104 | B114: COLPAL | C114: 1080.75 | D114: 1078.93 | E114: 1068.92 | F114: 1057.08 | G114: 1047.07 | H114: 1090.77 | I114: 1100.78 | J114: 1112.62 | K114: 1088.95 | L114: 1067.1 | M114: 4.4362
A115: 105 | B115: CONCOR | C115: 1308.9 | D115: 1300.95 | E115: 1284.20 | F115: 1259.50 | G115: 1242.75 | H115: 1325.65 | I115: 1342.40 | J115: 1367.10 | K115: 1317.7 | L115: 1276.25 | M115: 2.03255
A116: 106 | B116: COROMANDEL | C116: 507.85 | D116: 508.15 | E116: 500.70 | F116: 493.55 | G116: 486.10 | H116: 515.30 | I116: 522.75 | J116: 529.90 | K116: 515.6 | L116: 501 | M116: 0.46571
A117: 107 | B117: CORPBANK | C117: 32.6 | D117: 32.47 | E117: 32.03 | F117: 31.47 | G117: 31.03 | H117: 33.03 | I117: 33.47 | J117: 34.03 | K117: 32.9 | L117: 31.9 | M117: 1.74507
A118: 108 | B118: COX&KINGS | C118: 234.6 | D118: 236.72 | E118: 231.43 | F118: 228.27 | G118: 222.98 | H118: 239.88 | I118: 245.17 | J118: 248.33 | K118: 242 | L118: 233.55 | M118: 1.21178
A119: 109 | B119: CROMPTON | C119: 235 | D119: 234.90 | E119: 232.00 | F119: 229.00 | G119: 226.10 | H119: 237.90 | I119: 240.80 | J119: 243.80 | K119: 237.8 | L119: 231.9 | M119: 25.62862
A120: 110 | B120: CUMMINSIND | C120: 842.85 | D120: 845.62 | E120: 835.23 | F120: 827.62 | G120: 817.23 | H120: 853.23 | I120: 863.62 | J120: 871.23 | K120: 856 | L120: 838 | M120: 0.67869
A121: 111 | B121: CYIENT | C121: 629.35 | D121: 627.10 | E121: 619.20 | F121: 609.05 | G121: 601.15 | H121: 637.25 | I121: 645.15 | J121: 655.30 | K121: 635 | L121: 616.95 | M121: 1.73965
A122: 112 | B122: DBREALTY | C122: 54.9 | D122: 54.45 | E122: 54.00 | F122: 53.10 | G122: 52.65 | H122: 55.35 | I122: 55.80 | J122: 56.70 | K122: 54.9 | L122: 53.55 | M122: 7.79611
A123: 113 | B123: DBCORP | C123: 327.75 | D123: 327.87 | E123: 322.88 | F123: 318.02 | G123: 313.03 | H123: 332.73 | I123: 337.72 | J123: 342.58 | K123: 332.85 | L123: 323 | M123: 3.52216
A124: 114 | B124: DCBBANK | C124: 166.8 | D124: 166.17 | E124: 164.53 | F124: 162.27 | G124: 160.63 | H124: 168.43 | I124: 170.07 | J124: 172.33 | K124: 167.8 | L124: 163.9 | M124: 15.07304
A125: 115 | B125: DCMSHRIRAM | C125: 538.65 | D125: 536.85 | E125: 531.80 | F125: 524.95 | G125: 519.90 | H125: 543.70 | I125: 548.75 | J125: 555.60 | K125: 541.9 | L125: 530 | M125: 0.47895
A126: 116 | B126: DLF | C126: 221 | D126: 222.20 | E126: 217.40 | F126: 213.80 | G126: 209.00 | H126: 225.80 | I126: 230.60 | J126: 234.20 | K126: 227 | L126: 218.6 | M126: 59.96226
A127: 117 | B127: DABUR | C127: 334.5 | D127: 336.97 | E127: 330.83 | F127: 327.17 | G127: 321.03 | H127: 340.63 | I127: 346.77 | J127: 350.43 | K127: 343.1 | L127: 333.3 | M127: 13.12888
A128: 118 | B128: DALMIABHA | C128: 2829.2 | D128: 2835.58 | E128: 2811.17 | F128: 2793.13 | G128: 2768.72 | H128: 2853.62 | I128: 2878.03 | J128: 2896.07 | K128: 2860 | L128: 2817.55 | M128: 0.64077
A129: 119 | B129: DEEPAKFERT | C129: 338.15 | D129: 342.40 | E129: 331.75 | F129: 325.35 | G129: 314.70 | H129: 348.80 | I129: 359.45 | J129: 365.85 | K129: 353.05 | L129: 336 | M129: 2.68533
A130: 120 | B130: DELTACORP | C130: 352.2 | D130: 354.17 | E130: 347.08 | F130: 341.97 | G130: 334.88 | H130: 359.28 | I130: 366.37 | J130: 371.48 | K130: 361.25 | L130: 349.05 | M130: 12.598
A131: 121 | B131: DEN | C131: 104.55 | D131: 105.00 | E131: 102.55 | F131: 100.55 | G131: 98.10 | H131: 107.00 | I131: 109.45 | J131: 111.45 | K131: 107.45 | L131: 103 | M131: 3.64242
A132: 122 | B132: DENABANK | C132: 20.8 | D132: 20.72 | E132: 20.48 | F132: 20.17 | G132: 19.93 | H132: 21.03 | I132: 21.27 | J132: 21.58 | K132: 20.95 | L132: 20.4 | M132: 15.21745
A133: 123 | B133: DHFL | C133: 557.35 | D133: 552.48 | E133: 544.97 | F133: 532.58 | G133: 525.07 | H133: 564.87 | I133: 572.38 | J133: 584.77 | K133: 560 | L133: 540.1 | M133: 29.34005
A134: 124 | B134: DHANUKA | C134: 641.5 | D134: 645.67 | E134: 634.83 | F134: 628.17 | G134: 617.33 | H134: 652.33 | I134: 663.17 | J134: 669.83 | K134: 656.5 | L134: 639 | M134: 0.10898
A135: 125 | B135: DBL | C135: 936.15 | D135: 940.38 | E135: 922.77 | F135: 909.38 | G135: 891.77 | H135: 953.77 | I135: 971.38 | J135: 984.77 | K135: 958 | L135: 927 | M135: 4.49868
A136: 126 | B136: DISHTV | C136: 72.9 | D136: 72.62 | E136: 71.88 | F136: 70.87 | G136: 70.13 | H136: 73.63 | I136: 74.37 | J136: 75.38 | K136: 73.35 | L136: 71.6 | M136: 20.53745
A137: 127 | B137: DIVISLAB | C137: 1006.75 | D137: 1009.58 | E137: 994.47 | F137: 982.18 | G137: 967.07 | H137: 1021.87 | I137: 1036.98 | J137: 1049.27 | K137: 1024.7 | L137: 997.3 | M137: 6.28446
A138: 128 | B138: LALPATHLAB | C138: 905.1 | D138: 905.45 | E138: 900.90 | F138: 896.70 | G138: 892.15 | H138: 909.65 | I138: 914.20 | J138: 918.40 | K138: 910 | L138: 901.25 | M138: 0.30252
A139: 129 | B139: DRREDDY | C139: 2165.9 | D139: 2169.55 | E139: 2137.10 | F139: 2108.30 | G139: 2075.85 | H139: 2198.35 | I139: 2230.80 | J139: 2259.60 | K139: 2202 | L139: 2140.75 | M139: 4.98005
A140: 130 | B140: DREDGECORP | C140: 686.95 | D140: 690.63 | E140: 676.57 | F140: 666.18 | G140: 652.12 | H140: 701.02 | I140: 715.08 | J140: 725.47 | K140: 704.7 | L140: 680.25 | M140: 1.70228
A141: 131 | B141: EIDPARRY | C141: 313.3 | D141: 314.15 | E141: 307.05 | F141: 300.80 | G141: 293.70 | H141: 320.40 | I141: 327.50 | J141: 333.75 | K141: 321.25 | L141: 307.9 | M141: 3.73205
A142: 132 | B142: EIHOTEL | C142: 172.8 | D142: 175.10 | E142: 168.70 | F142: 164.60 | G142: 158.20 | H142: 179.20 | I142: 185.60 | J142: 189.70 | K142: 181.5 | L142: 171 | M142: 2.41668
A143: 133 | B143: EDELWEISS | C143: 258.85 | D143: 256.67 | E143: 252.83 | F143: 246.82 | G143: 242.98 | H143: 262.68 | I143: 266.52 | J143: 272.53 | K143: 260.5 | L143: 250.65 | M143: 15.53544
A144: 134 | B144: EICHERMOT | C144: 27365.75 | D144: 27296.45 | E144: 27112.90 | F144: 26860.05 | G144: 26676.50 | H144: 27549.30 | I144: 27732.85 | J144: 27985.70 | K144: 27480 | L144: 27043.6 | M144: 0.36682
A145: 135 | B145: EMAMILTD | C145: 1053.5 | D145: 1051.90 | E145: 1043.70 | F145: 1033.90 | G145: 1025.70 | H145: 1061.70 | I145: 1069.90 | J145: 1079.70 | K145: 1060.1 | L145: 1042.1 | M145: 1.3191
A146: 136 | B146: ENDURANCE | C146: 1284.65 | D146: 1287.53 | E146: 1269.17 | F146: 1253.68 | G146: 1235.32 | H146: 1303.02 | I146: 1321.38 | J146: 1336.87 | K146: 1305.9 | L146: 1272.05 | M146: 0.57364
A147: 137 | B147: ENGINERSIN | C147: 163.55 | D147: 164.93 | E147: 160.87 | F147: 158.18 | G147: 154.12 | H147: 167.62 | I147: 171.68 | J147: 174.37 | K147: 169 | L147: 162.25 | M147: 26.9531
A148: 138 | B148: EQUITAS | C148: 140 | D148: 141.08 | E148: 137.52 | F148: 135.03 | G148: 131.47 | H148: 143.57 | I148: 147.13 | J148: 149.62 | K148: 144.65 | L148: 138.6 | M148: 7.91256
A149: 139 | B149: EROSMEDIA | C149: 206.55 | D149: 209.60 | E149: 201.20 | F149: 195.85 | G149: 187.45 | H149: 214.95 | I149: 223.35 | J149: 228.70 | K149: 218 | L149: 204.25 | M149: 41.84886
A150: 140 | B150: ESCORTS | C150: 858.25 | D150: 858.52 | E150: 850.93 | F150: 843.62 | G150: 836.03 | H150: 865.83 | I150: 873.42 | J150: 880.73 | K150: 866.1 | L150: 851.2 | M150: 11.01407
A151: 141 | B151: ESSELPACK | C151: 275.15 | D151: 276.03 | E151: 272.12 | F151: 269.08 | G151: 265.17 | H151: 279.07 | I151: 282.98 | J151: 286.02 | K151: 279.95 | L151: 273 | M151: 0.21066
A152: 142 | B152: EVEREADY | C152: 384.95 | D152: 386.17 | E152: 379.03 | F152: 373.12 | G152: 365.98 | H152: 392.08 | I152: 399.22 | J152: 405.13 | K152: 393.3 | L152: 380.25 | M152: 0.23154
A153: 143 | B153: EXIDEIND | C153: 211 | D153: 211.23 | E153: 209.32 | F153: 207.63 | G153: 205.72 | H153: 212.92 | I153: 214.83 | J153: 216.52 | K153: 213.15 | L153: 209.55 | M153: 8.17084
A154: 144 | B154: FEDERALBNK | C154: 92 | D154: 92.12 | E154: 91.28 | F154: 90.57 | G154: 89.73 | H154: 92.83 | I154: 93.67 | J154: 94.38 | K154: 92.95 | L154: 91.4 | M154: 70.95263
A155: 145 | B155: FINCABLES | C155: 703.5 | D155: 706.00 | E155: 697.50 | F155: 691.50 | G155: 683.00 | H155: 712.00 | I155: 720.50 | J155: 726.50 | K155: 714.5 | L155: 700 | M155: 0.25669
A156: 146 | B156: FINPIPE | C156: 627.25 | D156: 629.58 | E156: 621.67 | F156: 616.08 | G156: 608.17 | H156: 635.17 | I156: 643.08 | J156: 648.67 | K156: 637.5 | L156: 624 | M156: 0.21752
A157: 147 | B157: FSL | C157: 48.35 | D157: 47.67 | E157: 46.68 | F157: 45.02 | G157: 44.03 | H157: 49.33 | I157: 50.32 | J157: 51.98 | K157: 48.65 | L157: 46 | M157: 114.69528
A158: 148 | B158: FCONSUMER | C158: 59.9 | D158: 59.52 | E158: 58.63 | F158: 57.37 | G158: 56.48 | H158: 60.78 | I158: 61.67 | J158: 62.93 | K158: 60.4 | L158: 58.25 | M158: 26.36699
A159: 149 | B159: FLFL | C159: 361.25 | D159: 363.73 | E159: 356.52 | F159: 351.78 | G159: 344.57 | H159: 368.47 | I159: 375.68 | J159: 380.42 | K159: 370.95 | L159: 359 | M159: 0.15845
A160: 150 | B160: GAIL | C160: 466.1 | D160: 466.43 | E160: 463.07 | F160: 460.03 | G160: 456.67 | H160: 469.47 | I160: 472.83 | J160: 475.87 | K160: 469.8 | L160: 463.4 | M160: 23.22768
A161: 151 | B161: GEPIL | C161: 824.5 | D161: 827.17 | E161: 804.38 | F161: 784.27 | G161: 761.48 | H161: 847.28 | I161: 870.07 | J161: 890.18 | K161: 849.95 | L161: 807.05 | M161: 0.15986
A162: 152 | B162: GET&D | C162: 420.6 | D162: 420.20 | E162: 415.40 | F162: 410.20 | G162: 405.40 | H162: 425.40 | I162: 430.20 | J162: 435.40 | K162: 425 | L162: 415 | M162: 0.22193
A163: 153 | B163: GHCL | C163: 295.55 | D163: 295.42 | E163: 291.13 | F163: 286.72 | G163: 282.43 | H163: 299.83 | I163: 304.12 | J163: 308.53 | K163: 299.7 | L163: 291 | M163: 1.33835
A164: 154 | B164: GMRINFRA | C164: 17.3 | D164: 17.48 | E164: 17.02 | F164: 16.73 | G164: 16.27 | H164: 17.77 | I164: 18.23 | J164: 18.52 | K164: 17.95 | L164: 17.2 | M164: 303.44685
A165: 155 | B165: GVKPIL | C165: 16.85 | D165: 17.07 | E165: 16.43 | F165: 16.02 | G165: 15.38 | H165: 17.48 | I165: 18.12 | J165: 18.53 | K165: 17.7 | L165: 16.65 | M165: 43.39503
A166: 156 | B166: GDL | C166: 199.2 | D166: 199.07 | E166: 195.98 | F166: 192.77 | G166: 189.68 | H166: 202.28 | I166: 205.37 | J166: 208.58 | K166: 202.15 | L166: 195.85 | M166: 8.83428
A167: 157 | B167: GATI | C167: 113.45 | D167: 113.35 | E167: 112.30 | F167: 111.15 | G167: 110.10 | H167: 114.50 | I167: 115.55 | J167: 116.70 | K167: 114.4 | L167: 112.2 | M167: 4.15151
A168: 158 | B168: GILLETTE | C168: 6693.5 | D168: 6698.00 | E168: 6646.50 | F168: 6599.50 | G168: 6548.00 | H168: 6745.00 | I168: 6796.50 | J168: 6843.50 | K168: 6749.5 | L168: 6651 | M168: 0.05776
A169: 159 | B169: GSKCONS | C169: 6477.15 | D169: 6495.32 | E169: 6436.83 | F169: 6396.52 | G169: 6338.03 | H169: 6535.63 | I169: 6594.12 | J169: 6634.43 | K169: 6553.8 | L169: 6455 | M169: 0.05841
A170: 160 | B170: GLAXO | C170: 2388.9 | D170: 2394.07 | E170: 2371.08 | F170: 2353.27 | G170: 2330.28 | H170: 2411.88 | I170: 2434.87 | J170: 2452.68 | K170: 2417.05 | L170: 2376.25 | M170: 0.11251
A171: 161 | B171: GLENMARK | C171: 524.95 | D171: 524.82 | E171: 521.63 | F171: 518.32 | G171: 515.13 | H171: 528.13 | I171: 531.32 | J171: 534.63 | K171: 528 | L171: 521.5 | M171: 5.59394
A172: 162 | B172: GODFRYPHLP | C172: 859.55 | D172: 863.45 | E172: 851.10 | F172: 842.65 | G172: 830.30 | H172: 871.90 | I172: 884.25 | J172: 892.70 | K172: 875.8 | L172: 855 | M172: 0.67613
A173: 163 | B173: GODREJCP | C173: 1057.2 | D173: 1056.95 | E173: 1050.70 | F173: 1044.20 | G173: 1037.95 | H173: 1063.45 | I173: 1069.70 | J173: 1076.20 | K173: 1063.2 | L173: 1050.45 | M173: 3.48258
A174: 164 | B174: GODREJIND | C174: 540.7 | D174: 541.12 | E174: 537.23 | F174: 533.77 | G174: 529.88 | H174: 544.58 | I174: 548.47 | J174: 551.93 | K174: 545 | L174: 537.65 | M174: 1.56765
A175: 165 | B175: GODREJPROP | C175: 772.35 | D175: 771.60 | E175: 763.20 | F175: 754.05 | G175: 745.65 | H175: 780.75 | I175: 789.15 | J175: 798.30 | K175: 780 | L175: 762.45 | M175: 0.62321
A176: 166 | B176: GRANULES | C176: 115.05 | D176: 115.57 | E176: 113.88 | F176: 112.72 | G176: 111.03 | H176: 116.73 | I176: 118.42 | J176: 119.58 | K176: 117.25 | L176: 114.4 | M176: 8.70779
A177: 167 | B177: GESHIP | C177: 390.45 | D177: 388.73 | E177: 385.52 | F177: 380.58 | G177: 377.37 | H177: 393.67 | I177: 396.88 | J177: 401.82 | K177: 391.95 | L177: 383.8 | M177: 5.41511
A178: 168 | B178: GREAVESCOT | C178: 120.4 | D178: 120.23 | E178: 119.47 | F178: 118.53 | G178: 117.77 | H178: 121.17 | I178: 121.93 | J178: 122.87 | K178: 121 | L178: 119.3 | M178: 4.62654
A179: 169 | B179: GREENPLY | C179: 347.25 | D179: 348.17 | E179: 341.38 | F179: 335.52 | G179: 328.73 | H179: 354.03 | I179: 360.82 | J179: 366.68 | K179: 354.95 | L179: 342.3 | M179: 0.20786
A180: 170 | B180: GRUH | C180: 545.75 | D180: 535.33 | E180: 510.87 | F180: 475.98 | G180: 451.52 | H180: 570.22 | I180: 594.68 | J180: 629.57 | K180: 559.8 | L180: 500.45 | M180: 14.01361
A181: 171 | B181: GUJALKALI | C181: 757.25 | D181: 752.28 | E181: 740.62 | F181: 723.98 | G181: 712.32 | H181: 768.92 | I181: 780.58 | J181: 797.22 | K181: 763.95 | L181: 735.65 | M181: 0.98909
A182: 172 | B182: GUJFLUORO | C182: 748.1 | D182: 754.07 | E182: 735.13 | F182: 722.17 | G182: 703.23 | H182: 767.03 | I182: 785.97 | J182: 798.93 | K182: 773 | L182: 741.1 | M182: 0.45214
A183: 173 | B183: GUJGASLTD | C183: 860.75 | D183: 862.92 | E183: 850.83 | F183: 840.92 | G183: 828.83 | H183: 872.83 | I183: 884.92 | J183: 894.83 | K183: 875 | L183: 853 | M183: 0.31974
A184: 174 | B184: GMDCLTD | C184: 139.55 | D184: 140.62 | E184: 138.23 | F184: 136.92 | G184: 134.53 | H184: 141.93 | I184: 144.32 | J184: 145.63 | K184: 143 | L184: 139.3 | M184: 0.86439
A185: 175 | B185: GNFC | C185: 462.1 | D185: 463.40 | E185: 457.10 | F185: 452.10 | G185: 445.80 | H185: 468.40 | I185: 474.70 | J185: 479.70 | K185: 469.7 | L185: 458.4 | M185: 3.91049
A186: 176 | B186: GPPL | C186: 142.7 | D186: 142.88 | E186: 141.57 | F186: 140.43 | G186: 139.12 | H186: 144.02 | I186: 145.33 | J186: 146.47 | K186: 144.2 | L186: 141.75 | M186: 1.13136
A187: 177 | B187: GSFC | C187: 129.2 | D187: 129.92 | E187: 128.03 | F187: 126.87 | G187: 124.98 | H187: 131.08 | I187: 132.97 | J187: 134.13 | K187: 131.8 | L187: 128.75 | M187: 8.95866
A188: 178 | B188: GSPL | C188: 198.4 | D188: 198.00 | E188: 196.30 | F188: 194.20 | G188: 192.50 | H188: 200.10 | I188: 201.80 | J188: 203.90 | K188: 199.7 | L188: 195.9 | M188: 1.46272
A189: 179 | B189: GULFOILLUB | C189: 1000.3 | D189: 1009.75 | E189: 980.50 | F189: 960.70 | G189: 931.45 | H189: 1029.55 | I189: 1058.80 | J189: 1078.60 | K189: 1039 | L189: 989.95 | M189: 0.12308
A190: 180 | B190: HCL-INSYS | C190: 61.6 | D190: 61.12 | E190: 59.98 | F190: 58.37 | G190: 57.23 | H190: 62.73 | I190: 63.87 | J190: 65.48 | K190: 62.25 | L190: 59.5 | M190: 27.43618
A191: 181 | B191: HCLTECH | C191: 942.9 | D191: 934.23 | E191: 920.67 | F191: 898.43 | G191: 884.87 | H191: 956.47 | I191: 970.03 | J191: 992.27 | K191: 947.8 | L191: 912 | M191: 27.84756
A192: 182 | B192: HDFCBANK | C192: 1857.4 | D192: 1859.38 | E192: 1850.22 | F192: 1843.03 | G192: 1833.87 | H192: 1866.57 | I192: 1875.73 | J192: 1882.92 | K192: 1868.55 | L192: 1852.2 | M192: 6.88268
A193: 183 | B193: HSIL | C193: 421 | D193: 419.82 | E193: 416.23 | F193: 411.47 | G193: 407.88 | H193: 424.58 | I193: 428.17 | J193: 432.93 | K193: 423.4 | L193: 415.05 | M193: 0.36126
A194: 184 | B194: HTMEDIA | C194: 92.15 | D194: 92.50 | E194: 91.15 | F194: 90.15 | G194: 88.80 | H194: 93.50 | I194: 94.85 | J194: 95.85 | K194: 93.85 | L194: 91.5 | M194: 0.58235
A195: 185 | B195: HATHWAY | C195: 37.1 | D195: 37.57 | E195: 36.38 | F195: 35.67 | G195: 34.48 | H195: 38.28 | I195: 39.47 | J195: 40.18 | K195: 38.75 | L195: 36.85 | M195: 3.38703
A196: 186 | B196: HATSUN | C196: 767.15 | D196: 771.38 | E196: 755.77 | F196: 744.38 | G196: 728.77 | H196: 782.77 | I196: 798.38 | J196: 809.77 | K196: 787 | L196: 760 | M196: 0.09451
A197: 187 | B197: HAVELLS | C197: 506.35 | D197: 506.05 | E197: 500.50 | F197: 494.65 | G197: 489.10 | H197: 511.90 | I197: 517.45 | J197: 523.30 | K197: 511.6 | L197: 500.2 | M197: 7.20502
A198: 188 | B198: HEIDELBERG | C198: 153.05 | D198: 154.22 | E198: 150.43 | F198: 147.82 | G198: 144.03 | H198: 156.83 | I198: 160.62 | J198: 163.23 | K198: 158 | L198: 151.6 | M198: 2.50929
A199: 189 | B199: HERITGFOOD | C199: 677.75 | D199: 682.50 | E199: 671.00 | F199: 664.25 | G199: 652.75 | H199: 689.25 | I199: 700.75 | J199: 707.50 | K199: 694 | L199: 675.75 | M199: 0.12244
A200: 190 | B200: HEROMOTOCO | C200: 3490.75 | D200: 3489.52 | E200: 3461.23 | F200: 3431.72 | G200: 3403.43 | H200: 3519.03 | I200: 3547.32 | J200: 3576.83 | K200: 3517.8 | L200: 3460 | M200: 2.66352
A201: 191 | B201: HEXAWARE | C201: 345.85 | D201: 342.73 | E201: 337.72 | F201: 329.58 | G201: 324.57 | H201: 350.87 | I201: 355.88 | J201: 364.02 | K201: 347.75 | L201: 334.6 | M201: 21.65646
A202: 192 | B202: HFCL | C202: 28.3 | D202: 28.23 | E202: 27.82 | F202: 27.33 | G202: 26.92 | H202: 28.72 | I202: 29.13 | J202: 29.62 | K202: 28.65 | L202: 27.75 | M202: 28.23122
A203: 193 | B203: HIMATSEIDE | C203: 353.75 | D203: 354.35 | E203: 349.70 | F203: 345.65 | G203: 341.00 | H203: 358.40 | I203: 363.05 | J203: 367.10 | K203: 359 | L203: 350.3 | M203: 0.36698
A204: 194 | B204: HINDALCO | C204: 240.65 | D204: 243.40 | E204: 236.00 | F204: 231.35 | G204: 223.95 | H204: 248.05 | I204: 255.45 | J204: 260.10 | K204: 250.8 | L204: 238.75 | M204: 119.01519
A205: 195 | B205: HCC | C205: 33.7 | D205: 33.87 | E205: 33.33 | F205: 32.97 | G205: 32.43 | H205: 34.23 | I205: 34.77 | J205: 35.13 | K205: 34.4 | L205: 33.5 | M205: 44.07399
A206: 196 | B206: HINDCOPPER | C206: 73.3 | D206: 73.90 | E206: 72.40 | F206: 71.50 | G206: 70.00 | H206: 74.80 | I206: 76.30 | J206: 77.20 | K206: 75.4 | L206: 73 | M206: 12.64816
... 306 more rows

Sheet Bulk Deals
E6: Back To Main Page
A7: Subject : | B7: BULK DEAL | D7: =Main!B10 -> 2018-02-22
A9: Date | B9: Scrip code | C9: Scrip Name | D9: Client Name | E9: Buy / Sell | F9: Quantity Traded | G9: Trade Price / Wt.Avg.trade price | H9: Exchange
A10: 2018-02-21 | B10: 540146 | C10: ACML | D10: NISHIL SURENDRABHAI MARFATIA | E10: BUY | F10: 100,000 | G10: 234.88 | H10: BSE
A11: 2018-02-21 | B11: 530245 | C11: ARYAMAN | D11: YOGDARSHAN COMMERCIAL TRADING PRIVATE LIMITED | E11: SELL | F11: 85,000 | G11: 47.75 | H11: BSE
A12: 2018-02-21 | B12: 540956 | C12: BHATIA | D12: JACKPOT VINTRADE PRIVATE LIMITED | E12: BUY | F12: 74,000 | G12: 150.17 | H12: BSE
A13: 2018-02-21 | B13: 538521 | C13: CROWNTOURS | D13: JAYANTILAL BHIMRAJ JAIN | E13: SELL | F13: 31,000 | G13: 15.75 | H13: BSE
A14: 2018-02-21 | B14: 538521 | C14: CROWNTOURS | D14: JAYSHRIBEN DHIRENDRAKUMAR MANIAR | E14: BUY | F14: 25,000 | G14: 15.75 | H14: BSE
A15: 2018-02-21 | B15: 514474 | C15: FAIRDSY | D15: RAJESH GOPALKRISHNA RATHI | E15: BUY | F15: 53,806 | G15: 57.4 | H15: BSE
A16: 2018-02-21 | B16: 532951 | C16: GSS | D16: ESSAR TRADING COMPANY | E16: SELL | F16: 90,887 | G16: 51.21 | H16: BSE
A17: 2018-02-21 | B17: 532951 | C17: GSS | D17: ESSAR TRADING COMPANY | E17: BUY | F17: 90,854 | G17: 50.63 | H17: BSE
A18: 2018-02-21 | B18: 532951 | C18: GSS | D18: SHILPHY STEEL PRIVATE LIMITED | E18: SELL | F18: 338,149 | G18: 50.93 | H18: BSE
A19: 2018-02-21 | B19: 532951 | C19: GSS | D19: SHILPHY STEEL PRIVATE LIMITED | E19: BUY | F19: 30,129 | G19: 49.85 | H19: BSE
A20: 2018-02-21 | B20: 532951 | C20: GSS | D20: KHUSHBOO ANAND BHAYANI | E20: SELL | F20: 88,652 | G20: 50.56 | H20: BSE
A21: 2018-02-21 | B21: 532951 | C21: GSS | D21: KHUSHBOO ANAND BHAYANI | E21: BUY | F21: 88,652 | G21: 50.87 | H21: BSE
A22: 2018-02-21 | B22: 540756 | C22: KAARYAFSL | D22: ARCADIA SHARE & STOCK BROKERS PVT. LTD | E22: SELL | F22: 24,000 | G22: 48.5 | H22: BSE
A23: 2018-02-21 | B23: 538547 | C23: OASIS | D23: VIVIDOFFSET PRINTERS PRIVATELIMITED | E23: SELL | F23: 50,000 | G23: 99.2 | H23: BSE
A24: 2018-02-21 | B24: 538547 | C24: OASIS | D24: VIVIDOFFSET PRINTERS PRIVATELIMITED | E24: BUY | F24: 63,254 | G24: 100.08 | H24: BSE
A25: 2018-02-21 | B25: 532340 | C25: OMNIAX | D25: NAMRATA SAJANKUMAR BAJAJ | E25: SELL | F25: 60,304 | G25: 1.79 | H25: BSE
A26: 2018-02-21 | B26: 532340 | C26: OMNIAX | D26: SAJANKUMAR RAMESHWARLAL BAJAJ | E26: BUY | F26: 591,769 | G26: 1.79 | H26: BSE
A27: 2018-02-21 | B27: 532340 | C27: OMNIAX | D27: JALPA MANISH DEDHIA | E27: BUY | F27: 59,000 | G27: 1.79 | H27: BSE
A28: 2018-02-21 | B28: 532340 | C28: OMNIAX | D28: JIGNA SANJAY DEDHIA | E28: BUY | F28: 59,000 | G28: 1.79 | H28: BSE
A29: 2018-02-21 | B29: 532340 | C29: OMNIAX | D29: AMEETA JAGDISH DEDHIA | E29: BUY | F29: 59,000 | G29: 1.79 | H29: BSE
A30: 2018-02-21 | B30: 532340 | C30: OMNIAX | D30: SANJAY MAVJI DEDHIA | E30: BUY | F30: 59,000 | G30: 1.79 | H30: BSE
A31: 2018-02-21 | B31: 532340 | C31: OMNIAX | D31: MANISH MAVJI DEDHIA | E31: BUY | F31: 59,000 | G31: 1.79 | H31: BSE
A32: 2018-02-21 | B32: 532340 | C32: OMNIAX | D32: JAGDISH LILADHAR DEDHIA | E32: BUY | F32: 57,000 | G32: 1.79 | H32: BSE
A33: 2018-02-21 | B33: 532340 | C33: OMNIAX | D33: TAXUS ENTERPRISES PRIVATE LIMITED | E33: SELL | F33: 475,000 | G33: 1.79 | H33: BSE
A34: 2018-02-21 | B34: 532340 | C34: OMNIAX | D34: E TRICKS ENTERPRISES PRIVATE LIMITED | E34: SELL | F34: 407,865 | G34: 1.79 | H34: BSE
A35: 2018-02-21 | B35: 526905 | C35: PADMAIND | D35: HARSHA RAJESHBHAI JHAVERI | E35: BUY | F35: 50,000 | G35: 90 | H35: BSE
A36: 2018-02-21 | B36: 538646 | C36: PARNAMI | D36: KOTHARI VINOD FOJMALJI | E36: BUY | F36: 33,000 | G36: 15.98 | H36: BSE
A37: 2018-02-21 | B37: 538646 | C37: PARNAMI | D37: RAHUL ANANTRAI MEHTA | E37: BUY | F37: 36,000 | G37: 15.98 | H37: BSE
A38: 2018-02-21 | B38: 540079 | C38: SPRAYKING | D38: MANMOHAN DAULAL RATHI | E38: BUY | F38: 30,000 | G38: 29.4 | H38: BSE
A39: 2018-02-21 | B39: 540079 | C39: SPRAYKING | D39: SHAILESHKUMAR DAGA . | E39: SELL | F39: 18,000 | G39: 29.5 | H39: BSE
A40: 2018-02-21 | B40: 540738 | C40: STL | D40: OVERSKUD MULTI ASSET MANAGEMENT PRIVATE LIMITED | E40: BUY | F40: 30,000 | G40: 135 | H40: BSE
A41: 2018-02-21 | B41: 526365 | C41: SWARNSAR | D41: SHEELA SUNIL KOTHARI | E41: BUY | F41: 124,700 | G41: 19.58 | H41: BSE
A42: 2018-02-21 | B42: 538496 | C42: TARINI | D42: NEERAJ YADAV | E42: BUY | F42: 150,000 | G42: 21.25 | H42: BSE
A43: 2018-02-21 | B43: 538496 | C43: TARINI | D43: NISHIL SURENDRABHAI MARFATIA | E43: SELL | F43: 180,000 | G43: 21.25 | H43: BSE
A44: 2018-02-21 | B44: 540955 | C44: TDSL | D44: RAGHAV KANODIA | E44: BUY | F44: 111,000 | G44: 49.25 | H44: BSE
A45: 2018-02-21 | B45: 538464 | C45: TPROJECT | D45: NIRAV NARESHKUMAR SHAH | E45: BUY | F45: 150,000 | G45: 31.75 | H45: BSE
A46: 2018-02-21 | B46: 539402 | C46: VAL | D46: OVERSKUD MULTI ASSET MANAGEMENT PRIVATE LIMITED | E46: BUY | F46: 164,000 | G46: 23.65 | H46: BSE
A47: 2018-02-21 | B47: 539402 | C47: VAL | D47: KANODIA GROUP | E47: SELL | F47: 164,000 | G47: 23.65 | H47: BSE
A48: 2018-02-21 | B48: 514266 | C48: ZENIFIB | D48: DHEERAJ KUMAR LOHIA | E48: BUY | F48: 23,528 | G48: 110 | H48: BSE
A49: 2018-02-21 | B49: 514266 | C49: ZENIFIB | D49: RAVI PAREEK | E49: SELL | F49: 30,628 | G49: 110 | H49: BSE
A50: 2018-02-21 | B50: AGRITECH | C50: Agri-Tech (India) Limited | D50: CHIMANLAL P. MATALIA | E50: BUY | F50: 54,713 | G50: 155.43 | H50: NSE
A51: 2018-02-21 | B51: AGRITECH | C51: Agri-Tech (India) Limited | D51: M SURENDRANATHA REDDY | E51: BUY | F51: 47,292 | G51: 155.04 | H51: NSE
A52: 2018-02-21 | B52: GDL | C52: Gateway Distriparks Limit | D52: PREM KISHAN GUPTA | E52: BUY | F52: 600,000 | G52: 198 | H52: NSE
A53: 2018-02-21 | B53: GSS | C53: GSS Infotech Limited | D53: LIMITED SHILPHY STEEL PRIVATE | E53: BUY | F53: 537,697 | G53: 49.71 | H53: NSE
A54: 2018-02-21 | B54: GSS | C54: GSS Infotech Limited | D54: MILLENNIUM STOCK BROKING PVT. LTD. | E54: BUY | F54: 86,155 | G54: 50.84 | H54: NSE
A55: 2018-02-21 | B55: IBVENTURES | C55: Indiabulls Ventures Ltd | D55: VALIANT MAURITIUS PARTNERS OFFSHORE LIMITED | E55: BUY | F55: 2,988,000 | G55: 255 | H55: NSE
A56: 2018-02-21 | B56: MHHL | C56: Mohini Health&Hygiene Ltd | D56: RAMLAL KANWARLAL JAIN | E56: BUY | F56: 159,000 | G56: 61.96 | H56: NSE
A57: 2018-02-21 | B57: TCIFINANCE | C57: TCI Finance Limited | D57: RONAK BANSAL | E57: BUY | F57: 193,515 | G57: 28.64 | H57: NSE
A58: 2018-02-21 | B58: UNITEDPOLY | C58: United Polyfab Guj. Ltd. | D58: AMRAPALI INDUSTRIES LTD. | E58: BUY | F58: 27,000 | G58: 35.7 | H58: NSE
A59: 2018-02-21 | B59: UNITEDPOLY | C59: United Polyfab Guj. Ltd. | D59: CHIRAG Y. THAKKAR | E59: BUY | F59: 27,000 | G59: 35.7 | H59: NSE
A60: 2018-02-21 | B60: UNITEDPOLY | C60: United Polyfab Guj. Ltd. | D60: YASHWANTBHAI A. THAKKAR | E60: BUY | F60: 27,000 | G60: 35.7 | H60: NSE
A61: 2018-02-21 | B61: AGRITECH | C61: Agri-Tech (India) Limited | D61: CHIMANLAL P. MATALIA | E61: SELL | F61: 54,713 | G61: 155.3 | H61: NSE
A62: 2018-02-21 | B62: AGRITECH | C62: Agri-Tech (India) Limited | D62: M SURENDRANATHA REDDY | E62: SELL | F62: 47,292 | G62: 155.56 | H62: NSE
A63: 2018-02-21 | B63: GSS | C63: GSS Infotech Limited | D63: LIMITED SHILPHY STEEL PRIVATE | E63: SELL | F63: 617,677 | G63: 50.28 | H63: NSE
A64: 2018-02-21 | B64: GSS | C64: GSS Infotech Limited | D64: MILLENNIUM STOCK BROKING PVT. LTD. | E64: SELL | F64: 86,245 | G64: 50.29 | H64: NSE
A65: 2018-02-21 | B65: SOUTHWEST | C65: South West Pinnacle Ltd | D65: IIFL WEALTH FINANCE LIMITED | E65: SELL | F65: 94,400 | G65: 85.62 | H65: NSE
A66: 2018-02-21 | B66: TCIFINANCE | C66: TCI Finance Limited | D66: RONAK BANSAL | E66: SELL | F66: 193,515 | G66: 29.52 | H66: NSE
A67: 2018-02-21 | B67: UNITEDPOLY | C67: United Polyfab Guj. Ltd. | D67: BEELINE BROKING LTD | E67: SELL | F67: 81,000 | G67: 35.7 | H67: NSE

Sheet Call Tracker (Equity & F&O)
N5: Back To Main Page
A6: Retail Research Technical Calls & Fundamental Performance Report for the month of February -2018
N7: =Main!B10 -> 2018-02-22
B8: Positional Call
A9: Sr.no | B9: Date | D9: Company | E9: Rec | F9: Rec Price | G9: Stop Loss*** | H9: Call Closed At | I9: Target | J9: Remark | L9: Profit / Loss per Share | M9: Gain / Loss % | N9: Status | O9: Closed Date | P9: NSE Closed Price
A10: 1 | B10: 2017-12-21 | D10: M&M | E10: Sell | F10: 750 | G10: 825 | H10: 724.5 | I10: 600 | J10: Profit of Rs.25.50/- | L10: =F10-H10 -> 25.5 | M10: =L10/F10 -> 3.40% | N10: Successful | O10: 2018-02-19 | S10: P
A11: 2 | B11: 2018-01-11 | D11: SUNPHARMA | E11: Buy | F11: 593.5 | G11: 560 | H11: 557.5 | I11: 650 | J11: Loss of Rs.36/- | L11: =H11-F11-K11 -> -36.00 | M11: =L11/F11 -> -6.07% | N11: Unsuccessful | O11: 2018-02-01 | S11: R
A12: 3 | B12: 2018-01-12 | D12: GRANULES | E12: Buy | F12: =(145.5+133.5)/2 -> 139.5 | G12: 131 | H12: 131 | I12: 160-162 | J12: Loss of Rs.8.5/- | L12: =H12-F12-K12 -> -8.50 | M12: =L12/F12 -> -6.09% | N12: Unsuccessful | O12: 2018-02-01 | S12: H
A13: 4 | B13: 2018-01-16 | D13: PIDILITIND | E13: Buy | F13: 906.5 | G13: 880 | H13: 870 | I13: 965 | J13: Loss of Rs.36.5/- | L13: =H13-F13-K13 -> -36.50 | M13: -4.03% | N13: Unsuccessful | O13: 2018-02-02 | S13: R
A14: 5 | B14: 2018-01-18 | D14: AUROPHARMA | E14: Buy | F14: 660.5 | G14: 634 | H14: 626 | I14: 720-730 | J14: Loss of Rs.34.5/- | L14: =H14-F14-K14 -> -34.50 | M14: =L14/F14 -> -5.22% | N14: Unsuccessful | O14: 2018-02-01 | S14: H
A15: 6 | B15: 2018-01-19 | D15: ENGINERSIN | E15: Buy$ | F15: 171 | G15: 160 | I15: 195-200 | J15: Open | P15: =VLOOKUP(D15,Sheet2!$A$1:M2077,6,0) -> 163.55 | S15: H
A16: 7 | B16: 2018-01-22 | D16: LT | E16: Sell | F16: 1381.5 | G16: 1444 | H16: 1455 | I16: 1250 | J16: Loss of Rs.73.5/- | L16: =F16-H16 -> -73.5 | M16: -5.32% | N16: Unsuccessful | O16: 2018-02-01 | S16: R
A17: 8 | B17: 2018-01-23 | D17: ADANIPORTS | E17: Sell | F17: 435 | G17: 455 | H17: 417.5 | I17: 390 | J17: Profit of Rs.17.5/- | L17: =F17-H17 -> 17.5 | M17: =L17/F17 -> 4.02% | N17: Successful | O17: 2018-02-01 | S17: R
A18: 9 | B18: 2018-01-30 | D18: CESC | E18: Buy | F18: 1067 | G18: 1020 | H18: 1010 | I18: 1140 | J18: Loss of Rs.57/- | L18: =H18-F18-K18 -> -57.00 | M18: -5.34% | N18: Unsuccessful | O18: 2018-02-15 | S18: R
A19: 10 | B19: 2018-01-30 | D19: TATAMOTORS | E19: Buy | F19: 400.5 | G19: 385 | H19: 377.5 | I19: 430-440 | J19: Loss of Rs.23/- | L19: =H19-F19-K19 -> -23.00 | M19: =L19/F19 -> -5.74% | N19: Unsuccessful | O19: 2018-02-06 | S19: H
A20: 11 | B20: 2018-02-05 | D20: UPL | E20: Buy | F20: 710-718 | G20: 684 | I20: 770-800 | J20: Open | P20: =VLOOKUP(D20,Sheet2!$A$1:M2084,6,0) -> 688.25 | S20: H
A21: 12 | B21: 2018-02-05 | D21: INDHOTEL | E21: Buy | F21: 128 | G21: 121 | H21: 132.75 | I21: 140 | J21: Profit of Rs.4.75/- | L21: =H21-F21-K21 -> 4.75 | M21: =L21/F21 -> 3.71% | N21: Successful | O21: 2018-02-05 | S21: H
A22: 13 | B22: 2018-02-05 | D22: INDIANB | E22: Buy | F22: 336 | G22: 319 | H22: 348.5 | I22: 370-380 | J22: Profit of Rs.12.5/- | L22: =H22-F22-K22 -> 12.5 | M22: =L22/F22 -> 3.72% | N22: Successful | O22: 2018-02-12 | S22: H
A23: 14 | B23: 2018-02-05 | D23: LICHSGFIN | E23: Buy | F23: 511.5 | G23: 485 | H23: 529.7 | I23: 560 | J23: Profit of Rs.18.2/- | L23: 18.2 | M23: 3.56% | N23: Successful | O23: 2018-02-14 | S23: R
A24: 15 | B24: 2018-02-05 | D24: BAJFINANCE | E24: Buy | F24: 1585 | G24: 1540 | H24: 1630 | I24: 1700 | J24: Profit of Rs.45/- | L24: =H24-F24-K24 -> 45 | M24: =L24/F24 -> 2.84% | N24: Successful | O24: 2018-02-06 | S24: H
A25: 16 | B25: 2018-02-05 | D25: CUMMINSIND | E25: Sell | F25: 815 | G25: 855 | H25: 767.5 | I25: 750-730 | J25: Profit of Rs.47.5/- | L25: =F25-H25 -> 47.5 | M25: =L25/F25 -> 5.83% | N25: Successful | O25: 2018-02-06 | S25: H
A26: 17 | B26: 2018-02-06 | D26: HDFCBANK | E26: Buy | F26: 1857.5 | G26: 1785 | H26: 1912.5 | I26: 2000 | J26: Profit of Rs.55/- | L26: =H26-F26-K26 -> 55 | M26: 2.96% | N26: Successful | O26: 2018-02-06 | S26: R
A27: 18 | B27: 2018-02-06 | D27: BHEL | E27: Buy | F27: 92.5 | G27: 87 | H27: 97.5 | I27: 102-104 | J27: Profit of Rs.5/- | L27: =H27-F27-K27 -> 5 | M27: =L27/F27 -> 5.41% | N27: Successful | O27: 2018-02-08 | S27: A
A28: 19 | B28: 2018-02-07 | D28: HEXAWARE | E28: Buy | F28: 369.5 | G28: 355 | H28: 352.5 | I28: 400-405 | J28: Loss of Rs.17/- | L28: =H28-F28-K28 -> -17.00 | M28: =L28/F28 -> -4.60% | N28: Unsuccessful | O28: 2018-02-08 | S28: R
A29: 20 | B29: 2018-02-08 | D29: TATAPOWER | E29: Buy | F29: 84.5 | G29: 79 | H29: 87.9 | I29: 90-95 | J29: Profit of Rs.3.4/- | L29: 3.4 | M29: 4.02% | N29: Successful | O29: 2018-02-15 | S29: H
A30: 21 | B30: 2018-02-08 | D30: INDUSINDBK | E30: Buy | F30: 1677.5 | G30: 1630 | H30: 1610 | I30: 1780 | J30: Loss of Rs.67.5/- | L30: =H30-F30-K30 -> -67.50 | M30: =L30/F30 -> -4.02% | N30: Unsuccessful | O30: 2018-02-21 | S30: R
A31: 22 | B31: 2018-02-08 | D31: AMBUJACEM | E31: Buy | F31: 251 | G31: 240 | H31: 261.5 | I31: 275 | J31: Profit of Rs.10.5/- | L31: =H31-F31-K31 -> 10.5 | M31: =L31/F31 -> 4.18% | N31: Successful | O31: 2018-02-08 | S31: A
A32: 23 | B32: 2018-02-09 | D32: CEATLTD | E32: Buy | F32: 1517.5 | G32: 1450 | H32: 1559 | I32: 1650 | J32: Profit of Rs.41.5/- | L32: =H32-F32-K32 -> 41.5 | M32: =L32/F32 -> 2.73% | N32: Successful | O32: 2018-02-09 | S32: R
A33: 24 | B33: 2018-02-09 | D33: HINDUNILVR | E33: Buy | F33: 1330-1334 | G33: 1275 | I33: 1450 | J33: Open | P33: =VLOOKUP(D33,Sheet2!$A$1:M2094,6,0) -> 1330.6 | S33: A
A34: 25 | B34: 2018-02-12 | D34: MFSL | E34: Buy | F34: 530 | G34: 508 | H34: 505 | I34: 570 | J34: Loss of Rs.25/- | L34: =H34-F34-K34 -> -25.00 | M34: =L34/F34 -> -4.72% | N34: Unsuccessful | O34: 2018-02-16 | S34: H
A35: 26 | B35: 2018-02-12 | D35: JUBLFOOD | E35: Buy | F35: 2042.5 | G35: 1975 | H35: 2112.5 | I35: 2160-2170 | J35: Profit of Rs.70/- | L35: =H35-F35-K35 -> 70 | M35: =L35/F35 -> 3.43% | N35: Successful | O35: 2018-02-15 | S35: R
A36: 27 | B36: 2018-02-12 | D36: IGL | E36: Buy | F36: 298.5 | G36: 284 | H36: 311.5 | I36: 330 | J36: Profit of Rs.13/- | L36: =H36-F36-K36 -> 13 | M36: =L36/F36 -> 4.36% | N36: Successful | O36: 2018-02-14 | S36: H
A37: 28 | B37: 2018-02-12 | D37: ITC | E37: Buy | F37: 271-272 | G37: 250 | I37: 310 | J37: Open | P37: =VLOOKUP(D37,Sheet2!$A$1:M2098,6,0) -> 268.2 | S37: P
A38: 29 | B38: 2018-02-12 | D38: BANKINDIA | E38: Buy | F38: 145.5 | G38: 130 | H38: 125.5 | I38: 175 | J38: Loss of Rs.20/- | L38: =H38-F38-K38 -> -20.00 | M38: =L38/F38 -> -13.75% | N38: Unsuccessful | O38: 2018-02-19 | S38: P
A39: 30 | B39: 2018-02-12 | D39: WIPRO | E39: Buy | F39: 286-288 | G39: 272 | I39: 310-315 | J39: Open | P39: =VLOOKUP(D39,Sheet2!$A$1:M2100,6,0) -> 292.2 | S39: R
A40: 31 | B40: 2018-02-14 | D40: COLPAL | E40: Buy | F40: 1095-1100 | G40: 1050 | I40: 1200 | J40: Open | P40: =VLOOKUP(D40,Sheet2!$A$1:M2101,6,0) -> 1080.75 | S40: R
A41: 32 | B41: 2018-02-14 | D41: BEL | E41: Buy | F41: 159-160 | G41: 150 | I41: 180 | J41: Open | P41: =VLOOKUP(D41,Sheet2!$A$1:M2102,6,0) -> 150.85 | S41: P
A42: 33 | B42: 2018-02-14 | D42: GLENMARK | E42: Buy | F42: 532-535 | G42: 510 | I42: 580 | J42: Open | P42: =VLOOKUP(D42,Sheet2!$A$1:M2103,6,0) -> 524.95 | S42: R
A43: 34 | B43: 2018-02-15 | D43: SBIN | E43: Buy | F43: 280.5 | G43: 267 | H43: 263 | I43: 305-310 | J43: Loss of Rs.17.50/- | L43: =H43-F43-K43 -> -17.50 | M43: =L43/F43 -> -6.24% | N43: Unsuccessful | O43: 2018-02-19 | S43: H
A44: 35 | B44: 2018-02-15 | D44: PNB | E44: Buy | F44: 138 | G44: 127 | H44: 117 | I44: 157 | J44: Loss of Rs.21/- | L44: =H44-F44-K44 -> -21.00 | M44: =L44/F44 -> -15.22% | N44: Unsuccessful | O44: 2018-02-19 | S44: P
A45: 36 | B45: 2018-02-15 | D45: CADILAHC | E45: Buy | F45: 414-416 | G45: 394 | I45: 450-460 | J45: Open | P45: =VLOOKUP(D45,Sheet2!$A$1:M2106,6,0) -> 411.15 | S45: H
A46: 37 | B46: 2018-02-20 | D46: ALLCARGO | E46: Buy | F46: 175-178 | G46: 167 | I46: 195 | J46: Open | P46: =VLOOKUP(D46,Sheet2!$A$1:M2107,6,0) -> 177 | S46: R
A47: 38 | B47: 2018-02-21 | D47: PNB | E47: Buy | F47: 117-118 | G47: 107 | I47: 137 | J47: Open | P47: =VLOOKUP(D47,Sheet2!$A$1:M2108,6,0) -> 117.3 | S47: P
A51: CLBS = Closing Basis *** | F51: Reinitiated $
A52: Dividend adjusted <> | F52: Revised stoploss #
A54: Master Trade High Risk
A55: Sr.no | B55: Date | D55: Company | E55: Rec | F55: Rec Price | G55: Stop Loss | H55: Call Closed At | I55: Target | J55: Remark | L55: Profit / Loss per share | M55: Gain / Loss per Lot | N55: Lot | O55: Status | P55: Closed Date
A56: 1 | B56: 2018-02-01 | D56: NIFTY FEB FUT | E56: Sell | F56: 11110 | G56: 11230 | H56: 11025 | I56: 10900 | J56: Profit of Rs.85/- | L56: =F56-H56 -> 85.00 | M56: =L56*N56 -> 6375 | N56: 75 | O56: Successful | P56: 2018-02-01 | S56: H
A57: 2 | B57: 2018-02-07 | D57: NIFTY FEB FUT | E57: Buy | F57: 10545 | G57: 10430 | H57: 10635 | I57: 10750 | J57: Profit of Rs.90/- | L57: =H57-F57 -> 90 | M57: =L57*N57 -> 6750 | N57: 75 | O57: Successful | P57: 2018-02-08 | S57: R
A58: 3 | B58: 2018-02-07 | D58: ASHOKLEY FEB FUT | E58: Sell | F58: 130 | G58: 133 | H58: 133 | I58: 124 | J58: Loss of Rs.1.75 | L58: =F58-H58 -> -3.00 | M58: =L58*N58 -> -21000 | N58: 7000 | O58: Unsuccessful | P58: 2018-02-07 | S58: H
D59: ASHOKLEY FEB 125 PE | E59: Sell | F59: 3.25 | H59: 2 | L59: =F59-H59 -> 1.25 | M59: =L59*N58 -> 8750
A60: 4 | B60: 2018-02-19 | D60: NIFTY MAR FUT | E60: Buy | F60: 10455 | G60: 10350 | H60: 10350 | I60: 10630-10650 | J60: Loss of Rs.105/- | L60: =H60-F60 -> -105 | M60: =L60*N60 -> -7875 | N60: 75 | O60: Unsuccessful | P60: 2018-02-19 | S60: R
A64: Master Trade Medium Risk
A65: Sr.no | B65: Date | D65: Company | E65: Rec | F65: Rec Price | G65: Stop Loss | H65: Call Closed At | I65: Target | J65: Remark | L65: Profit/Loss per lot | M65: Gain / Loss per Lot | N65: Lot | O65: Status | P65: Closed Date
A66: 1 | B66: 2018-01-31 | D66: NIFTY FEB 10900 PE | E66: Buy | F66: 106 | H66: 213 | I66: 350 | J66: Profit of Rs.50.5/- | L66: =H66-F66 -> 107 | M66: =50.5*N66 -> 3787.5 | N66: 75 | O66: Successful | P66: 2018-02-02 | S66: A
D67: NIFTY FEB 11300 CE | E67: Buy | F67: 66 | H67: 9.5 | L67: =H67-F67 -> -56.5
A68: 2 | B68: 2018-02-08 | D68: BankNifty 08-Feb 26100 CE | E68: Buy | F68: 23 | H68: 41 | I68: 60 | J68: Profit of Rs.18/- | L68: =H68-F68 -> 18 | M68: =L68*N68 -> 720 | N68: 40 | O68: Successful | P68: 2018-02-08 | S68: A
A69: 3 | B69: 2018-02-14 | D69: TCS FEB 2900 PE | E69: Buy | F69: 30 | H69: 44 | I69: 70 | J69: Profit of Rs.14/- | L69: =H69-F69 -> 14 | M69: =L69*N69 -> 3500 | N69: 250 | O69: Successful | P69: 2018-02-14
A70: 4 | B70: 2018-02-14 | D70: ONGC FEB 180 PE | E70: Buy | F70: 1.40-1.60 | I70: 4 | J70: Open | S70: A
A71: 5 | B71: 2018-02-14 | D71: HINDUNILVR FEB 1360 CE | E71: Buy | F71: 9 | H71: 14 | I71: 20 | J71: Profit of Rs.5/- | L71: =H71-F71 -> 5 | M71: =L71*N71 -> 3000 | N71: 600 | O71: Successful | P71: 2018-02-15 | S71: A
A72: 6 | B72: 2018-02-15 | D72: ITC FEB 270 CE | E72: Buy | F72: 2.2 | H72: 3.25 | I72: 6 | J72: Profit of Rs.1.05/- | L72: =H72-F72 -> 1.05 | M72: =L72*N72 -> 2520 | N72: 2400 | O72: Successful | P72: 2018-02-15 | S72: H
A73: 7 | B73: 2018-02-15 | D73: BANKNIFTY 15-FEB 25600 CE | E73: Buy | F73: 30 | H73: 0 | I73: 60-70 | J73: Loss of Rs.30/- | L73: =H73-F73 -> -30 | M73: =L73*N73 -> -1200 | N73: 40 | O73: Unsuccessful | P73: 2018-02-15 | S73: A
A74: 8 | B74: 2018-02-19 | D74: HINDUNILVR FEB 1360 CE | E74: Buy | F74: 8.50-9.50 | I74: 20 | J74: Open | S74: A
B78: Smart Delivery Trade
A79: Sr.no | B79: Date | D79: Company | E79: Rec | F79: Rec Price | G79: Stop Loss*** | H79: Call Closed At | I79: Target | J79: Remark | L79: Profit / Loss per Share | M79: Gain / Loss % | N79: Status | O79: Closed Date | P79: NSE Closed Price
A80: 1 | B80: 2018-02-08 | D80: BRITANNIA | E80: Buy | F80: =(4750+4595)/2 -> 4672.5 | G80: 4470 | H80: 4855 | I80: 4980-5000 | J80: Profit of Rs.182.5/- | L80: =H80-F80-K80 -> 182.5 | M80: =L80/F80 -> 3.91% | N80: Successful | O80: 2018-02-14 | S80: R
A81: 2 | B81: 2018-01-17 | D81: BATAINDIA | E81: Buy | F81: 726 | G81: 704 | H81: 700 | I81: 770 | J81: Loss of Rs.26/- | L81: =H81-F81-K81 -> -26.00 | M81: =L81/F81 -> -3.58% | N81: Unsuccessful | O81: 2018-02-02 | S81: R
A82: 3 | B82: 2018-01-30 | D82: MCDOWELL-N | E82: Buy | F82: 3302.5 | G82: 3200 | H82: 3200 | I82: 3500 | J82: Loss of Rs.102.5/- | L82: =H82-F82-K82 -> -102.50 | M82: =L82/F82 -> -3.10% | N82: Unsuccessful | O82: 2018-02-01 | S82: R
A83: 4 | B83: 2018-02-05 | D83: NBCC | E83: Buy | F83: 206.5 | G83: 198 | H83: 212 | I83: 220-225 | J83: Profit of Rs.5.5/- | L83: =H83-F83-K83 -> 5.5 | M83: =L83/F83 -> 2.66% | N83: Successful | O83: 2018-02-05 | S83: H
A84: 5 | B84: 2018-02-05 | D84: EXIDEIND | E84: Buy | F84: 205 | G84: 197 | H84: 210.5 | I84: 220-225 | J84: Profit of Rs.5.5/- | L84: =H84-F84-K84 -> 5.5 | M84: =L84/F84 -> 2.68% | N84: Successful | O84: 2018-02-09 | S84: H
A85: 6 | B85: 2018-02-07 | D85: POWERGRID | E85: Buy<> | F85: 190.55 | G85: 183 | H85: 197.75 | I85: 205-210 | J85: Profit of Rs.7.2/- | L85: 7.2 | M85: 3.78% | N85: Successful | O85: 2018-02-12 | S85: H
A86: 7 | B86: 2018-02-08 | D86: NBCC | E86: Buy | F86: 205.5 | G86: 195 | H86: 212.5 | I86: 220-225 | J86: Profit of Rs.7/- | L86: =H86-F86-K86 -> 7 | M86: =L86/F86 -> 3.41% | N86: Successful | O86: 2018-02-09 | S86: H
A87: 8 | B87: 2018-02-08 | D87: GODREJIND | E87: Buy | F87: 542-547 | G87: 524 | I87: 580-590 | J87: Open | P87: =VLOOKUP(D87,Sheet2!$A$1:M2127,6,0) -> 540.7 | S87: H
A88: 9 | B88: 2018-02-08 | D88: HINDALCO | E88: Buy | F88: 245 | G88: 237 | H88: 251.5 | I88: 260 | J88: Profit of Rs.6.50/- | L88: =H88-F88-K88 -> 6.5 | M88: =L88/F88 -> 2.65% | N88: Successful | O88: 2018-02-15 | S88: R
A89: 10 | B89: 2018-02-12 | D89: TECHM | E89: Buy | F89: 602.5 | G89: 585 | H89: 618.5 | I89: 635 | J89: Profit of Rs.16/- | L89: =H89-F89-K89 -> 16 | M89: =L89/F89 -> 2.66% | N89: Successful | O89: 2018-02-15 | S89: R
A90: 11 | B90: 2018-02-14 | D90: HEIDELBERG | E90: Buy | F90: 163 | G90: 155 | H90: 155 | I90: 172-175 | J90: Loss of Rs.8/- | L90: -8.00 | M90: -4.91% | N90: Unsuccessful | O90: 2018-02-21 | S90: H
A91: 12 | B91: 2018-02-14 | D91: BAJFINANCE | E91: Buy | F91: 1675 | G91: 1618 | H91: 1610 | I91: 1800 | J91: Loss of Rs.65/- | L91: =H91-F91-K91 -> -65.00 | M91: =L91/F91 -> -3.88% | N91: Unsuccessful | O91: 2018-02-21 | S91: H
A92: 13 | B92: 2018-02-15 | D92: TVSMOTOR | E92: Buy | F92: 655-659 | G92: 635 | I92: 690-700 | J92: Open | P92: =VLOOKUP(D92,Sheet2!$A$1:M2132,6,0) -> 637.25 | S92: R
A93: 14 | B93: 2018-02-15 | D93: ZEEL | E93: Buy | F93: 565-567 | G93: 550 | I93: 590-600 | J93: Open | P93: =VLOOKUP(D93,Sheet2!$A$1:M2133,6,0) -> 573.1 | S93: R
A94: 15 | B94: 2018-02-15 | D94: ACC | E94: Buy | F94: 1630-1640 | G94: 1575 | I94: 1750 | J94: Open | P94: =VLOOKUP(D94,Sheet2!$A$1:M2134,6,0) -> 1645.25 | S94: R
A95: 16 | B95: 2018-02-16 | D95: AMBUJACEM | E95: Buy | F95: 257.5 | G95: 245 | H95: 264.5 | I95: 275-280 | J95: Profit of Rs.7/- | L95: =H95-F95-K95 -> 7 | M95: =L95/F95 -> 2.72% | N95: Successful | O95: 2018-02-20 | S95: H
A96: 17 | B96: 2018-02-20 | D96: IGL | E96: Buy | F96: 291 | G96: 284 | H96: 298 | I96: 310 | J96: Profit of Rs.7/- | L96: =H96-F96-K96 -> 7 | M96: =L96/F96 -> 2.41% | N96: Successful | O96: 2018-02-20 | S96: H
A97: 18 | B97: 2018-02-20 | D97: RAYMOND | E97: Buy | F97: 948.5 | G97: 920 | H97: 966.5 | I97: 1000 | J97: Profit of Rs.18/- | L97: =H97-F97-K97 -> 18 | M97: =L97/F97 -> 1.90% | N97: Successful | O97: 2018-02-20 | S97: R
A98: 19 | B98: 2018-02-21 | D98: NOCIL | E98: Buy | F98: 184-186 | G98: 177 | I98: 200-205 | J98: Open | S98: H
A102: CLBS = Closing Basis *** | F102: Reinitiated $
A103: Dividend adjusted <> | F103: Revised stoploss #
A106: Techno -Funda (positional)
A107: Sr.no | B107: Date | D107: Company | E107: Rec | F107: Rec Price | G107: Stop Loss*** | H107: Call Closed At | I107: Target | J107: Remark | L107: Profit / Loss per Share | M107: Gain / Loss % | N107: Status | O107: Closed Date | P107: NSE Closed Price
A108: 1 | B108: 2018-02-07 | D108: NILKAMAL | E108: Buy | F108: 1655 | G108: 1520 | H108: 1762.5 | I108: 1850-1900 | J108: Profit of Rs.107.5/- | L108: =H108-F108-K108 -> 107.5 | M108: =L108/F108 -> 6.50% | N108: Successful | O108: 2018-02-09 | S108: H
A109: CLBS = Closing Basis *** | F109: Reinitiated $
A110: Dividend adjusted <> | F110: Revised stoploss #
B114: Momentum Call
A115: Sr.no | B115: Date | D115: Company | E115: Rec | F115: Rec Price | G115: Stop Loss | H115: Call Closed At | I115: Target | J115: Remark | L115: Profit / Loss per Share/Lot | M115: Gain / Loss % | N115: Gain / Loss per Lot | O115: Lot | P115: Status | Q115: Closed Date | R115: NSE Closed Price
A116: 1 | B116: 2018-01-31 | D116: BOMDYEING | E116: Buy | F116: 232.5 | G116: 225 | H116: 218 | I116: 250 | J116: Loss of Rs.14.5/- | L116: =H116-F116-K116 -> -14.50 | M116: =L116/F116 -> -6.24% | P116: Unsuccessful | Q116: 2018-02-01 | S116: R
A117: 2 | B117: 2018-02-02 | D117: BFUTILITIE | E117: Buy | F117: 469 | G117: 457 | H117: 457 | I117: 485 | J117: Loss of Rs.12/- | L117: =H117-F117-K117 -> -12.00 | M117: =L117/F117 -> -2.56% | P117: Unsuccessful | Q117: 2018-02-02 | S117: R
A118: 3 | B118: 2018-02-05 | D118: IGL | E118: Buy | F118: 283 | G118: 277 | H118: 288.5 | I118: 295 | J118: Profit of Rs.5.5/- | L118: 5.5 | M118: 1.94% | P118: Successful | Q118: 2018-02-05 | S118: H
A119: 4 | B119: 2018-02-06 | D119: VRLLOG | E119: Buy | F119: 408 | G119: 394 | H119: 429 | I119: 435 | J119: Profit of Rs.21/- | L119: =H119-F119-K119 -> 21 | M119: =L119/F119 -> 5.15% | P119: Successful | Q119: 2018-02-07 | S119: R
A120: 5 | B120: 2018-02-09 | D120: BALRAMCHIN | E120: Buy | F120: 122.25 | G120: 119 | H120: 117.5 | I120: 130 | J120: Loss of Rs.4.75/- | L120: -4.75 | M120: -3.89% | P120: Unsuccessful | Q120: 2018-02-16 | S120: R
A121: 6 | B121: 2018-02-20 | D121: RAIN | E121: Buy | F121: 376 | G121: 365 | H121: 384.5 | I121: 395 | J121: Profit of Rs.8.5/- | L121: =H121-F121-K121 -> 8.5 | M121: =L121/F121 -> 2.26% | P121: Successful | Q121: 2018-02-21 | S121: R
A123: CLBS = Closing Basis *** | F123: Reinitiated $
A124: Dividend adjusted <> | F124: Revised stoploss #
B128: Quick Pick Intraday
A129: Sr.no | B129: Date | D129: Company | E129: Rec | F129: Rec Price | G129: Stop Loss*** | H129: Call Closed At | I129: Target | J129: Remark | L129: Profit / Loss per Share | M129: Gain / Loss % | N129: Status | O129: Closed Date
B137: Investment Idea
A138: Sr.no | B138: Date | D138: Company | E138: Rec | F138: Rec Price | G138: Point of Review | H138: Close Rate | I138: Target | J138: Remark | L138: Profit / Loss per Share | M138: Gain / Loss % | N138: Status | O138: Closed Date
A139: 1 | B139: 2013-11-01 | D139: L&T Finance Holding | E139: Accu | F139: 82.00 | G139: - | H139: 100 | I139: 100.00 | J139: Target Achieved | L139: =H139-F139-K139 -> 18.00 | M139: =L139/F139 -> 21.95% | N139: Successful | O139: 2016-10-14
A140: 2 | B140: 2014-06-04 | D140: Finolex Inds | E140: Buy | F140: 257.00 | G140: - | H140: 300 | I140: 300.00 | J140: Target Achieved | L140: 43.00 | M140: 16.73% | N140: Successful | O140: 2014-07-02
A141: =1+A140 -> 3 | B141: 2014-07-08 | D141: JK Cement | E141: Buy | F141: 393.00 | G141: - | H141: 468 | I141: 468.00 | J141: Target Achieved | L141: 75.00 | M141: 19.08% | N141: Successful | O141: 2014-08-12
A142: 4 | B142: 2014-08-06 | D142: Finolex Cables | E142: Buy | F142: 205.00 | G142: - | H142: 275 | I142: 250.00 | J142: Target Achieved | L142: 70.00 | M142: 34.15% | N142: Successful | O142: 2014-11-19
A143: 5 | B143: 2014-09-04 | D143: Exide Inds | E143: Buy | F143: 162.00 | G143: - | H143: 190 | I143: 190.00 | J143: Target Achieved | L143: 28.00 | M143: 17.28% | N143: Successful | O143: 2015-01-02
A144: 6 | B144: 2014-09-04 | D144: Deepak Nitrite | E144: Buy | F144: 75.00 | G144: - | H144: 91.5 | I144: 95-100 | J144: Profit of Rs.16.50/- | L144: 16.50 | M144: 22.00% | N144: Successful | O144: 2014-11-11
A145: 7 | B145: 2014-10-01 | D145: Mercks | E145: Buy | F145: 850.00 | G145: - | H145: 982.5 | I145: 1050.00 | J145: Profit of Rs.132.50/- | L145: 132.50 | M145: 15.59% | N145: Successful | O145: 2015-02-04
A146: 8 | B146: 2014-10-01 | D146: Grindwell Norton | E146: Buy | F146: 475.00 | G146: - | H146: 515 | I146: 600.00 | J146: Profit of Rs.40/- | L146: 40.00 | M146: 8.42% | N146: Successful | O146: 2014-10-27
A147: 9 | B147: 2014-10-01 | D147: Snowman Logistics | E147: Buy | F147: 86.00 | G147: - | H147: 99 | I147: 140.00 | J147: Profit of Rs.13.00/- | L147: 13.00 | M147: 15.12% | N147: Successful | O147: 2014-10-27
A148: 10 | B148: 2014-10-14 | D148: Birla Corp | E148: Buy | F148: 496.60 | G148: - | H148: 621 | I148: 580.00 | J148: Target Achieved | L148: 124.40 | M148: 25.05% | N148: Successful | O148: 2016-08-23
A149: 11 | B149: 2014-10-14 | D149: Ultratech Cem | E149: Buy | F149: 2481.90 | G149: - | H149: 2840 | I149: 2870.00 | J149: Profit of Rs.358.10/- | L149: 358.10 | M149: 14.43% | N149: Successful | O149: 2015-01-13
A150: =1+A147 -> 10 | B150: 2014-10-16 | D150: Sintex Inds | E150: Buy | F150: 84.50 | G150: - | H150: 93 | I150: 110.00 | J150: Profit of Rs.8.50/- | L150: 8.50 | M150: 10.06% | N150: Successful | O150: 2014-10-27
A151: =1+A150 -> 11 | B151: 2014-10-16 | D151: HSIL | E151: Buy | F151: 401.00 | G151: - | H151: 428 | I151: 450.00 | J151: Profit of Rs.27.00/- | L151: 27.00 | M151: 6.73% | N151: Successful | O151: 2015-01-16
A152: 12 | B152: 2014-10-16 | D152: Eveready Inds | E152: Buy | F152: 101.00 | G152: - | H152: 112 | I152: 120.00 | J152: Profit of Rs.11.00/- | L152: 11.00 | M152: 10.89% | N152: Successful | O152: 2014-10-27
A153: 13 | B153: 2014-11-11 | D153: Pennar Inds | E153: Buy | F153: 59.00 | G153: - | H153: 76 | I153: 76.00 | J153: Target Achieved | L153: 17.00 | M153: 28.81% | N153: Successful | O153: 2017-10-24
A154: 14 | B154: 2014-11-11 | D154: Snowman Logistics | E154: Buy | F154: 99.00 | G154: - | H154: 120 | I154: 120.00 | J154: Profit of Rs.21/- | L154: 21.00 | M154: 21.21% | N154: Successful | O154: 2014-11-17
A155: 15 | B155: 2014-11-13 | D155: Dharamsi Morarji Chem | E155: Buy | F155: 22.00 | G155: - | H155: 33.55 | I155: 32.00 | J155: Profit of Rs 11.55/- | L155: 11.55 | M155: 52.50% | N155: Successful | O155: 2015-07-03
A156: 16 | B156: 2014-12-03 | D156: Tatachem | E156: Buy | F156: 440.00 | G156: - | H156: 520 | I156: 520.00 | J156: Profit of Rs 80.00/- | L156: 80.00 | M156: 18.18% | N156: Successful | O156: 2015-07-23
A157: 17 | B157: 2014-12-03 | D157: Advanta | E157: Buy | F157: 360.00 | G157: - | H157: 427 | I157: 425.00 | J157: Profit of Rs.67.00/- | L157: 67.00 | M157: 18.61% | N157: Successful | O157: 2015-02-23
A158: 18 | B158: 2015-01-08 | D158: GDL | E158: Buy | F158: 360.00 | G158: - | H158: 455 | I158: 420.00 | J158: Profit of Rs.95.00/- | L158: 95.00 | M158: 26.39% | N158: Successful | O158: 2015-01-20
A159: 19 | B159: 2015-01-08 | D159: NRB Bearing | E159: Buy | F159: 130.00 | H159: 175.5 | I159: 165.00 | J159: Profit of Rs 45.50/- | L159: 45.50 | M159: 35.00% | N159: Successful | O159: 2017-12-19
A160: 20 | B160: 2015-02-05 | D160: GSFC | E160: Accu | F160: 98.00 | H160: 120 | I160: 120.00 | J160: Target Achieved | L160: 22.00 | M160: 22.45% | N160: Successful | O160: 2017-01-18
A161: 21 | B161: 2015-02-05 | D161: Sundrmfast | E161: Accu | F161: 196.00 | H161: 262 | I161: 255.00 | J161: Target Achieved | L161: 66.00 | M161: 33.67% | N161: Successful | O161: 2016-08-17
A162: 22 | B162: 2015-03-04 | D162: GPPL | E162: Accu | F162: 230-240 | I162: 280-285 | J162: Open
A163: 23 | B163: 2015-03-04 | D163: ORIENTCEM | E163: Accu | F163: 185.00 | H163: 224 | I163: 220-225 | J163: Target Achieved | L163: =H163-F163-K163 -> 39.00 | M163: =L163/F163 -> 21.08% | N163: Successful | O163: 2016-10-04
A164: 24 | B164: 2015-03-27 | D164: PFS | E164: Accu | F164: 49-50 | I164: 67.00 | J164: Open
A165: 25 | B165: 2015-03-30 | D165: Walchandnagar Ind Ltd | E165: Accu | F165: 183.50 | H165: 219 | I165: 218.00 | J165: Profit of Rs.35.50/- | L165: =H165-F165-K165 -> 35.50 | M165: =L165/F165 -> 19.35% | N165: Successful | O165: 2015-04-09
A166: 26 | B166: 2015-04-20 | D166: Kalpataru Power Transmission Ltd | E166: Accu | F166: =(227+237)/2 -> 232.00 | H166: 298 | I166: 298.00 | J166: Target Achieved | L166: 66.00 | M166: 28.45% | N166: Successful | O166: 2017-03-29
A167: 27 | B167: 2015-05-04 | D167: Mastek Ltd | E167: Buy | F167: 385.00 | H167: =212.5+331 -> 543.5 | I167: 510.00 | J167: Profit of Rs 158.50/- | L167: 158.50 | M167: 41.17% | N167: Successful | O167: 2015-08-19
A168: 28 | B168: 2015-05-04 | D168: Suprajit Eng | E168: Buy | F168: 115.50 | H168: 146 | I168: 142.00 | J168: Profit of Rs 30.50/- | L168: 30.50 | M168: 26.41% | N168: Successful | O168: 2015-07-17
A169: 29 | B169: 2015-05-27 | D169: TCI | E169: Buy | F169: 237.50 | H169: 279.5 | I169: 278.00 | J169: Target Achieved | L169: 42.00 | M169: 17.68% | N169: Successful | O169: 2015-08-06
A170: 30 | B170: 2015-06-19 | D170: HSIL | E170: Accu | F170: 340.00 | H170: 448 | I170: 448.00 | J170: Target Achieved | L170: 108.00 | M170: 31.76% | N170: Successful | O170: 2017-10-10
A171: 31 | B171: 2015-07-06 | D171: Capital First | E171: Accu | F171: 390.00 | H171: 460 | I171: 460.00 | J171: Target Achieved | L171: 70.00 | M171: 17.95% | N171: Successful | O171: 2016-04-18
A172: 32 | B172: 2015-07-10 | D172: Dolphin OffShore | E172: Accu | F172: 118-127 | I172: 172.00 | J172: Open
A173: 33 | B173: 2015-08-03 | D173: Allcargo logistics | E173: Accu | F173: 297.50 | H173: 350 | I173: 360.00 | J173: Profit of Rs 52.50/- | L173: =H173-F173-K173 -> 52.50 | M173: =L173/F173 -> 17.65% | N173: Successful | O173: 2015-08-16
A174: 34 | B174: 2015-08-03 | D174: Camline Fine | E174: Accu | F174: 115.50 | H174: 149 | I174: 140.00 | J174: Profit of Rs 33.50/- | L174: 33.50 | M174: 29.00% | N174: Successful | O174: 2017-01-05
A175: 35 | B175: 2015-09-04 | D175: TCI | E175: Accu | F175: 226.00 | H175: 292 | I175: 292.00 | J175: Target Achieved | L175: 66.00 | M175: 29.20% | N175: Successful | O175: 2015-10-09
A176: 36 | B176: 2015-09-07 | D176: Kalpataru Power Transmission Ltd | E176: Accu | F176: 232.50 | H176: 312.5 | I176: 310.00 | J176: Target Achieved | L176: 80.00 | M176: 34.41% | N176: Successful | O176: 2017-03-29
A177: 37 | B177: 2015-09-21 | D177: LLOYD ELECTRIC & ENG LTD | E177: Accu | F177: 196.50 | H177: 238 | I177: 238.00 | J177: Target Achieved | L177: 41.50 | M177: 21.12% | N177: Successful | O177: 2015-10-14
A178: 38 | B178: 2015-09-24 | D178: L&T Finance Holding | E178: Accu | F178: 65.00 | H178: 82 | I178: 82.00 | J178: Target Achieved | L178: 17.00 | M178: 26.15% | N178: Successful | O178: 2016-07-27
A179: 39 | B179: 2015-10-14 | D179: KEC International ltd | E179: Accu | F179: 144.00 | H179: 182.5 | I179: 181.00 | J179: Target Achieved | L179: 38.50 | M179: 26.74% | N179: Successful | O179: 2017-03-23
A180: 40 | B180: 2015-10-14 | D180: Gruh Finance | E180: Accu | F180: 264.00 | H180: 311 | I180: 311.00 | J180: Target Achieved | L180: 47.00 | M180: 17.80% | N180: Successful | O180: 2016-08-22
A181: 41 | B181: 2015-11-10 | D181: Pidilitind | E181: Buy | F181: 549.50 | H181: 630 | I181: 630.00 | J181: Target Achieved | L181: 80.50 | M181: 14.65% | N181: Successful | O181: 2016-02-19
A182: 42 | B182: 2015-12-04 | D182: Zensar Technology | E182: Accu | F182: 1020-1035 | I182: 1250.00 | J182: Open
A183: 43 | B183: 2015-12-29 | D183: Vinati Organics Ltd | E183: Accu | F183: 465.00 | H183: 540 | I183: 540.00 | J183: Target Achieved | L183: =H183-F183-K183 -> 75.00 | M183: =L183/F183 -> 16.13% | N183: Successful | O183: 2016-06-09
A184: 44 | B184: 2016-01-11 | D184: GSFC | E184: Buy | F184: 81.00 | H184: 110 | I184: 110.00 | J184: Target Achieved | L184: 29.00 | M184: 35.80% | N184: Successful | O184: 2017-01-10
A185: 45 | B185: 2016-01-13 | D185: SSWL | E185: Buy | F185: 417.50 | H185: 547 | I185: 535.00 | J185: Target Achieved | L185: 129.50 | M185: 31.02% | N185: Successful | O185: 2016-07-27
A186: 46 | B186: 2016-02-08 | D186: Persistent System Ltd | E186: Accu | F186: 650 | H186: 767.50 | I186: 800.00 | J186: Part profit of Rs.117.50/- | L186: 117.50 | M186: 18% | N186: Successful | O186: 2016-03-21
A187: 47 | B187: 2016-03-04 | D187: UPL | E187: Accu | F187: 437.50 | H187: 504.5 | I187: 522.00 | J187: Profit of Rs.67/- | L187: 67.00 | M187: 15.31% | N187: Successful | O187: 2016-04-20
A188: 48 | B188: 2016-03-09 | D188: Ashoka Buildcon Ltd | E188: Accu | F188: 189.50 | H188: 218 | I188: 218.00 | J188: Target Achieved | L188: 28.50 | M188: 15.04% | N188: Successful | O188: 2017-10-26
A189: 49 | B189: 2016-04-11 | D189: PTC INDIA FIN SERV LTD | E189: Accu | F189: 36-37 | I189: 60.00 | J189: Open
A190: 50 | B190: 2016-04-12 | D190: CAMLINFINE $ | E190: Accu | F190: 93.00 | H190: 149 | I190: 140.00 | J190: Profit of Rs 56/- | L190: =H190-F190-K190 -> 56.00 | M190: =L190/F190 -> 60.22% | N190: Successful | O190: 2017-01-05
A191: 51 | B191: 2016-04-12 | D191: Greaves Cotton Ltd. | E191: Accu | F191: 130.00 | H191: 150 | I191: 150-155 | J191: Target Achieved | L191: =H191-F191-K191 -> 20.00 | M191: =L191/F191 -> 15.38% | N191: Successful | O191: 2016-07-13
A192: 52 | B192: 2016-04-13 | D192: DHFL | E192: Accu | F192: 196.00 | H192: 299 | I192: 299.00 | J192: Target Achieved | L192: =H192-F192-K192 -> 103.00 | M192: =L192/F192 -> 52.55% | N192: Successful | O192: 2016-09-07
A193: 53 | B193: 2016-04-13 | D193: Magma | E193: Accu | F193: 88.00 | H193: 103 | I193: 103.00 | J193: Target Achieved | L193: =H193-F193-K193 -> 15.00 | M193: =L193/F193 -> 17.05% | N193: Successful | O193: 2016-06-09
A194: 54 | B194: 2016-05-02 | D194: KEC International ltd $ | E194: Accu | F194: 127.50 | H194: 148 | I194: 148-150 | J194: Target Achieved | L194: =H194-F194-K194 -> 20.50 | M194: =L194/F194 -> 16.08% | N194: Successful | O194: 2016-07-13
A195: 55 | B195: 2016-05-03 | D195: Mindtree | E195: Accu | F195: 670-680 | I195: 790-800 | J195: Open
A196: 56 | B196: 2016-06-01 | D196: Atulauto | E196: Accu | F196: 495-505 | I196: 565-570 | J196: Open
A197: 57 | B197: 2016-06-06 | D197: TRITURBINE | E197: Accu | F197: 110.00 | H197: 126.5 | I197: 125.00 | J197: Profit of Rs.16.50/- | L197: =H197-F197-K197 -> 16.50 | M197: =L197/F197 -> 15.00% | N197: Successful | O197: 2016-07-01
A198: 58 | B198: 2016-06-17 | D198: Pennar Industries Ltd | E198: Accu | F198: 44 | H198: 64.50 | I198: 69.50 | J198: Part profit of Rs.20.50/- | L198: =H198-F198-K198 -> 20.50 | M198: =L198/F198 -> 47% | N198: Successful | O198: 2017-08-30
A199: 59 | B199: 2016-06-28 | D199: EVEREADY INDS. IND. LTD. | E199: Accu | F199: 262.50 | H199: 340 | I199: 333.00 | J199: Profit of Rs.77.50/- | L199: =H199-F199-K199 -> 77.50 | M199: =L199/F199 -> 29.52% | N199: Successful | O199: 2017-10-09
A200: 60 | B200: 2016-06-28 | D200: FIEM INDUSTRIES LIMITED | E200: Accu | F200: 840.00 | H200: 1230 | I200: 1230.00 | J200: Target Achieved | L200: =H200-F200-K200 -> 390.00 | M200: =L200/F200 -> 46.43% | N200: Successful | O200: 2016-10-06
A201: 61 | B201: 2016-07-05 | D201: Bajaj Corp Ltd | E201: Accu | F201: 395 | H201: 468.50 | I201: 510.00 | J201: Part profit of Rs.73.50/- | L201: =H201-F201-K201 -> 73.50 | M201: =L201/F201 -> 19% | N201: Successful | O201: 2017-08-30
A202: 62 | B202: 2016-08-02 | D202: GPPL $ | E202: Buy | F202: 167-172 | I202: 198-200 | J202: Open
A203: 63 | B203: 2016-08-04 | D203: WONDERLA HOLIDAYS LTD | E203: Accu | F203: 395-405 | I203: 475.00 | J203: Open
A204: 64 | B204: 2016-08-11 | D204: CAMLINFINE | E204: Accu | F204: 86.50 | H204: 130 | I204: 130.00 | J204: Profit of Rs.43.50/- | L204: =H204-F204-K204 -> 43.50 | M204: =L204/F204 -> 50.29% | N204: Successful | O204: 2017-12-22
A205: 65 | B205: 2016-08-18 | D205: GRANULES | E205: Accu | F205: 133.5 | H205: 126.50 | I205: 178.00 | J205: Exit | L205: -7.00 | M205: -5.24% | N205: Unsuccessful | O205: 2016-09-02
A206: 66 | B206: 2016-08-31 | D206: VA TECH WABAG | E206: Accu | F206: 560.00 | H206: 725 | I206: 725.00 | J206: Target Achieved | L206: 165.00 | M206: 29.46% | N206: Successful | O206: 2016-03-27
A207: 67 | B207: 2016-09-01 | D207: SKIPPER LIMITED | E207: Accu | F207: 160.50 | H207: 210 | I207: 210.00 | J207: Target Achieved | L207: 49.50 | M207: 30.84% | N207: Successful | O207: 2017-05-16
A208: 68 | B208: 2016-10-03 | D208: IFB Industries | E208: Accu | F208: 430.00 | H208: 596 | I208: 575.00 | J208: Profit of Rs.166/- | L208: 166.00 | M208: 38.60% | N208: Successful | O208: 2017-02-03
A209: 69 | B209: 2016-10-14 | D209: ASIANTILES | E209: Accu | F209: 280.00 | H209: 345 | I209: 345.00 | J209: Target Achieved | L209: 65.00 | M209: 23.21% | N209: Successful | O209: 2017-03-20
A210: 70 | B210: 2016-10-14 | D210: DEEPIND | E210: Accu | F210: 245.00 | H210: 325.5 | I210: 330.00 | J210: Profit of Rs.80.5/- | L210: 80.50 | M210: 32.86% | N210: Successful | O210: 2017-02-03
A211: 71 | B211: 2016-10-17 | D211: DCBBANK | E211: Accu | F211: 125.00 | H211: 160 | I211: 160.00 | J211: Target Achieved | L211: 35.00 | M211: 28.00% | N211: Successful | O211: 2017-03-09
A212: 72 | B212: 2016-10-17 | D212: ORIENTREF | E212: Accu | F212: 114.00 | H212: 145 | I212: 145.00 | J212: Target Achieved | L212: =H212-F212-K212 -> 31.00 | M212: =L212/F212 -> 27.19% | N212: Successful | O212: 2017-05-04
A213: 73 | B213: 2016-10-17 | D213: GANECOS | E213: Accu | F213: 212.00 | H213: 280 | I213: 276.00 | J213: Profit of Rs.68/- | L213: =H213-F213-K213 -> 68.00 | M213: =L213/F213 -> 32.08% | N213: Successful | O213: 2017-05-03
A214: 74 | B214: 2016-11-04 | D214: NBCC | E214: Accu | F214: 155.00 | H214: 210 | I214: 210.00 | J214: Profit of Rs.55/- | L214: =H214-F214-K214 -> 55.00 | M214: =L214/F214 -> 35.48% | N214: Successful | O214: 2017-07-28
A215: 75 | B215: 2016-12-06 | D215: PRECAM | E215: Accu | F215: 148-153 | I215: 174.00 | J215: Open
A216: 76 | B216: 2016-12-08 | D216: INFRATEL | E216: Accu | F216: 380.00 | H216: 478 | I216: 468.00 | J216: Target Achieved | L216: =H216-F216-K216 -> 98.00 | M216: =L216/F216 -> 25.79% | N216: Successful | O216: 2017-10-17
A217: 77 | B217: 2016-12-30 | D217: GODREJPROP | E217: Accu | F217: 305.00 | H217: 375 | I217: 375.00 | J217: Target Achieved | L217: 70.00 | M217: 22.95% | N217: Successful | O217: 2017-02-02
A218: 78 | B218: 2017-01-04 | D218: DEEPAKNTR | E218: Accu | F218: 99.50 | H218: 158 | I218: 158.00 | J218: Target Achieved | L218: 58.50 | M218: 58.79% | N218: Successful | O218: 2017-06-12
A219: 79 | B219: 2017-02-20 | D219: SUBROS | E219: Accu | F219: 202.50 | H219: 234 | I219: 234.00 | J219: Target Achieved | L219: 31.50 | M219: 15.56% | N219: Successful | O219: 2017-04-11
A220: 80 | B220: 2017-02-20 | D220: RECLTD | E220: Accu | F220: 140.50 | H220: 220 | I220: 220.00 | J220: Target Achieved | L220: 79.50 | M220: 56.58% | N220: Successful | O220: 2017-05-09
A221: 81 | B221: 2017-03-24 | D221: VRLLOG | E221: Accu | F221: 300.50 | H221: 417.5 | I221: 420.00 | J221: Profit of Rs.117/- | L221: 117.00 | M221: 38.94% | N221: Successful | O221: 2017-12-01
A222: 82 | B222: 2017-03-24 | D222: FIEMIND | E222: Accu | F222: 850.00 | H222: 1042.5 | I222: 1023.00 | J222: Profit of Rs 192.50/- | L222: 192.50 | M222: 22.65% | N222: Successful | O222: 2017-04-05
A223: 83 | B223: 2017-04-05 | D223: RATNAMANI | E223: Accu | F223: 785.00 | H223: 930 | I223: 920.00 | J223: Profit of Rs.145/- | L223: 145.00 | M223: 18.47% | N223: Successful | O223: 2017-08-29
A224: 84 | B224: 2017-04-06 | D224: ZEEMEDIA | E224: Accu | F224: 39-41 | I224: 60.00 | J224: Open
A225: 85 | B225: 2017-04-12 | D225: DABUR | E225: Accu | F225: 289.50 | H225: 354 | I225: 360.00 | J225: Profit of Rs.64.5/- | L225: =H225-F225-K225 -> 64.50 | M225: =L225/F225 -> 22.28% | N225: Successful | O225: 2017-11-01
A226: 86 | B226: 2017-04-20 | D226: KPRMILL | E226: Accu | F226: 700.00 | H226: 840 | I226: 840.00 | J226: Profit of Rs.140/- | L226: =H226-F226-K226 -> 140.00 | M226: =L226/F226 -> 20.00% | N226: Successful | O226: 2017-06-07
A227: 87 | B227: 2017-05-22 | D227: GREAVESCOT | E227: Accu | F227: 153-158 | I227: 190.00 | J227: Open
A228: 88 | B228: 2017-06-01 | D228: ESSELPACK | E228: Accu | F228: 260 | H228: 311.00 | I228: 340.00 | J228: Part profit of Rs.51/- | L228: =H228-F228-K228 -> 51.00 | M228: =L228/F228 -> 20% | N228: Successful | O228: 2017-11-17
A229: 89 | B229: 2017-06-15 | D229: KEI | E229: Accu | F229: 214.50 | H229: 262 | I229: 262.00 | J229: Profit of Rs.47.5/- | L229: 47.50 | M229: 22.14% | N229: Successful | O229: 2017-08-30
A230: 90 | B230: 2017-07-17 | D230: MAYURUNIQ | E230: Accu | F230: 370.00 | H230: 447.5 | I230: 450.00 | J230: Target Achieved | L230: 77.50 | M230: 20.95% | N230: Successful | O230: 2017-10-27
A231: 91 | B231: 2017-07-27 | D231: RAMCOCEM | E231: Accu | F231: 657.50 | H231: 825 | I231: 820.00 | J231: Target Achieved | L231: 167.50 | M231: 25.48% | N231: Successful | O231: 2017-12-21
A232: 92 | B232: 2017-08-17 | D232: FINPIPE | E232: Accu | F232: 605.00 | H232: 750 | I232: 750.00 | J232: Profit of Rs.145/- | L232: 145.00 | M232: 23.97% | N232: Successful | O232: 2017-10-19
A233: 93 | B233: 2017-09-01 | D233: SHK | E233: Accu | F233: 255 | H233: 307.50 | I233: 320.00 | J233: Part profit of Rs.52.5/- | L233: 52.50 | M233: 21% | N233: Successful | O233: 2017-12-29
... 29 more rows

Sheet Sheet2 (hidden)
A1: SYMBOL | B1: SERIES | C1: OPEN | D1: HIGH | E1: LOW | F1: CLOSE | G1: LAST | H1: PREVCLOSE | I1: TOTTRDQTY | J1: TOTTRDVAL | K1: TIMESTAMP | L1: TOTALTRADES | M1: ISIN
A2: 20MICRONS | B2: EQ | C2: 51.75 | D2: 52 | E2: 50.05 | F2: 50.35 | G2: 50.45 | H2: 51 | I2: 46224 | J2: 2352357.05 | K2: 2018-02-21 | L2: 554 | M2: INE144J01027
A3: 3IINFOTECH | B3: EQ | C3: 5.75 | D3: 5.85 | E3: 5.6 | F3: 5.7 | G3: 5.7 | H3: 5.7 | I3: 2910036 | J3: 16738797.8 | K3: 2018-02-21 | L3: 1239 | M3: INE748C01020
A4: 3MINDIA | B4: EQ | C4: 20799 | D4: 20906 | E4: 20430 | F4: 20543.45 | G4: 20540 | H4: 20497.95 | I4: 1446 | J4: 29854169.2 | K4: 2018-02-21 | L4: 661 | M4: INE470A01017
A5: 5PAISA | B5: EQ | C5: 333.15 | D5: 350.6 | E5: 333.15 | F5: 350.6 | G5: 350.6 | H5: 333.95 | I5: 8535 | J5: 2934661.6 | K5: 2018-02-21 | L5: 284 | M5: INE618L01018
A6: 63MOONS | B6: EQ | C6: 95.95 | D6: 96.65 | E6: 93.5 | F6: 93.75 | G6: 93.65 | H6: 94.75 | I6: 161186 | J6: 15278879.85 | K6: 2018-02-21 | L6: 1877 | M6: INE111B01023
A7: 8KMILES | B7: EQ | C7: 783 | D7: 788 | E7: 764 | F7: 766.9 | G7: 767.05 | H7: 776.8 | I7: 120500 | J7: 93284345.1 | K7: 2018-02-21 | L7: 5494 | M7: INE650K01021
A8: A2ZINFRA | B8: EQ | C8: 33.65 | D8: 33.95 | E8: 32.85 | F8: 33.1 | G8: 33.05 | H8: 33.45 | I8: 416615 | J8: 13880465.05 | K8: 2018-02-21 | L8: 1921 | M8: INE619I01012
A9: AARTIDRUGS | B9: EQ | C9: 630 | D9: 632.05 | E9: 603.6 | F9: 607.7 | G9: 608.8 | H9: 629.05 | I9: 9095 | J9: 5546884.3 | K9: 2018-02-21 | L9: 832 | M9: INE767A01016
A10: AARTIIND | B10: EQ | C10: 1179.9 | D10: 1179.9 | E10: 1158.05 | F10: 1167.25 | G10: 1158.05 | H10: 1169.95 | I10: 19661 | J10: 23055002.75 | K10: 2018-02-21 | L10: 5803 | M10: INE769A01020
A11: AARVEEDEN | B11: EQ | C11: 48.8 | D11: 49.55 | E11: 47 | F11: 48.25 | G11: 48.05 | H11: 48.65 | I11: 16826 | J11: 814234.7 | K11: 2018-02-21 | L11: 187 | M11: INE273D01019
A12: ABAN | B12: EQ | C12: 173 | D12: 173.5 | E12: 167.2 | F12: 168.75 | G12: 168.45 | H12: 171.35 | I12: 623932 | J12: 105890418.5 | K12: 2018-02-21 | L12: 8178 | M12: INE421A01028
A13: ABB | B13: EQ | C13: 1524.35 | D13: 1534.95 | E13: 1506.15 | F13: 1511.4 | G13: 1511.45 | H13: 1509.3 | I13: 35217 | J13: 53387667.9 | K13: 2018-02-21 | L13: 2833 | M13: INE117A01022
A14: ABBOTINDIA | B14: EQ | C14: 5667.45 | D14: 5798 | E14: 5621.65 | F14: 5640.3 | G14: 5655 | H14: 5611.35 | I14: 4550 | J14: 25954209.95 | K14: 2018-02-21 | L14: 998 | M14: INE358A01014
A15: ABCAPITAL | B15: EQ | C15: 165 | D15: 166.9 | E15: 163.3 | F15: 165.15 | G15: 165.4 | H15: 164.55 | I15: 1768396 | J15: 291609498.3 | K15: 2018-02-21 | L15: 14369 | M15: INE674K01013
A16: ABFRL | B16: EQ | C16: 152.15 | D16: 152.5 | E16: 149.05 | F16: 149.75 | G16: 149.7 | H16: 151.85 | I16: 123154 | J16: 18523382.15 | K16: 2018-02-21 | L16: 1802 | M16: INE647O01011
A17: ACC | B17: EQ | C17: 1656.55 | D17: 1662 | E17: 1639 | F17: 1645.25 | G17: 1641.15 | H17: 1640.35 | I17: 322498 | J17: 532937489.8 | K17: 2018-02-21 | L17: 12323 | M17: INE012A01025
A18: ACCELYA | B18: EQ | C18: 1358.55 | D18: 1380 | E18: 1350 | F18: 1375.05 | G18: 1370 | H18: 1358.85 | I18: 2253 | J18: 3073134.2 | K18: 2018-02-21 | L18: 367 | M18: INE793A01012
A19: ACE | B19: EQ | C19: 180 | D19: 181.85 | E19: 177.5 | F19: 180.15 | G19: 179 | H19: 177.85 | I19: 513957 | J19: 92343891.9 | K19: 2018-02-21 | L19: 7350 | M19: INE731H01025
A20: ADANIENT | B20: EQ | C20: 199.3 | D20: 200.5 | E20: 195.3 | F20: 197.4 | G20: 197.6 | H20: 198 | I20: 4152954 | J20: 818758463.8 | K20: 2018-02-21 | L20: 22353 | M20: INE423A01024
A21: ADANIPORTS | B21: EQ | C21: 396.5 | D21: 398.75 | E21: 389.75 | F21: 395.6 | G21: 396.5 | H21: 394.9 | I21: 1800533 | J21: 708258764.5 | K21: 2018-02-21 | L21: 28428 | M21: INE742F01042
A22: ADANIPOWER | B22: EQ | C22: 31.5 | D22: 31.65 | E22: 30.9 | F22: 31.35 | G22: 31.25 | H22: 31.35 | I22: 6096399 | J22: 190122372.9 | K22: 2018-02-21 | L22: 8759 | M22: INE814H01011
A23: ADANITRANS | B23: EQ | C23: 199.95 | D23: 208 | E23: 197.25 | F23: 203.45 | G23: 206.05 | H23: 197.1 | I23: 891682 | J23: 180292159.9 | K23: 2018-02-21 | L23: 6797 | M23: INE931S01010
A24: ADFFOODS | B24: EQ | C24: 252 | D24: 255.5 | E24: 248.1 | F24: 251.2 | G24: 250.25 | H24: 248.35 | I24: 254790 | J24: 63839532.95 | K24: 2018-02-21 | L24: 7548 | M24: INE982B01019
A25: ADHUNIK | B25: EQ | C25: 4.8 | D25: 4.8 | E25: 4.65 | F25: 4.65 | G25: 4.65 | H25: 4.8 | I25: 24828 | J25: 116936.05 | K25: 2018-02-21 | L25: 86 | M25: INE400H01019
A26: ADHUNIKIND | B26: EQ | C26: 80 | D26: 80 | E26: 75.75 | F26: 75.75 | G26: 75.75 | H26: 79.7 | I26: 18790 | J26: 1446169.35 | K26: 2018-02-21 | L26: 65 | M26: INE452L01012
A27: ADLABS | B27: EQ | C27: 55.95 | D27: 56.6 | E27: 55.25 | F27: 55.7 | G27: 55.9 | H27: 55.8 | I27: 29245 | J27: 1633054.4 | K27: 2018-02-21 | L27: 327 | M27: INE172N01012
A28: ADORWELD | B28: EQ | C28: 440 | D28: 440 | E28: 425.1 | F28: 429.65 | G28: 428.8 | H28: 437.3 | I28: 8327 | J28: 3578694.35 | K28: 2018-02-21 | L28: 378 | M28: INE045A01017
A29: ADSL | B29: EQ | C29: 26 | D29: 26.1 | E29: 24.8 | F29: 25 | G29: 25.1 | H29: 25.05 | I29: 46666 | J29: 1195203.2 | K29: 2018-02-21 | L29: 128 | M29: INE102I01027
A30: ADVANIHOTR | B30: EQ | C30: 62 | D30: 62.25 | E30: 59.6 | F30: 60.7 | G30: 60.55 | H30: 61.4 | I30: 35539 | J30: 2178104.05 | K30: 2018-02-21 | L30: 339 | M30: INE199C01026
A31: ADVENZYMES | B31: EQ | C31: 236 | D31: 238.8 | E31: 232.85 | F31: 233.95 | G31: 234.2 | H31: 232.95 | I31: 232761 | J31: 54616013.35 | K31: 2018-02-21 | L31: 2161 | M31: INE837H01020
A32: AEGISCHEM | B32: EQ | C32: 259.05 | D32: 259.9 | E32: 249.2 | F32: 256.65 | G32: 256.05 | H32: 257.9 | I32: 90818 | J32: 23326395.05 | K32: 2018-02-21 | L32: 2693 | M32: INE208C01025
A33: AFL | B33: EQ | C33: 46.9 | D33: 48 | E33: 45.65 | F33: 47 | G33: 47.2 | H33: 46.85 | I33: 14870 | J33: 684795.65 | K33: 2018-02-21 | L33: 45 | M33: INE020G01017
A34: AGCNET | B34: EQ | C34: 116.35 | D34: 123.25 | E34: 116.35 | F34: 120.1 | G34: 120 | H34: 120 | I34: 2095 | J34: 251769.9 | K34: 2018-02-21 | L34: 42 | M34: INE676A01019
A35: AGLSL | B35: EQ | C35: 109.95 | D35: 112.5 | E35: 108 | F35: 110.7 | G35: 111 | H35: 109.95 | I35: 5853 | J35: 646175.9 | K35: 2018-02-21 | L35: 58 | M35: INE517U01013
A36: AGRITECH | B36: EQ | C36: 149.6 | D36: 159 | E36: 148.6 | F36: 154.15 | G36: 155.2 | H36: 146.45 | I36: 564024 | J36: 87658963.4 | K36: 2018-02-21 | L36: 8060 | M36: INE449G01018
A37: AHLUCONT | B37: EQ | C37: 348.95 | D37: 366 | E37: 345 | F37: 357.2 | G37: 354 | H37: 344.95 | I37: 47473 | J37: 16902277.6 | K37: 2018-02-21 | L37: 1073 | M37: INE758C01029
A38: AHLWEST | B38: EQ | C38: 260 | D38: 265 | E38: 255.05 | F38: 256.4 | G38: 255.05 | H38: 261.95 | I38: 4004 | J38: 1038899.15 | K38: 2018-02-21 | L38: 67 | M38: INE915K01010
A39: AIAENG | B39: EQ | C39: 1444.45 | D39: 1465.95 | E39: 1416 | F39: 1461.45 | G39: 1460 | H39: 1441.5 | I39: 18004 | J39: 26054973.9 | K39: 2018-02-21 | L39: 2163 | M39: INE212H01026
A40: AIFL | B40: EQ | C40: 482 | D40: 493.8 | E40: 482 | F40: 490.85 | G40: 489.7 | H40: 482.2 | I40: 279024 | J40: 136188025.2 | K40: 2018-02-21 | L40: 4178 | M40: INE428O01016
A41: AJANTPHARM | B41: EQ | C41: 1330 | D41: 1365 | E41: 1311.3 | F41: 1356.45 | G41: 1356.45 | H41: 1323.85 | I41: 237837 | J41: 316981399.4 | K41: 2018-02-21 | L41: 8552 | M41: INE031B01049
A42: AJMERA | B42: EQ | C42: 227.7 | D42: 242 | E42: 226.5 | F42: 239.9 | G42: 239.7 | H42: 225.7 | I42: 326293 | J42: 77057725.45 | K42: 2018-02-21 | L42: 6634 | M42: INE298G01027
A43: AKSHARCHEM | B43: EQ | C43: 630 | D43: 636.8 | E43: 615.05 | F43: 620.5 | G43: 624 | H43: 621.05 | I43: 6978 | J43: 4324564.2 | K43: 2018-02-21 | L43: 344 | M43: INE542B01011
A44: AKSHOPTFBR | B44: EQ | C44: 38.25 | D44: 38.45 | E44: 37.05 | F44: 37.4 | G44: 37.6 | H44: 37.9 | I44: 531524 | J44: 19955359.5 | K44: 2018-02-21 | L44: 1799 | M44: INE523B01011
A45: AKZOINDIA | B45: EQ | C45: 1800.05 | D45: 1807.2 | E45: 1785 | F45: 1800.65 | G45: 1800 | H45: 1798 | I45: 1464 | J45: 2626933.35 | K45: 2018-02-21 | L45: 276 | M45: INE133A01011
A46: ALANKIT | B46: EQ | C46: 51.85 | D46: 51.85 | E46: 47.3 | F46: 48.65 | G46: 48.8 | H46: 49.85 | I46: 224442 | J46: 10967895 | K46: 2018-02-21 | L46: 1604 | M46: INE914E01040
A47: ALBK | B47: EQ | C47: 52.7 | D47: 52.9 | E47: 50.95 | F47: 52.45 | G47: 52.25 | H47: 51.7 | I47: 6542974 | J47: 339605169.6 | K47: 2018-02-21 | L47: 22713 | M47: INE428A01015
A48: ALEMBICLTD | B48: EQ | C48: 61.2 | D48: 61.4 | E48: 60.55 | F48: 60.8 | G48: 60.7 | H48: 60.9 | I48: 200989 | J48: 12230222.2 | K48: 2018-02-21 | L48: 1189 | M48: INE426A01027
A49: ALICON | B49: EQ | C49: 625.05 | D49: 625.05 | E49: 605 | F49: 611.85 | G49: 610.05 | H49: 630.3 | I49: 7450 | J49: 4579606.15 | K49: 2018-02-21 | L49: 255 | M49: INE062D01024
A50: ALKALI | B50: EQ | C50: 83.4 | D50: 84.95 | E50: 79.35 | F50: 80.6 | G50: 79.55 | H50: 83.45 | I50: 13681 | J50: 1115582.7 | K50: 2018-02-21 | L50: 300 | M50: INE773I01017
A51: ALKEM | B51: EQ | C51: 2149 | D51: 2168.95 | E51: 2140 | F51: 2152.95 | G51: 2147.1 | H51: 2171 | I51: 6108 | J51: 13165053.3 | K51: 2018-02-21 | L51: 1554 | M51: INE540L01014
A52: ALKYLAMINE | B52: EQ | C52: 621 | D52: 628 | E52: 618 | F52: 620.75 | G52: 622 | H52: 620.25 | I52: 1356 | J52: 841562 | K52: 2018-02-21 | L52: 55 | M52: INE150B01021
A53: ALLCARGO | B53: EQ | C53: 179.1 | D53: 179.95 | E53: 174.4 | F53: 177 | G53: 176.2 | H53: 177.85 | I53: 148170 | J53: 26142868.95 | K53: 2018-02-21 | L53: 2920 | M53: INE418H01029
A54: ALLSEC | B54: EQ | C54: 372 | D54: 376 | E54: 360.45 | F54: 371.3 | G54: 370 | H54: 374.1 | I54: 19595 | J54: 7239899.8 | K54: 2018-02-21 | L54: 661 | M54: INE835G01018
A55: ALMONDZ | B55: EQ | C55: 27.5 | D55: 27.7 | E55: 27.2 | F55: 27.6 | G55: 27.2 | H55: 28.15 | I55: 866 | J55: 23951 | K55: 2018-02-21 | L55: 10 | M55: INE326B01027
A56: ALOKTEXT | B56: EQ | C56: 3.15 | D56: 3.15 | E56: 3 | F56: 3.1 | G56: 3.05 | H56: 3.15 | I56: 1934777 | J56: 5947765.85 | K56: 2018-02-21 | L56: 711 | M56: INE270A01011
A57: ALPA | B57: EQ | C57: 41.3 | D57: 42.45 | E57: 39.5 | F57: 39.75 | G57: 39.5 | H57: 41.55 | I57: 29241 | J57: 1180793.15 | K57: 2018-02-21 | L57: 215 | M57: INE385I01010
A58: ALPHAGEO | B58: EQ | C58: 829.95 | D58: 834 | E58: 815.1 | F58: 817.95 | G58: 818 | H58: 819.85 | I58: 9816 | J58: 8050123.9 | K58: 2018-02-21 | L58: 523 | M58: INE137C01018
A59: ALPSINDUS | B59: EQ | C59: 4.6 | D59: 4.6 | E59: 4.4 | F59: 4.45 | G59: 4.55 | H59: 4.55 | I59: 76336 | J59: 340933.3 | K59: 2018-02-21 | L59: 103 | M59: INE093B01015
A60: AMARAJABAT | B60: EQ | C60: 807.85 | D60: 815.45 | E60: 792.8 | F60: 795.25 | G60: 794.4 | H60: 806.4 | I60: 270748 | J60: 216627496.7 | K60: 2018-02-21 | L60: 9610 | M60: INE885A01032
A61: AMBER | B61: EQ | C61: 1129.9 | D61: 1136.85 | E61: 1066 | F61: 1081.6 | G61: 1083 | H61: 1122.5 | I61: 87260 | J61: 95560083.7 | K61: 2018-02-21 | L61: 6575 | M61: INE371P01015
A62: AMBIKCO | B62: EQ | C62: 1367.35 | D62: 1367.4 | E62: 1315 | F62: 1320.75 | G62: 1320 | H62: 1353.5 | I62: 7721 | J62: 10243459.3 | K62: 2018-02-21 | L62: 609 | M62: INE540G01014
A63: AMBUJACEM | B63: EQ | C63: 268 | D63: 268.85 | E63: 260.1 | F63: 261.7 | G63: 260.6 | H63: 263.7 | I63: 6498774 | J63: 1718045320 | K63: 2018-02-21 | L63: 86788 | M63: INE079A01024
A64: AMDIND | B64: EQ | C64: 35 | D64: 35 | E64: 32.3 | F64: 33.1 | G64: 33.7 | H64: 34.6 | I64: 23361 | J64: 780748.1 | K64: 2018-02-21 | L64: 240 | M64: INE005I01014
A65: AMJLAND | B65: EQ | C65: 28.9 | D65: 28.9 | E65: 26.35 | F65: 26.65 | G65: 26.5 | H65: 27.8 | I65: 7030 | J65: 187797.9 | K65: 2018-02-21 | L65: 66 | M65: INE606A01024
A66: AMRUTANJAN | B66: EQ | C66: 584.95 | D66: 594.9 | E66: 570.1 | F66: 591.2 | G66: 593 | H66: 576.35 | I66: 5545 | J66: 3246956.4 | K66: 2018-02-21 | L66: 551 | M66: INE098F01023
A67: AMTEKAUTO | B67: EQ | C67: 24.9 | D67: 25.35 | E67: 23.65 | F67: 23.85 | G67: 24.1 | H67: 24.85 | I67: 903878 | J67: 21754473.3 | K67: 2018-02-21 | L67: 2302 | M67: INE130C01021
A68: ANANTRAJ | B68: EQ | C68: 57 | D68: 57.45 | E68: 56 | F68: 56.75 | G68: 56.6 | H68: 56.1 | I68: 749044 | J68: 42490529.9 | K68: 2018-02-21 | L68: 3896 | M68: INE242C01024
A69: ANDHRABANK | B69: EQ | C69: 46.6 | D69: 47.15 | E69: 45.25 | F69: 45.7 | G69: 45.8 | H69: 46.6 | I69: 2617792 | J69: 120098342.8 | K69: 2018-02-21 | L69: 8317 | M69: INE434A01013
A70: ANDHRACEMT | B70: EQ | C70: 11.05 | D70: 11.15 | E70: 10.9 | F70: 10.95 | G70: 11 | H70: 11.05 | I70: 146209 | J70: 1604586.35 | K70: 2018-02-21 | L70: 343 | M70: INE666E01012
A71: ANDHRSUGAR | B71: EQ | C71: 486 | D71: 486.15 | E71: 470 | F71: 476.1 | G71: 471.9 | H71: 484.05 | I71: 51550 | J71: 24473863.65 | K71: 2018-02-21 | L71: 1672 | M71: INE715B01013
A72: ANGIND | B72: EQ | C72: 5.65 | D72: 5.9 | E72: 5.65 | F72: 5.9 | G72: 5.9 | H72: 5.65 | I72: 24008 | J72: 140837.4 | K72: 2018-02-21 | L72: 57 | M72: INE017D01010
A73: ANIKINDS | B73: EQ | C73: 41.3 | D73: 41.3 | E73: 37.35 | F73: 38.3 | G73: 38.95 | H73: 40.75 | I73: 72873 | J73: 2826707.7 | K73: 2018-02-21 | L73: 658 | M73: INE087B01017
A74: ANSALAPI | B74: EQ | C74: 23.7 | D74: 24.5 | E74: 23.2 | F74: 23.85 | G74: 23.4 | H74: 23.75 | I74: 62359 | J74: 1473261.5 | K74: 2018-02-21 | L74: 265 | M74: INE436A01026
A75: ANSALHSG | B75: EQ | C75: 24 | D75: 24.5 | E75: 23.05 | F75: 23.55 | G75: 23.6 | H75: 24.05 | I75: 53705 | J75: 1268265.5 | K75: 2018-02-21 | L75: 395 | M75: INE880B01015
A76: APARINDS | B76: EQ | C76: 777.25 | D76: 785.85 | E76: 767.1 | F76: 772.05 | G76: 772.5 | H76: 782.5 | I76: 14841 | J76: 11474004.7 | K76: 2018-02-21 | L76: 1229 | M76: INE372A01015
A77: APCL | B77: EQ | C77: 197.55 | D77: 197.55 | E77: 188 | F77: 190 | G77: 188.6 | H77: 193.1 | I77: 4982 | J77: 956003.65 | K77: 2018-02-21 | L77: 94 | M77: INE071F01012
A78: APCOTEXIND | B78: EQ | C78: 509 | D78: 514.5 | E78: 502 | F78: 510.7 | G78: 508.55 | H78: 506.5 | I78: 10162 | J78: 5169429.55 | K78: 2018-02-21 | L78: 514 | M78: INE116A01024
A79: APEX | B79: EQ | C79: 683 | D79: 683 | E79: 655.55 | F79: 658.45 | G79: 659.9 | H79: 672.65 | I79: 99255 | J79: 66173348.95 | K79: 2018-02-21 | L79: 2802 | M79: INE346W01013
A80: APLAPOLLO | B80: EQ | C80: 2045 | D80: 2045 | E80: 1976 | F80: 2010.75 | G80: 2012.9 | H80: 2012.25 | I80: 9061 | J80: 18167846.95 | K80: 2018-02-21 | L80: 924 | M80: INE702C01019
A81: APLLTD | B81: EQ | C81: 575 | D81: 576 | E81: 556.3 | F81: 560.85 | G81: 557.4 | H81: 571.05 | I81: 28100 | J81: 15772414.05 | K81: 2018-02-21 | L81: 1192 | M81: INE901L01018
A82: APOLLO | B82: EQ | C82: 291 | D82: 293.95 | E82: 280.5 | F82: 281.35 | G82: 281.9 | H82: 288.45 | I82: 71958 | J82: 20395824.8 | K82: 2018-02-21 | L82: 2329 | M82: INE713T01010
A83: APOLLOHOSP | B83: EQ | C83: 1192 | D83: 1219 | E83: 1176 | F83: 1211.2 | G83: 1215 | H83: 1199.25 | I83: 640761 | J83: 771600801.8 | K83: 2018-02-21 | L83: 19013 | M83: INE437A01024
A84: APOLLOTYRE | B84: EQ | C84: 266.1 | D84: 268 | E84: 259.1 | F84: 262.15 | G84: 262.8 | H84: 264.7 | I84: 1935835 | J84: 507072186.4 | K84: 2018-02-21 | L84: 24933 | M84: INE438A01022
A85: APOLSINHOT | B85: EQ | C85: 1436 | D85: 1477.9 | E85: 1430 | F85: 1458.05 | G85: 1455 | H85: 1478.5 | I85: 213 | J85: 310198.85 | K85: 2018-02-21 | L85: 21 | M85: INE451F01016
A86: APTECHT | B86: EQ | C86: 328.2 | D86: 330.05 | E86: 315 | F86: 317.1 | G86: 316.75 | H86: 327.9 | I86: 807132 | J86: 258587025 | K86: 2018-02-21 | L86: 13526 | M86: INE266F01018
A87: ARCHIDPLY | B87: EQ | C87: 95.4 | D87: 95.4 | E87: 90.55 | F87: 91.9 | G87: 92.05 | H87: 94.3 | I87: 48330 | J87: 4472535.9 | K87: 2018-02-21 | L87: 612 | M87: INE877I01016
A88: ARCHIES | B88: EQ | C88: 35.1 | D88: 35.1 | E88: 33.8 | F88: 34.3 | G88: 34.3 | H88: 34.85 | I88: 163618 | J88: 5619077.6 | K88: 2018-02-21 | L88: 1041 | M88: INE731A01020
A89: ARCOTECH | B89: EQ | C89: 44 | D89: 45.95 | E89: 42.4 | F89: 43.5 | G89: 45.5 | H89: 43.5 | I89: 446113 | J89: 19372266.35 | K89: 2018-02-21 | L89: 2009 | M89: INE574I01035
A90: ARENTERP | B90: EQ | C90: 21.85 | D90: 21.85 | E90: 21.85 | F90: 21.85 | G90: 21.85 | H90: 22.95 | I90: 500 | J90: 10925 | K90: 2018-02-21 | L90: 1 | M90: INE610C01014
A91: ARIES | B91: EQ | C91: 204.1 | D91: 213 | E91: 204.1 | F91: 210.55 | G91: 213 | H91: 207.8 | I91: 10482 | J91: 2180185.9 | K91: 2018-02-21 | L91: 350 | M91: INE298I01015
A92: ARIHANTSUP | B92: EQ | C92: 144.75 | D92: 152.9 | E92: 144 | F92: 145.4 | G92: 145.8 | H92: 144.7 | I92: 145030 | J92: 21248928.15 | K92: 2018-02-21 | L92: 1440 | M92: INE643K01018
A93: ARMANFIN | B93: EQ | C93: 280 | D93: 284 | E93: 275 | F93: 281.1 | G93: 283.95 | H93: 278.45 | I93: 12552 | J93: 3518975.15 | K93: 2018-02-21 | L93: 81 | M93: INE109C01017
A94: AROGRANITE | B94: EQ | C94: 69.2 | D94: 69.2 | E94: 66.1 | F94: 66.8 | G94: 66.6 | H94: 67.65 | I94: 19177 | J94: 1298945.35 | K94: 2018-02-21 | L94: 230 | M94: INE210C01013
A95: ARROWGREEN | B95: EQ | C95: 403.7 | D95: 414 | E95: 399.05 | F95: 403.5 | G95: 402.1 | H95: 399.15 | I95: 10928 | J95: 4452502.8 | K95: 2018-02-21 | L95: 472 | M95: INE570D01018
A96: ARROWTEX | B96: EQ | C96: 41.1 | D96: 41.1 | E96: 40.15 | F96: 40.55 | G96: 40.2 | H96: 40.6 | I96: 6205 | J96: 251003.6 | K96: 2018-02-21 | L96: 80 | M96: INE933J01015
A97: ARSHIYA | B97: EQ | C97: 93.25 | D97: 94.1 | E97: 91.2 | F97: 91.6 | G97: 91.35 | H97: 92.4 | I97: 23118 | J97: 2138180.65 | K97: 2018-02-21 | L97: 466 | M97: INE968D01022
A98: ARVIND | B98: EQ | C98: 397.25 | D98: 401.95 | E98: 389.65 | F98: 398.35 | G98: 397.3 | H98: 396.25 | I98: 1395861 | J98: 552183126.4 | K98: 2018-02-21 | L98: 29108 | M98: INE034A01011
A99: ARVSMART | B99: EQ | C99: 179 | D99: 179 | E99: 171 | F99: 175.7 | G99: 173.3 | H99: 175.65 | I99: 20306 | J99: 3549769.6 | K99: 2018-02-21 | L99: 478 | M99: INE034S01021
A100: ASAHIINDIA | B100: EQ | C100: 335.7 | D100: 339.45 | E100: 334.3 | F100: 336.65 | G100: 337.5 | H100: 336.65 | I100: 4581 | J100: 1542568.9 | K100: 2018-02-21 | L100: 229 | M100: INE439A01020
A101: ASAHISONG | B101: EQ | C101: 350.45 | D101: 350.5 | E101: 339.05 | F101: 342.35 | G101: 345.5 | H101: 347.7 | I101: 4919 | J101: 1680745.25 | K101: 2018-02-21 | L101: 263 | M101: INE228I01012
A102: ASAL | B102: EQ | C102: 79.15 | D102: 82 | E102: 78.9 | F102: 81.35 | G102: 81.4 | H102: 78.8 | I102: 24689 | J102: 1993241.3 | K102: 2018-02-21 | L102: 156 | M102: INE900C01027
A103: ASHAPURMIN | B103: EQ | C103: 80 | D103: 80.7 | E103: 78.8 | F103: 79.55 | G103: 80 | H103: 79.3 | I103: 117741 | J103: 9396207.35 | K103: 2018-02-21 | L103: 1138 | M103: INE348A01023
A104: ASHIANA | B104: EQ | C104: 174.95 | D104: 175 | E104: 171 | F104: 171.8 | G104: 172 | H104: 172.85 | I104: 59061 | J104: 10170460.2 | K104: 2018-02-21 | L104: 860 | M104: INE365D01021
A105: ASHIMASYN | B105: EQ | C105: 27.7 | D105: 28 | E105: 26.8 | F105: 27 | G105: 26.85 | H105: 27.35 | I105: 77803 | J105: 2114576.75 | K105: 2018-02-21 | L105: 383 | M105: INE440A01010
A106: ASHOKA | B106: EQ | C106: 224.65 | D106: 224.65 | E106: 219 | F106: 220.6 | G106: 219.5 | H106: 222.65 | I106: 49300 | J106: 10993519.35 | K106: 2018-02-21 | L106: 958 | M106: INE442H01029
A107: ASHOKLEY | B107: EQ | C107: 134 | D107: 134.9 | E107: 131.95 | F107: 132.35 | G107: 132.5 | H107: 133.4 | I107: 9506894 | J107: 1265696766 | K107: 2018-02-21 | L107: 35390 | M107: INE208A01029
A108: ASIANPAINT | B108: EQ | C108: 1132.35 | D108: 1133.25 | E108: 1115 | F108: 1127.2 | G108: 1123 | H108: 1126.4 | I108: 720563 | J108: 810734567.1 | K108: 2018-02-21 | L108: 31159 | M108: INE021A01026
A109: ASIANTILES | B109: EQ | C109: 501.15 | D109: 502.95 | E109: 496 | F109: 498 | G109: 498.85 | H109: 496.65 | I109: 38521 | J109: 19245986.35 | K109: 2018-02-21 | L109: 1105 | M109: INE022I01019
A110: ASPINWALL | B110: EQ | C110: 420 | D110: 432 | E110: 420 | F110: 430.55 | G110: 428.5 | H110: 414 | I110: 1353 | J110: 579843 | K110: 2018-02-21 | L110: 36 | M110: INE991I01015
A111: ASSAMCO | B111: EQ | C111: 5.1 | D111: 5.1 | E111: 4.75 | F111: 4.8 | G111: 4.85 | H111: 4.95 | I111: 217588 | J111: 1051073.6 | K111: 2018-02-21 | L111: 169 | M111: INE442A01024
A112: ASTEC | B112: EQ | C112: 560.6 | D112: 585 | E112: 560.6 | F112: 581.85 | G112: 580 | H112: 562.9 | I112: 36848 | J112: 21233628.65 | K112: 2018-02-21 | L112: 1282 | M112: INE563J01010
A113: ASTRAL | B113: EQ | C113: 770 | D113: 780 | E113: 752.4 | F113: 761.05 | G113: 758 | H113: 765 | I113: 10500 | J113: 8021401.85 | K113: 2018-02-21 | L113: 653 | M113: INE006I01046
A114: ASTRAMICRO | B114: EQ | C114: 96.1 | D114: 97.3 | E114: 89.5 | F114: 90.1 | G114: 89.85 | H114: 95.35 | I114: 1416133 | J114: 130919681.5 | K114: 2018-02-21 | L114: 10612 | M114: INE386C01029
A115: ASTRAZEN | B115: EQ | C115: 1022.5 | D115: 1035.45 | E115: 1001.3 | F115: 1023.95 | G115: 1029.95 | H115: 1027.1 | I115: 4515 | J115: 4598724.6 | K115: 2018-02-21 | L115: 378 | M115: INE203A01020
A116: ASTRON | B116: EQ | C116: 128 | D116: 128.95 | E116: 124.65 | F116: 125.1 | G116: 125.3 | H116: 127.15 | I116: 190968 | J116: 23975106.55 | K116: 2018-02-21 | L116: 1399 | M116: INE646X01014
A117: ATFL | B117: EQ | C117: 620.05 | D117: 632 | E117: 616.05 | F117: 625.75 | G117: 632 | H117: 625 | I117: 7996 | J117: 4981733.25 | K117: 2018-02-21 | L117: 380 | M117: INE209A01019
A118: ATLANTA | B118: EQ | C118: 96.35 | D118: 96.6 | E118: 92.5 | F118: 94.6 | G118: 94.6 | H118: 94.95 | I118: 201420 | J118: 19023899.45 | K118: 2018-02-21 | L118: 1626 | M118: INE285H01022
A119: ATUL | B119: EQ | C119: 2645.7 | D119: 2689.35 | E119: 2552 | F119: 2623.4 | G119: 2650 | H119: 2626.1 | I119: 30021 | J119: 78369230.7 | K119: 2018-02-21 | L119: 1640 | M119: INE100A01010
A120: ATULAUTO | B120: EQ | C120: 420.85 | D120: 423 | E120: 410 | F120: 413.45 | G120: 410.8 | H120: 412 | I120: 136875 | J120: 56834994.7 | K120: 2018-02-21 | L120: 1508 | M120: INE951D01028
A121: AUBANK | B121: EQ | C121: 576 | D121: 584.95 | E121: 576 | F121: 579.8 | G121: 579 | H121: 575.95 | I121: 50778 | J121: 29483891.55 | K121: 2018-02-21 | L121: 1963 | M121: INE949L01017
A122: AURIONPRO | B122: EQ | C122: 212.05 | D122: 216.55 | E122: 198.15 | F122: 206.9 | G122: 207.15 | H122: 212.65 | I122: 71529 | J122: 14826867.4 | K122: 2018-02-21 | L122: 1562 | M122: INE132H01018
A123: AUROPHARMA | B123: EQ | C123: 581 | D123: 581 | E123: 560.7 | F123: 571 | G123: 571 | H123: 574.8 | I123: 4040988 | J123: 2302885039 | K123: 2018-02-21 | L123: 95125 | M123: INE406A01037
A124: AUSOMENT | B124: EQ | C124: 68.05 | D124: 76 | E124: 67.35 | F124: 70.1 | G124: 69.05 | H124: 68.75 | I124: 23605 | J124: 1666458.65 | K124: 2018-02-21 | L124: 351 | M124: INE218C01016
A125: AUTOAXLES | B125: EQ | C125: 1648.55 | D125: 1652 | E125: 1580.05 | F125: 1589.3 | G125: 1593 | H125: 1624.25 | I125: 8624 | J125: 13807750.85 | K125: 2018-02-21 | L125: 1446 | M125: INE449A01011
A126: AUTOIND | B126: EQ | C126: 83.55 | D126: 89.8 | E126: 82.1 | F126: 85.4 | G126: 85.1 | H126: 85.9 | I126: 17652 | J126: 1504193.05 | K126: 2018-02-21 | L126: 350 | M126: INE718H01014
A127: AUTOLITIND | B127: EQ | C127: 72.8 | D127: 72.9 | E127: 70.3 | F127: 72.15 | G127: 72.9 | H127: 70.65 | I127: 12165 | J127: 871754.9 | K127: 2018-02-21 | L127: 165 | M127: INE448A01013
A128: AVADHSUGAR | B128: EQ | C128: 730 | D128: 730 | E128: 683 | F128: 687.1 | G128: 683 | H128: 718 | I128: 20230 | J128: 14204781.25 | K128: 2018-02-21 | L128: 858 | M128: INE349W01017
A129: AVANTIFEED | B129: EQ | C129: 2340.95 | D129: 2359.25 | E129: 2304.05 | F129: 2344.5 | G129: 2344.55 | H129: 2324.8 | I129: 46082 | J129: 107826624.2 | K129: 2018-02-21 | L129: 6256 | M129: INE871C01020
A130: AVTNPL | B130: EQ | C130: 41.7 | D130: 42 | E130: 40.8 | F130: 41.75 | G130: 42 | H130: 41.15 | I130: 67328 | J130: 2796038.75 | K130: 2018-02-21 | L130: 603 | M130: INE488D01021
A131: AXISBANK | B131: EQ | C131: 534 | D131: 538.5 | E131: 524.4 | F131: 535.8 | G131: 536 | H131: 531.7 | I131: 4638382 | J131: 2464681322 | K131: 2018-02-21 | L131: 62749 | M131: INE238A01034
A132: AXISCADES | B132: EQ | C132: 170.35 | D132: 175.9 | E132: 170.1 | F132: 171.15 | G132: 171 | H132: 168.45 | I132: 147141 | J132: 25402131.8 | K132: 2018-02-21 | L132: 2430 | M132: INE555B01013
A133: AXISGOLD | B133: EQ | C133: 2696.75 | D133: 2697 | E133: 2677 | F133: 2677 | G133: 2677 | H133: 2696.75 | I133: 51 | J133: 136905.4 | K133: 2018-02-21 | L133: 12 | M133: INF846K01347
A134: AXISNIFTY | B134: EQ | C134: 1037.14 | D134: 1039.2 | E134: 1037.14 | F134: 1039.2 | G134: 1039.2 | H134: 1042.71 | I134: 25 | J134: 25959.4 | K134: 2018-02-21 | L134: 2 | M134: INF846K01ZL0
A135: AYMSYNTEX | B135: EQ | C135: 68.15 | D135: 68.15 | E135: 65.5 | F135: 65.95 | G135: 65.5 | H135: 66.5 | I135: 21097 | J135: 1396423.9 | K135: 2018-02-21 | L135: 195 | M135: INE193B01039
A136: BAFNAPHARM | B136: EQ | C136: 27 | D136: 28 | E136: 27 | F136: 27.25 | G136: 27.15 | H136: 27 | I136: 26342 | J136: 724473.7 | K136: 2018-02-21 | L136: 127 | M136: INE878I01014
A137: BAGFILMS | B137: EQ | C137: 5.75 | D137: 5.9 | E137: 5.65 | F137: 5.9 | G137: 5.9 | H137: 5.65 | I137: 95730 | J137: 559638.3 | K137: 2018-02-21 | L137: 99 | M137: INE116D01028
A138: BAJAJ-AUTO | B138: EQ | C138: 3080.9 | D138: 3081.55 | E138: 3003.1 | F138: 3012.6 | G138: 3022 | H138: 3049.85 | I138: 275688 | J138: 834593271.2 | K138: 2018-02-21 | L138: 22766 | M138: INE917I01010
A139: BAJAJCORP | B139: EQ | C139: 487.25 | D139: 488 | E139: 479.8 | F139: 485.65 | G139: 486.3 | H139: 484.75 | I139: 16023 | J139: 7720715.15 | K139: 2018-02-21 | L139: 1968 | M139: INE933K01021
A140: BAJAJELEC | B140: EQ | C140: 505.95 | D140: 507.4 | E140: 496.55 | F140: 502.85 | G140: 502 | H140: 502.5 | I140: 104814 | J140: 52568297.45 | K140: 2018-02-21 | L140: 3263 | M140: INE193E01025
A141: BAJAJFINSV | B141: EQ | C141: 5040 | D141: 5050.25 | E141: 4955.1 | F141: 4973.45 | G141: 4957.55 | H141: 5014.3 | I141: 100845 | J141: 503791406.2 | K141: 2018-02-21 | L141: 12025 | M141: INE918I01018
A142: BAJAJHIND | B142: EQ | C142: 12.95 | D142: 13 | E142: 12.9 | F142: 12.95 | G142: 12.95 | H142: 12.85 | I142: 1104527 | J142: 14290223.35 | K142: 2018-02-21 | L142: 1683 | M142: INE306A01021
A143: BAJAJHLDNG | B143: EQ | C143: 2702.5 | D143: 2735 | E143: 2702.5 | F143: 2718.65 | G143: 2735 | H143: 2723.15 | I143: 19881 | J143: 53936140.05 | K143: 2018-02-21 | L143: 6754 | M143: INE118A01012
A144: BAJFINANCE | B144: EQ | C144: 1658 | D144: 1658 | E144: 1587.3 | F144: 1596.45 | G144: 1600 | H144: 1638.75 | I144: 1689744 | J144: 2708650436 | K144: 2018-02-21 | L144: 65333 | M144: INE296A01024
A145: BALAJITELE | B145: EQ | C145: 142 | D145: 142.5 | E145: 139.4 | F145: 140.15 | G145: 140 | H145: 140.25 | I145: 45694 | J145: 6410930.2 | K145: 2018-02-21 | L145: 700 | M145: INE794B01026
A146: BALAMINES | B146: EQ | C146: 665.9 | D146: 671.65 | E146: 648.05 | F146: 654.75 | G146: 653 | H146: 658.1 | I146: 26550 | J146: 17346715 | K146: 2018-02-21 | L146: 621 | M146: INE050E01027
A147: BALKRISHNA | B147: EQ | C147: 75.85 | D147: 75.85 | E147: 72 | F147: 72.6 | G147: 72.3 | H147: 73.25 | I147: 5342 | J147: 388957.6 | K147: 2018-02-21 | L147: 51 | M147: INE875R01011
A148: BALKRISIND | B148: EQ | C148: 1115 | D148: 1121.2 | E148: 1093 | F148: 1103.45 | G148: 1103 | H148: 1105.55 | I148: 372221 | J148: 411914750.1 | K148: 2018-02-21 | L148: 8719 | M148: INE787D01026
A149: BALLARPUR | B149: EQ | C149: 13.7 | D149: 13.8 | E149: 13.3 | F149: 13.35 | G149: 13.4 | H149: 13.6 | I149: 836515 | J149: 11251757.95 | K149: 2018-02-21 | L149: 1435 | M149: INE294A01037
A150: BALMLAWRIE | B150: EQ | C150: 230.85 | D150: 232.4 | E150: 228.15 | F150: 229.9 | G150: 230 | H150: 229.65 | I150: 43836 | J150: 10093543.65 | K150: 2018-02-21 | L150: 1072 | M150: INE164A01016
A151: BALPHARMA | B151: EQ | C151: 98.1 | D151: 98.5 | E151: 95.5 | F151: 96.65 | G151: 96.9 | H151: 96.05 | I151: 21031 | J151: 2041706.1 | K151: 2018-02-21 | L151: 360 | M151: INE083D01012
A152: BALRAMCHIN | B152: EQ | C152: 121 | D152: 121 | E152: 112.65 | F152: 114.35 | G152: 114.4 | H152: 119.15 | I152: 6499289 | J152: 758088119.8 | K152: 2018-02-21 | L152: 28213 | M152: INE119A01028
A153: BANARBEADS | B153: EQ | C153: 63 | D153: 65.5 | E153: 61.65 | F153: 65.1 | G153: 65.45 | H153: 62.4 | I153: 5225 | J153: 338202.25 | K153: 2018-02-21 | L153: 77 | M153: INE655B01011
A154: BANARISUG | B154: EQ | C154: 1764.95 | D154: 1764.95 | E154: 1710.05 | F154: 1747.7 | G154: 1748.8 | H154: 1722.85 | I154: 176 | J154: 304444.45 | K154: 2018-02-21 | L154: 50 | M154: INE459A01010
A155: BANCOINDIA | B155: EQ | C155: 224.25 | D155: 224.25 | E155: 217.4 | F155: 218.2 | G155: 217.5 | H155: 221.85 | I155: 33320 | J155: 7298792.75 | K155: 2018-02-21 | L155: 2202 | M155: INE213C01025
A156: BANG | B156: EQ | C156: 33.5 | D156: 33.5 | E156: 31.2 | F156: 31.35 | G156: 31.25 | H156: 32 | I156: 1304 | J156: 41538.35 | K156: 2018-02-21 | L156: 61 | M156: INE863I01016
A157: BANKBARODA | B157: EQ | C157: 146.75 | D157: 147.2 | E157: 142.3 | F157: 145.9 | G157: 145.35 | H157: 144.8 | I157: 13511046 | J157: 1957027240 | K157: 2018-02-21 | L157: 58717 | M157: INE028A01039
A158: BANKBEES | B158: EQ | C158: 2537 | D158: 2539.09 | E158: 2517.5 | F158: 2531.24 | G158: 2529 | H158: 2530.49 | I158: 6629 | J158: 16749217.28 | K158: 2018-02-21 | L158: 240 | M158: INF732E01078
A159: BANKINDIA | B159: EQ | C159: 132 | D159: 132.5 | E159: 126.35 | F159: 128.75 | G159: 128 | H159: 129.5 | I159: 7918645 | J159: 1019866396 | K159: 2018-02-21 | L159: 35803 | M159: INE084A01016
A160: BANSWRAS | B160: EQ | C160: 115 | D160: 115.5 | E160: 113.95 | F160: 115 | G160: 115.5 | H160: 114.2 | I160: 9965 | J160: 1141994 | K160: 2018-02-21 | L160: 109 | M160: INE629D01012
A161: BARTRONICS | B161: EQ | C161: 13 | D161: 13.15 | E161: 12.7 | F161: 12.9 | G161: 12.95 | H161: 13.05 | I161: 27806 | J161: 357943.3 | K161: 2018-02-21 | L161: 96 | M161: INE855F01034
A162: BASF | B162: EQ | C162: 2034.8 | D162: 2054.45 | E162: 1994.45 | F162: 2002.7 | G162: 2005 | H162: 2027.8 | I162: 7715 | J162: 15590521.05 | K162: 2018-02-21 | L162: 1214 | M162: INE373A01013
A163: BASML | B163: EQ | C163: 281 | D163: 284.95 | E163: 272.05 | F163: 275.7 | G163: 272.05 | H163: 279.7 | I163: 2876 | J163: 792606.6 | K163: 2018-02-21 | L163: 62 | M163: INE186H01014
A164: BATAINDIA | B164: EQ | C164: 712.4 | D164: 723.4 | E164: 701.95 | F164: 704.65 | G164: 703.45 | H164: 711.55 | I164: 321261 | J164: 227006822.9 | K164: 2018-02-21 | L164: 10271 | M164: INE176A01028
A165: BAYERCROP | B165: EQ | C165: 3897 | D165: 3897 | E165: 3815.5 | F165: 3828.3 | G165: 3830 | H165: 3834.95 | I165: 7236 | J165: 27702811.3 | K165: 2018-02-21 | L165: 1400 | M165: INE462A01022
A166: BBL | B166: EQ | C166: 1425.35 | D166: 1447.1 | E166: 1422 | F166: 1427.9 | G166: 1431 | H166: 1430.1 | I166: 7738 | J166: 11081041.8 | K166: 2018-02-21 | L166: 687 | M166: INE464A01028
A167: BBTC | B167: EQ | C167: 1570 | D167: 1570 | E167: 1525.1 | F167: 1533.7 | G167: 1544.35 | H167: 1557.15 | I167: 97659 | J167: 150754580.6 | K167: 2018-02-21 | L167: 3717 | M167: INE050A01025
A168: BEARDSELL | B168: EQ | C168: 58.15 | D168: 60.85 | E168: 55 | F168: 55.85 | G168: 56.5 | H168: 57.75 | I168: 8922 | J168: 504894.05 | K168: 2018-02-21 | L168: 107 | M168: INE520H01022
A169: BEDMUTHA | B169: EQ | C169: 24.7 | D169: 24.85 | E169: 23.8 | F169: 23.85 | G169: 23.85 | H169: 24.9 | I169: 10512 | J169: 253524.45 | K169: 2018-02-21 | L169: 79 | M169: INE844K01012
A170: BEL | B170: EQ | C170: 153.85 | D170: 154.75 | E170: 150.05 | F170: 150.85 | G170: 150.7 | H170: 153.75 | I170: 3970545 | J170: 601679727 | K170: 2018-02-21 | L170: 48534 | M170: INE263A01024
A171: BEML | B171: EQ | C171: 1238 | D171: 1238 | E171: 1194 | F171: 1204.6 | G171: 1204 | H171: 1222.35 | I171: 490979 | J171: 592826329.5 | K171: 2018-02-21 | L171: 14347 | M171: INE258A01016
A172: BEPL | B172: EQ | C172: 168 | D172: 168.5 | E172: 162.6 | F172: 163.95 | G172: 163.85 | H172: 166.25 | I172: 422992 | J172: 69845755.05 | K172: 2018-02-21 | L172: 6103 | M172: INE922A01025
A173: BERGEPAINT | B173: EQ | C173: 243.4 | D173: 247.9 | E173: 241 | F173: 246.35 | G173: 247.2 | H173: 242.4 | I173: 256005 | J173: 62413173.45 | K173: 2018-02-21 | L173: 7003 | M173: INE463A01038
A174: BFINVEST | B174: EQ | C174: 323.3 | D174: 325.9 | E174: 314.25 | F174: 318.45 | G174: 317.8 | H174: 320.75 | I174: 92225 | J174: 29529600.95 | K174: 2018-02-21 | L174: 3061 | M174: INE878K01010
A175: BFUTILITIE | B175: EQ | C175: 446.5 | D175: 447.45 | E175: 436.5 | F175: 439.95 | G175: 439.4 | H175: 442.65 | I175: 223528 | J175: 98766522.95 | K175: 2018-02-21 | L175: 5500 | M175: INE243D01012
A176: BGRENERGY | B176: EQ | C176: 120.05 | D176: 120.1 | E176: 118 | F176: 118.75 | G176: 118.1 | H176: 119.05 | I176: 35923 | J176: 4268170 | K176: 2018-02-21 | L176: 579 | M176: INE661I01014
A177: BHAGERIA | B177: EQ | C177: 292.9 | D177: 295 | E177: 288 | F177: 290.15 | G177: 290 | H177: 288.75 | I177: 11757 | J177: 3415887.05 | K177: 2018-02-21 | L177: 252 | M177: INE354C01027
A178: BHAGYANGR | B178: EQ | C178: 44.9 | D178: 45.05 | E178: 41.15 | F178: 41.75 | G178: 41.8 | H178: 43.7 | I178: 48544 | J178: 2070299.05 | K178: 2018-02-21 | L178: 744 | M178: INE458B01036
A179: BHAGYAPROP | B179: EQ | C179: 21.95 | D179: 22 | E179: 19.7 | F179: 20.4 | G179: 19.7 | H179: 20.25 | I179: 4222 | J179: 86953.15 | K179: 2018-02-21 | L179: 52 | M179: INE363W01018
A180: BHANDARI | B180: EQ | C180: 3.5 | D180: 3.55 | E180: 3.35 | F180: 3.45 | G180: 3.5 | H180: 3.5 | I180: 122010 | J180: 418150.55 | K180: 2018-02-21 | L180: 126 | M180: INE474E01029
A181: BHARATFIN | B181: EQ | C181: 990 | D181: 995.55 | E181: 965.2 | F181: 969.2 | G181: 966.6 | H181: 988.7 | I181: 1587155 | J181: 1553960579 | K181: 2018-02-21 | L181: 27069 | M181: INE180K01011
A182: BHARATFORG | B182: EQ | C182: 740.5 | D182: 761.85 | E182: 735.25 | F182: 757.55 | G182: 758.5 | H182: 738.8 | I182: 1213985 | J182: 909044335.3 | K182: 2018-02-21 | L182: 40528 | M182: INE465A01025
A183: BHARATGEAR | B183: EQ | C183: 198.6 | D183: 198.6 | E183: 190.45 | F183: 192.4 | G183: 192 | H183: 195.05 | I183: 17985 | J183: 3475782.7 | K183: 2018-02-21 | L183: 908 | M183: INE561C01019
A184: BHARATIWIN | B184: EQ | C184: 36.15 | D184: 36.28 | E184: 36 | F184: 36.04 | G184: 36.05 | H184: 36.12 | I184: 412975 | J184: 14900495.92 | K184: 2018-02-21 | L184: 1514 | M184: INF109KB15Y7
A185: BHARATRAS | B185: EQ | C185: 4636.95 | D185: 4749 | E185: 4636.95 | F185: 4667.35 | G185: 4641 | H185: 4677.85 | I185: 572 | J185: 2681382.7 | K185: 2018-02-21 | L185: 221 | M185: INE838B01013
A186: BHARATWIRE | B186: EQ | C186: 119.8 | D186: 119.8 | E186: 115.4 | F186: 118.2 | G186: 118.1 | H186: 116.25 | I186: 36714 | J186: 4287977.65 | K186: 2018-02-21 | L186: 336 | M186: INE316L01019
A187: BHARTIARTL | B187: EQ | C187: 420 | D187: 422.5 | E187: 417.35 | F187: 419.65 | G187: 419.3 | H187: 418.1 | I187: 4264637 | J187: 1790226374 | K187: 2018-02-21 | L187: 70796 | M187: INE397D01024
A188: BHEL | B188: EQ | C188: 93.5 | D188: 93.95 | E188: 90.9 | F188: 91.7 | G188: 91.85 | H188: 93.05 | I188: 6127936 | J188: 565237110 | K188: 2018-02-21 | L188: 23032 | M188: INE257A01026
A189: BHUSANSTL | B189: EQ | C189: 52.5 | D189: 52.5 | E189: 48.5 | F189: 49.35 | G189: 49.3 | H189: 51.75 | I189: 9273312 | J189: 461555927.4 | K189: 2018-02-21 | L189: 33495 | M189: INE824B01021
A190: BIGBLOC | B190: EQ | C190: 135.75 | D190: 142.5 | E190: 135 | F190: 135.5 | G190: 135 | H190: 134.85 | I190: 77115 | J190: 10588009 | K190: 2018-02-21 | L190: 1105 | M190: INE412U01017
A191: BIL | B191: EQ | C191: 416.15 | D191: 426.85 | E191: 416.1 | F191: 421.9 | G191: 426.85 | H191: 421.85 | I191: 4753 | J191: 1994607 | K191: 2018-02-21 | L191: 203 | M191: INE828A01016
A192: BILENERGY | B192: EQ | C192: 1.45 | D192: 1.45 | E192: 1.45 | F192: 1.45 | G192: 1.45 | H192: 1.5 | I192: 5681 | J192: 8237.45 | K192: 2018-02-21 | L192: 25 | M192: INE607L01029
A193: BILPOWER | B193: EQ | C193: 1.5 | D193: 1.5 | E193: 1.45 | F193: 1.45 | G193: 1.45 | H193: 1.45 | I193: 101 | J193: 151.45 | K193: 2018-02-21 | L193: 2 | M193: INE952D01018
A194: BINANIIND | B194: EQ | C194: 108.85 | D194: 109.15 | E194: 106.1 | F194: 107.15 | G194: 107 | H194: 107.8 | I194: 25782 | J194: 2767109 | K194: 2018-02-21 | L194: 406 | M194: INE071A01013
A195: BINDALAGRO | B195: EQ | C195: 29 | D195: 29.7 | E195: 28.8 | F195: 29.2 | G195: 29.1 | H195: 28.95 | I195: 24043 | J195: 700616.2 | K195: 2018-02-21 | L195: 155 | M195: INE143A01010
A196: BIOCON | B196: EQ | C196: 558 | D196: 584.8 | E196: 553.2 | F196: 579.65 | G196: 582.8 | H196: 572.45 | I196: 5859856 | J196: 3336099501 | K196: 2018-02-21 | L196: 85951 | M196: INE376G01013
A197: BIRLACABLE | B197: EQ | C197: 62 | D197: 65 | E197: 60.15 | F197: 64.35 | G197: 65 | H197: 62.6 | I197: 21016 | J197: 1324248.4 | K197: 2018-02-21 | L197: 142 | M197: INE800A01015
A198: BIRLACORPN | B198: EQ | C198: 926.85 | D198: 926.85 | E198: 882 | F198: 903.65 | G198: 904 | H198: 926.85 | I198: 120364 | J198: 108672641.5 | K198: 2018-02-21 | L198: 4749 | M198: INE340A01012
A199: BIRLAMONEY | B199: EQ | C199: 74.75 | D199: 75 | E199: 72.5 | F199: 72.85 | G199: 72.6 | H199: 74.05 | I199: 45854 | J199: 3366308.85 | K199: 2018-02-21 | L199: 827 | M199: INE865C01022
A200: BKMINDST | B200: EQ | C200: 38.4 | D200: 38.4 | E200: 36.15 | F200: 36.75 | G200: 36.75 | H200: 36.45 | I200: 1767 | J200: 64784.85 | K200: 2018-02-21 | L200: 32 | M200: INE831Q01016
... 1330 more rows

Sheet Sheet1 (hidden)

Sheet Sheet3 (hidden)

Sheet Sheet4 (hidden)

Sheet Sheet5 (hidden)

Sheet Call Tracker (Currency) (hidden)
A1: Master Trade High Risk
A2: Sr.no | B2: Date | C2: Company | D2: Rec | E2: Rec Price | F2: Stop Loss | G2: Call Closed At | H2: Target | I2: Remark | K2: Profit / Loss per share | L2: Gain / Loss per Lot | M2: Lot | N2: Status | O2: Closed Date
A3: 1 | B3: 2017-05-08 | C3: USDINR MAY FUT | D3: Buy | E3: 64.3935 | F3: 64.29 | G3: 64.66 | H3: 64.59 | I3: Profit of Rs.0.27/- | K3: 0.27 | L3: 266.5 | M3: 1000 | N3: Successful | O3: 2017-05-09 | R3: P
A4: 2 | B4: 2017-05-08 | C4: USDINR JUN FUT | D4: Buy | E4: 64.6535 | F4: 64.45 | G4: 64.965 | H4: 65.05 | I4: Profit of Rs 0.31/- | K4: 0.31 | L4: 311.5 | M4: 1000 | N4: Successful | O4: 2017-05-09 | R4: P
A5: 3 | B5: 2017-05-09 | C5: EUROINR MAY FUT | D5: Sell | E5: 70.65 | F5: 70.8 | G5: 70.07 | H5: 70.4 | I5: Profit of Rs 0.58/- | K5: 0.58 | L5: 580 | M5: 1000 | N5: Successful | O5: 2017-05-12 | R5: P
A6: 4 | B6: 2017-05-09 | C6: GBPINR MAY FUT | D6: Buy | E6: 83.774 | F6: 83.37 | G6: 83.37 | H6: 84.77 | I6: Loss of Rs 0.40/- | K6: -0.40 | L6: -404 | M6: 1000 | N6: Unsuccessful | O6: 2017-05-11 | R6: P
A7: 5 | B7: 2017-05-11 | C7: USDINR MAY FUT | D7: Buy | E7: 64.6555 | F7: 64.55 | G7: 64.55 | H7: 64.86 | I7: Loss of Rs.0.1055/- | K7: -0.1055 | L7: =K7*M7 -> -105.50 | M7: 1000 | N7: Unsuccessful | O7: 2017-05-11 | R7: P
A8: 6 | B8: 2017-05-15 | C8: USDINR MAY FUT | D8: Buy | E8: 64.2275 | F8: 64.08 | G8: 64.46 | H8: 64.48 | I8: Profit of Rs 0.23/- | K8: 0.23 | L8: 232.5 | M8: 1000 | N8: Successful | O8: 2017-05-18 | R8: P
A9: 7 | B9: 2017-05-19 | C9: USDINR MAY FUT | D9: Sell | E9: 64.83 | F9: 65 | G9: 65 | H9: 64.5 | I9: Loss of Rs.0.17/- | K9: -0.17 | L9: -170 | M9: 1000 | N9: Unsuccessful | O9: 2017-05-19 | R9: P
A10: 8 | B10: 2017-05-23 | C10: USDINR MAY FUT | D10: Buy | E10: 64.83 | F10: 64.62 | G10: 64.95 | H10: 65.2 | I10: Profit of Rs 0.12/- | K10: 0.12 | L10: 120 | M10: 1000 | N10: Successful | O10: 2017-05-24 | R10: P
A11: 9 | B11: 2017-05-25 | C11: USDINR MAY FUT | D11: Buy | E11: 64.57 | F11: 64.25 | G11: 64.56 | H11: 65 | I11: Loss of Rs.0.01/- | K11: -0.01 | L11: -10 | M11: 1000 | N11: Neutral | O11: 2017-05-29 | R11: P
A12: 10 | B12: 2017-05-30 | C12: USDINR JUN FUT | D12: Buy | E12: 64.9125 | F12: 64.71 | G12: 64.71 | H12: 65.31 | I12: Loss of Rs.0.20/- | K12: -0.20 | L12: -202.5 | M12: 1000 | N12: Unsuccessful | O12: 2017-05-31 | R12: P
A13: 11 | B13: 2017-06-01 | C13: USDINR JUN FUT | D13: Buy | E13: 64.655 | F13: 64.45 | G13: 64.45 | H13: 65.05 | I13: Loss of Rs.0.20/- | K13: =G13-E13 -> -0.20 | L13: =K13*M13 -> -205 | M13: 1000.00 | N13: Unsuccessful | O13: 2017-06-08 | R13: P
A14: 12 | B14: 2017-06-12 | C14: USDINR JUN FUT | D14: Buy | E14: 64.45 | F14: 64 | G14: 64.7625 | H14: 65.2 | I14: Profit of Rs 0.31/- | K14: 0.31 | L14: 312.5 | M14: 1000 | N14: Successful | O14: 2017-06-16
A15: 13 | B15: 2017-06-16 | C15: USDINR JUN FUT | D15: Buy | E15: 64.51 | F15: 64.2 | G15: 64.7 | H15: 65.11 | I15: Profit of Rs 0.19/- | K15: 0.19 | L15: 190 | M15: 1000 | N15: Successful | O15: 2017-06-21
A16: 14 | B16: 2017-06-22 | C16: USDINR JUN FUT | D16: Buy | E16: 64.56 | F16: 64.2 | G16: 64.2 | H16: 65.1 | I16: Loss of Rs.0.36/- | K16: -0.36 | L16: -360 | M16: 1000.00 | N16: Unsuccessful | O16: 2017-06-30
A17: 15 | B17: 2017-07-10 | C17: USDINR JUL FUT | D17: Buy | E17: 64.67 | F17: 64.4 | G17: 64.4 | H17: 65.15 | I17: Loss of Rs.0.27/- | K17: -0.27 | L17: -270 | M17: 1000.00 | N17: Unsuccessful | O17: 2017-07-31
A18: 16 | B18: 2017-08-02 | C18: USDINR AUG FUT | D18: Buy | E18: 64.235 | F18: 63.98 | G18: 63.98 | H18: 64.75 | I18: Loss of Rs.0.26/- | K18: -0.26 | L18: -255 | M18: 1000.00 | N18: Unsuccessful | O18: 2017-08-02
A19: 17 | B19: 2017-08-08 | C19: USDINR AUG FUT | D19: Buy | E19: 63.9425 | F19: 63.6 | G19: 64.15 | H19: 64.5 | I19: Profit of Rs 0.21/- | K19: 0.21 | L19: 207.5 | M19: 1000 | N19: Successful | O19: 2017-08-10
A20: 18 | B20: 2017-08-22 | C20: USDINR AUG FUT | D20: Buy | E20: 64.1175 | F20: 63.9 | G20: 64.01 | H20: 64.5 | I20: Loss of Rs.0.11/- | K20: =G20-E20 -> -0.11 | L20: =K20*M20 -> -107.5 | M20: 1000.00 | N20: Unsuccessful | O20: 2017-08-29
A21: 19 | B21: 2017-09-01 | C21: USDINR SEP FUT | D21: Buy | E21: 64.1 | F21: 63.8 | G21: 64.205 | H21: 64.7 | I21: Profit of Rs 0.11/- | K21: 0.11 | L21: 105 | M21: 1000 | N21: Successful | O21: 2017-09-01
A22: 20 | B22: 2017-09-04 | C22: USDINR SEP FUT | D22: Buy | E22: 64.095 | F22: 63.8 | G22: 64.195 | H22: 64.7 | I22: Profit of Rs 0.10/- | K22: 0.10 | L22: =K22*M22 -> 100 | M22: 1000 | N22: Successful | O22: 2017-09-04
A23: 21 | B23: 2017-09-05 | C23: USDINR SEP FUT | D23: Buy | E23: 64.25 | F23: 64 | G23: 64.355 | H23: 64.75 | I23: Profit of Rs 0.11/- | K23: =G23-E23 -> 0.11 | L23: =K23*M23 -> 105 | M23: 1000 | N23: Successful | O23: 2017-09-06
A24: 22 | B24: 2017-09-06 | C24: USDINR SEP FUT | D24: Sell | E24: 64.365 | F24: 64.5 | G24: 64.265 | H24: 64 | I24: Profit of Rs 0.10/- | K24: =E24-G24 -> 0.10 | L24: 100 | M24: 1000 | N24: Successful | O24: 2017-09-06
A25: 23 | B25: 2017-09-07 | C25: USDINR SEP FUT | D25: Buy | E25: 64.145 | F25: 63.9 | G25: 64.2565 | H25: 64.65 | I25: Profit of Rs 0.11/- | K25: =G25-E25 -> 0.11 | L25: =K25*M25 -> 111.5 | M25: 1000 | N25: Successful | O25: 2017-09-14
A26: 24 | B26: 2017-09-11 | C26: JPYINR SEP FUT | D26: Sell | E26: 59.0285 | F26: 59.25 | G26: 58.645 | H26: 58.5 | I26: Profit of Rs 0.38/- | K26: =E26-G26 -> 0.38 | L26: 383.5 | M26: 1000 | N26: Successful | O26: 2017-09-12
A27: 25 | B27: 2017-09-14 | C27: USDINR SEP FUT | D27: Buy | E27: 64.145 | F27: 63.95 | G27: 64.26 | H27: 64.5 | I27: Profit of Rs 0.12/- | K27: =G27-E27 -> 0.12 | L27: 115 | M27: 1000 | N27: Successful | O27: 2017-09-19
A28: 26 | B28: 2017-09-20 | C28: USDINR SEP FUT | D28: Buy | E28: 64.3515 | F28: 64.15 | G28: 64.57 | H28: 64.75 | I28: Profit of Rs 0.22/- | K28: =G28-E28 -> 0.22 | L28: =K28*M28 -> 218.5 | M28: 1000 | N28: Successful | O28: 2017-09-21
A29: 27 | B29: 2017-09-21 | C29: USDINR SEP FUT | D29: Sell | E29: 64.795 | F29: 65.05 | G29: 65.05 | H29: 64.4 | I29: Loss of Rs.0.17/- | K29: -0.17 | L29: -170 | M29: 1000.00 | N29: Unsuccessful | O29: 2017-09-22
A30: 28 | B30: 2017-09-25 | C30: USDINR SEP FUT | D30: Buy | E30: 64.77 | F30: 64.4 | G30: 64.92 | H30: 65.1 | I30: Profit of Rs 0.15/- | K30: =G30-E30 -> 0.15 | L30: =K30*M30 -> 150 | M30: 1000 | N30: Successful | O30: 2017-09-25
A31: 29 | B31: 2017-09-25 | C31: USDINR SEP FUT | D31: Sell | E31: 65.1077 | F31: 65.3 | G31: 65.3 | H31: 64.5 | I31: Loss of Rs.0.19/- | K31: -0.19 | L31: -190 | M31: 1000.00 | N31: Unsuccessful | O31: 2017-09-26
A32: 30 | B32: 2017-09-27 | C32: USDINR SEP FUT | D32: Sell | E32: 65.7225 | F32: 65.83 | G32: 65.7 | H32: 65.52 | I32: Profit of Rs 0.02/- | K32: =E32-G32 -> 0.02 | L32: =K32*M32 -> 22.5 | M32: 1000 | N32: Neutral | O32: 2017-09-27
A33: 31 | B33: 2017-09-27 | C33: USDINR OCT FUT | D33: Sell | E33: 66 | F33: 66.5 | G33: 65.895 | H33: 65 | I33: Profit of Rs 0.11/- | K33: =E33-G33 -> 0.11 | L33: 105 | M33: 1000 | N33: Successful | O33: 2017-09-27
A34: 32 | B34: 2017-09-28 | C34: USDINR OCT FUT | D34: Sell | E34: 66.075 | F34: 66.3 | G34: 65.96 | H34: 65.4 | I34: Profit of Rs 0.12/- | K34: =E34-G34 -> 0.12 | L34: =K34*M34 -> 115 | M34: 1000 | N34: Successful | O34: 2017-09-28
A35: 33 | B35: 2017-09-29 | C35: GBPINR OCT fut | D35: Buy | E35: 87.745 | F35: 87.5 | G35: 87.84 | H35: 88.25 | I35: Profit of Rs 0.09/- | K35: =G35-E35 -> 0.09 | L35: 95 | M35: 1000 | N35: Successful | O35: 2017-09-29
A36: 34 | B36: 2017-09-29 | C36: USDINR OCT FUT | D36: Buy | E36: 65.514 | F36: 65.25 | G36: 65.85 | H36: 66 | I36: Profit of Rs 0.34/- | K36: 0.34 | L36: =K36*M36 -> 336 | M36: 1000 | N36: Successful | O36: 2017-10-03
A37: 35 | B37: 2017-10-09 | C37: USDINR OCT FUT | D37: Buy | E37: 65.48 | F37: 65.23 | G37: 65.5775 | H37: 65.95 | I37: Profit of Rs 0.10/- | K37: =G37-E37 -> 0.10 | L37: =K37*M37 -> 97.5 | M37: 1000 | N37: Successful | O37: 2017-10-09
A38: 36 | B38: 2017-10-10 | C38: USDINR OCT FUT | D38: Buy | E38: 65.41 | F38: 65.15 | G38: 65.5075 | H38: 66 | I38: Profit of Rs 0.10/- | K38: 0.10 | L38: 97.5 | M38: 1000 | N38: Successful | O38: 2017-10-10
A39: 37 | B39: 2017-10-11 | C39: USDINR OCT FUT | D39: Buy | E39: 65.38 | F39: 65.13 | G39: 65.13 | H39: 65.88 | I39: Loss of Rs.0.25/- | K39: -0.25 | L39: -250 | M39: 1000.00 | N39: Unsuccessful | O39: 2017-10-13
A40: 38 | B40: 2017-10-16 | C40: USDINR OCT FUT | D40: Buy | E40: 64.7925 | F40: 64.54 | G40: 64.905 | H40: 65.3 | I40: Profit of Rs 0.11/- | K40: =G40-E40 -> 0.11 | L40: =K40*M40 -> 112.5 | M40: 1000 | N40: Successful | O40: 2017-10-17
A41: 39 | B41: 2017-10-23 | C41: USDINR OCT FUT | D41: Buy | E41: 65.115 | F41: 64.85 | G41: 65.21 | H41: 65.5 | I41: Profit of Rs 0.09/- | K41: =G41-E41 -> 0.09 | L41: =K41*M41 -> 95 | M41: 1000 | N41: Successful | O41: 2017-10-25
A42: 40 | B42: 2017-10-23 | C42: JPYINR OCT FUT | D42: Buy | E42: 57.285 | F42: 57.03 | G42: 57.38 | H42: 58.4 | I42: Profit of Rs 0.10/- | K42: =G42-E42 -> 0.10 | L42: =K42*M42 -> 95 | M42: 1000 | N42: Successful | O42: 2017-10-23
A43: 41 | B43: 2017-10-26 | C43: USDINR OCT FUT | D43: Buy | E43: 64.755 | F43: 64.5 | G43: 64.87 | H43: 65.25 | I43: Profit of Rs 0.12/- | K43: 0.12 | L43: 115 | M43: 1000 | N43: Successful | O43: 2017-10-25
A44: 42 | B44: 2017-10-30 | C44: USDINR NOV FUT | D44: Buy | E44: 65.035 | F44: 64.79 | G44: 64.79 | H44: 65.5 | I44: Loss of Rs.0.24/- | K44: -0.24 | L44: -245 | M44: 1000.00 | N44: Unsuccessful | O44: 2017-11-01
A45: 43 | B45: 2017-11-01 | C45: JPYINR NOV FUT | D45: Buy | E45: 56.9875 | F45: 56.73 | G45: 57.0959 | H45: 57.5 | I45: Profit of Rs 0.11/- | K45: =G45-E45 -> 0.11 | L45: =K45*M45 -> 108.4 | M45: 1000 | N45: Successful | O45: 2017-11-07
A46: 44 | B46: 2017-11-02 | C46: USDINR NOV FUT | D46: Buy | E46: 64.7838 | F46: 64.5 | G46: 64.89 | H46: 65.25 | I46: Profit of Rs 0.11/- | K46: =G46-E46 -> 0.11 | L46: =K46*M46 -> 106.2 | M46: 1000 | N46: Successful | O46: 2017-11-06
A47: 45 | B47: 2017-11-08 | C47: USDINR NOV FUT | D47: Buy | E47: 65.1363 | F47: 64.8375 | G47: 65.235 | H47: 65.73 | I47: Profit of Rs 0.10/- | K47: =G47-E47 -> 0.10 | L47: =K47*M47 -> 98.7 | M47: 1000 | N47: Successful | O47: 2017-11-10
A48: 46 | B48: 2017-11-08 | C48: GBPINR NOV FUT | D48: Buy | E48: 85.4983 | F48: 85.25 | G48: 85.6 | H48: 86 | I48: Profit of Rs 0.10/- | K48: =G48-E48 -> 0.10 | L48: =K48*M48 -> 101.7 | M48: 1000 | N48: Successful | O48: 2017-11-09
A49: 47 | B49: 2017-11-16 | C49: EURINR NOV FUT | D49: Buy | E49: 76.8975 | F49: 76.3975 | G49: 76.3975 | H49: 77.8975 | I49: Loss of Rs.0.50/- | K49: =G49-E49 -> -0.50 | L49: -500 | M49: 1000.00 | N49: Unsuccessful | O49: 2017-11-01
A50: 48 | B50: 2017-11-16 | C50: JPYINR NOV FUT | D50: Buy | E50: 57.6625 | F50: 57.2675 | G50: 57.8075 | H50: 58.6675 | I50: Profit of Rs 0.14/- | K50: =G50-E50 -> 0.14 | L50: =K50*M50 -> 145 | M50: 1000 | N50: Successful | O50: 2017-11-17
A51: 49 | B51: 2017-11-22 | C51: EURINR NOV FUT | D51: Buy | E51: 76.175 | F51: 75.95 | G51: 76.335 | H51: 76.6 | I51: Profit of Rs 0.16/- | K51: 0.16 | L51: =K51*M51 -> 160 | M51: 1000 | N51: Successful | O51: 2017-11-22
A52: 50 | B52: 2017-11-22 | C52: USDINR NOV FUT | D52: Buy | E52: 64.87 | F52: 64.5 | G52: 64.5 | H52: 65.5 | I52: Loss of Rs.0.37/- | K52: -0.37 | L52: -370 | M52: 1000.00 | N52: Unsuccessful | O52: 2017-11-27
A53: 51 | B53: 2017-11-28 | C53: GBPINR DEC FUT | D53: Buy | E53: 86.17 | F53: 85.85 | G53: 86.46 | H53: 87 | I53: Profit of Rs 0.29/- | K53: 0.29 | L53: =K53*M53 -> 290 | M53: 1000 | N53: Successful | O53: 2017-11-29
A54: 52 | B54: 2017-11-28 | C54: JPYINR DEC FUT | D54: Buy | E54: 58.16 | F54: 57.85 | G54: 57.85 | H54: 58.6 | I54: Loss of Rs.0.31/- | K54: -0.31 | L54: -310 | M54: 1000.00 | N54: Unsuccessful | O54: 2017-11-29
A55: 53 | B55: 2017-11-28 | C55: USDINR DEC FUT | D55: Buy | E55: 64.63 | F55: 64.13 | G55: 64.13 | H55: 65.63 | I55: Loss of Rs.0.50/- | K55: -0.50 | L55: =K55*M55 -> -500 | M55: 1000.00 | N55: Unsuccessful | O55: 2017-12-15
A56: 54 | B56: 2017-11-28 | C56: EURINR DEC FUT | D56: Buy | E56: 76.93 | F56: 76.43 | G56: 76.43 | H56: 77.93 | I56: Loss of Rs.0.50/- | K56: =G56-E56 -> -0.50 | L56: =K56*M56 -> -500 | M56: 1000.00 | N56: Unsuccessful | O56: 2017-11-29
A57: 55 | B57: 2017-12-12 | C57: EURINR DEC FUT | D57: Buy | E57: 76.105 | F57: 75.7 | G57: 76.27 | H57: 76.8 | I57: Profit of Rs 0.16/- | K57: =G57-E57 -> 0.16 | L57: 165 | M57: 1000 | N57: Successful | O57: 2017-12-14
A58: 56 | B58: 2017-12-12 | C58: JPYINR DEC FUT | D58: Buy | E58: 56.975 | F58: 56.7 | G58: 57.21 | H58: 57.6 | I58: Profit of Rs 0.23/- | K58: =G58-E58 -> 0.23 | L58: =K58*M58 -> 235 | M58: 1000 | N58: Successful | O58: 2017-12-14
